Workbook

Sheet Invoer_waarden
D39: Selecteer scheepstype | G39: Selecteer dieselverbruik
D41: Motor vessels dry cargo 110 m ship | G41: normal fuel use
D44: Selectie | G44: Jaarlijkse dieselverbruik (1.000 liters) | J44: Jaarlijkse vaaruren (uren)
D45: =D41& " - "& G41 -> Motor vessels dry cargo 110 m ship - normal fuel use | G45: =INDEX('Ship segment (Data)'!$P$59:$R$76,MATCH(Invoer_waarden!$D$41,'Ship segment (Data)'!$I$59:$I$76,0),MATCH(Invoer_waarden!$G$41,'Ship segment (Data)'!$P$58:$R$58,0)) -> 307 | J45: =INDEX('Ship segment (Data)'!$J$59:$L$76,MATCH(Invoer_waarden!$D$41,'Ship segment (Data)'!$I$59:$I$76,0),MATCH(Invoer_waarden!$G$41,'Ship segment (Data)'!$J$58:$L$58,0)) -> 1943
D49: Invoer waarden | G49: Selectie | J49: Standaard
D51: Gemiddelde Diesel prijs (Euro per ton) tussen 2020 en 2035 | G51: =J51 -> 697 | J51: 697
D55: Gemiddelde LNG prijs (Euro per ton) tussen 2020 en 2035 | G55: =J55 -> 523 | J55: 523
D59: Gemiddelde GTL prijs (Euro per ton) tussen 2020 en 2035 | G59: =J59 -> 767.1366269 | J59: 767.1366269
D63: Wil je de kosten doorrekenen voor Diesel of HVO (bio-diesel) | G63: Diesel | J63: Diesel
D67: Gemiddelde HVO prijs (Euro per ton) tussen 2020 en 2035 | G67: =J67 -> 857.7982283 | J67: ='Key Data'!B201 -> 857.7982283

Sheet Resultaten_CCNR1_CCNR0
B1: Resultaten voor een CCNR1/CCNR0 motor
B2: Kosten (mil Euro) voor schippers over 15 jaar
B3: =Invoer_waarden!$D$45&" - " &Invoer_waarden!$G$63 -> Motor vessels dry cargo 110 m ship - normal fuel use - Diesel
B4: =IF(Invoer_waarden!$G$63='Ship segment (Data)'!$S$18,'Ship segment (Data)'!$T$19,'Ship segment (Data)'!$T$18) -> _
A15: Volgende grafiek
A17: Data
B37: Resultaten voor een CCNR1/CCNR0 motor
B38: Totale kosten (mil Euro) inclusief emissies over 15 jaar
B39: =Invoer_waarden!$D$45&" - " &Invoer_waarden!$G$63 -> Motor vessels dry cargo 110 m ship - normal fuel use - Diesel
B40: =IF(Invoer_waarden!$G$63='Ship segment (Data)'!$S$18,'Ship segment (Data)'!$T$19,'Ship segment (Data)'!$T$18) -> _
A49: Vorige grafiek
A51: Volgende grafiek
A53: Data
B73: Resultaten voor een CCNR1/CCNR0 motor
B74: Grafiek die milieuvoordelen uitzet tegenover de totale kosten voor de schipper. De grootte van de bel geeft weer hoe groot de investeringen zijn.
B75: =Invoer_waarden!$D$45&" - " &Invoer_waarden!$G$63 -> Motor vessels dry cargo 110 m ship - normal fuel use - Diesel
B76: =IF(Invoer_waarden!$G$63='Ship segment (Data)'!$S$18,'Ship segment (Data)'!$T$19,'Ship segment (Data)'!$T$18) -> _
A82: Vorige grafiek
A84: Data
B113: * GTL does not require any invesment. However a small sum is included in order to include GTL in the figure.
B118: Detailed results for CCNR1/unregulated engine
B119: Kosten over 15 jaar (mil €)
B120: =IF(Invoer_waarden!$G$63='Ship segment (Data)'!$S$18,'Ship segment (Data)'!$T$19,'Ship segment (Data)'!$T$18) -> _
B121: Cost factors | C121: Unregulated engine revision | D121: SCR unregulated engine | E121: SCR+DPF unregulated engine | F121: FWE unregulated engine | G121: GTL unregulated engine | H121: Stage V | I121: LNG mono fuel | J121: LNG Dual fuel refit | K121: Diesel electric | L121: Battery electric
B122: Investments in start year | C122: =Results!D4 -> 0 | D122: =Results!I4 -> 87031.60714 | E122: =Results!K4 -> 161784.6071 | F122: =Results!O4 -> 148636.8331 | G122: =Results!Q4 -> 0 | H122: =Results!E4 -> 609082.0143 | I122: =Results!F4 -> 1923862 | J122: =Results!G4 -> 996097 | K122: =Results!L4 -> 1099547.54 | L122: =Results!M4 -> 2732989.239
B123: Investments | C123: =Results!D19 -> 100782 | D123: =Results!I19 -> 187813.6071 | E123: =Results!K19 -> 262566.6071 | F123: =Results!O19 -> 249418.8331 | G123: =Results!Q19 -> 100782 | H123: =Results!E19 -> 609082.0143 | I123: =Results!F19 -> 1923862 | J123: =Results!G19 -> 1096879 | K123: =Results!L19 -> 1099547.54 | L123: =Results!M19 -> 2732989.239
B124: Revision costs in start year | C124: =Results!D20 -> 171826.6071 | D124: =Results!I20 -> 171826.6071 | E124: =Results!K20 -> 171826.6071 | F124: =Results!O20 -> 171826.6071 | G124: =Results!Q20 -> 171826.6071 | H124: =Results!E20 -> 0 | I124: =Results!F20 -> 0 | J124: =Results!G20 -> 0 | K124: =Results!L20 -> 0 | L124: =Results!M20 -> 0
B125: Investments in assessment period | C125: =Results!D21 -> 0 | D125: =Results!I21 -> 0 | E125: =Results!K21 -> 0 | F125: =Results!O21 -> 0 | G125: =Results!Q21 -> 0 | H125: =Results!E21 -> 0 | I125: =Results!F21 -> 0 | J125: =Results!G21 -> 0 | K125: =Results!L21 -> 0 | L125: =Results!M21 -> 0
A126: Naar de grafieken | B126: Revision costs in assessment period (incl. SCR/DPF) | C126: =Results!D22 -> 0 | D126: =Results!I22 -> 0 | E126: =Results!K22 -> 0 | F126: =Results!O22 -> 0 | G126: =Results!Q22 -> 0 | H126: =Results!E22 -> 0 | I126: =Results!F22 -> 0 | J126: =Results!G22 -> 0 | K126: =Results!L22 -> 0 | L126: =Results!M22 -> 0
B127: Fuel (+ Urea) | C127: =Results!D23 -> 2068401.374 | D127: =Results!I23 -> 2143184.322 | E127: =Results!K23 -> 2143184.322 | F127: =Results!O23 -> 1983875.356 | G127: =Results!Q23 -> 2298427.017 | H127: =Results!E23 -> 2027197.705 | I127: =Results!F23 -> 1488015.134 | J127: =Results!G23 -> 1513113.382 | K127: =Results!L23 -> 2027197.705 | L127: =Results!M23 -> 842400.3426
B128: Other operational costs | C128: =Results!D24 -> 500405.7079 | D128: =Results!I24 -> 509443.6014 | E128: =Results!K24 -> 539139.8676 | F128: =Results!O24 -> 554752.1683 | G128: =Results!Q24 -> 500405.7079 | H128: =Results!E24 -> 528899.8328 | I128: =Results!F24 -> 272898.9622 | J128: =Results!G24 -> 272898.9622 | K128: =Results!L24 -> 453454.5367 | L128: =Results!M24 -> 197453.6661
B129: Total TCO | C129: =SUM(C123:C128) -> 2841415.689 | D129: =SUM(D123:D128) -> 3012268.138 | E129: 3116717.404 | F129: 2959872.965 | G129: 3071441.332 | H129: 3165179.552 | I129: 3684776.096 | J129: 2882891.344 | K129: 3580199.781 | L129: 3772843.248
B130: Environmental Costs: CO2 | C130: =Results!D25 -> 1945436.834 | D130: =Results!I25 -> 1945436.834 | E130: =Results!K25 -> 1945436.834 | F130: =Results!O25 -> 1865935.809 | G130: =Results!Q25 -> 1964142.957 | H130: =Results!E25 -> 1870612.34 | I130: =Results!F25 -> 2017379.34 | J130: =Results!G25 -> 2022973.762 | K130: =Results!L25 -> 1870612.34 | L130: =Results!M25 -> 230942.3611
B131: Environmental Costs: NOx | C131: =Results!D26 -> 2742903.458 | D131: =Results!I26 -> 557696.0807 | E131: =Results!K26 -> 557696.0807 | F131: =Results!O26 -> 2331467.939 | G131: =Results!Q26 -> 2468613.112 | H131: =Results!E26 -> 494440.8045 | I131: =Results!F26 -> 494440.8045 | J131: =Results!G26 -> 1078212.423 | K131: =Results!L26 -> 494440.8045 | L131: =Results!M26 -> 0
B132: Environmental Costs: PM | C132: =Results!D27 -> 763801.5357 | D132: =Results!I27 -> 763801.5357 | E132: =Results!K27 -> 32249.39817 | F132: =Results!O27 -> 381900.7678 | G132: =Results!Q27 -> 534661.075 | H132: =Results!E27 -> 25460.05119 | I132: =Results!F27 -> 25460.05119 | J132: =Results!G27 -> 225745.7872 | K132: =Results!L27 -> 25460.05119 | L132: =Results!M27 -> 0
B133: Total enviromental costs | C133: =SUM(C130:C132) -> 5452141.827 | D133: =SUM(D130:D132) -> 3266934.45 | E133: 2535382.313 | F133: 4579304.516 | G133: 4967417.144 | H133: =SUM(H130:H132) -> 2390513.196 | I133: 2537280.196 | J133: 3326931.972 | K133: 2390513.196 | L133: 230942.3611
B134: Total SC | C134: =Results!D28 -> 8293557.516 | D134: =Results!I28 -> 6279202.588 | E134: =Results!K28 -> 5652099.716 | F134: =Results!O28 -> 7539177.481 | G134: =Results!Q28 -> 8038858.476 | H134: =H129+H133 -> 5555692.748 | I134: =I129+I133 -> 6222056.291 | J134: =J129+J133 -> 6209823.316 | K134: =K129+K133 -> 5970712.977 | L134: =L129+L133 -> 4003785.609
B137: Meerkosten t.o.v. doorvaren over 15 jaar (mil €) | C137: =C121 -> Unregulated engine revision | D137: SCR | E137: SCR DPF | F137: FWE | G137: GTL* | H137: =H121 -> Stage V | I137: =I121 -> LNG mono fuel | J137: =J121 -> LNG Dual fuel refit | K137: =K121 -> Diesel electric | L137: =L121 -> Battery electric
A138: Naar de grafiek | B138: TCO extra costs | C138: =SUM(C123:C128)-SUM($C$123:$C$128) -> 0 | D138: 170852.4485 | E138: 275301.7147 | F138: 118457.2758 | G138: 230025.6426 | H138: 323763.8627 | I138: 843360.4067 | J138: 41475.65503 | K138: 738784.0923 | L138: 931427.5587
B139: Enviromental benefits | C139: =SUM($C$130:$C$132)-SUM(C130:C132) -> 0 | D139: 2185207.377 | E139: 2916759.514 | F139: 872837.3109 | G139: 484724.6831 | H139: 3061628.631 | I139: 2914861.631 | J139: 2125209.855 | K139: 3061628.631 | L139: 5221199.466
B140: Initial investment costs | C140: =C122-$C$122 -> 0 | D140: =D122-$C$122 -> 87031.60714 | E140: =E122-$C$122 -> 161784.6071 | F140: =F122-$C$122 -> 148636.8331 | G140: 1000 | H140: =H122-$C$122 -> 609082.0143 | I140: =I122-$C$122 -> 1923862 | J140: =J122-$C$122 -> 996097 | K140: =K122-$C$122 -> 1099547.54 | L140: =L122-$C$122 -> 2732989.239
B141: Total social costs | C141: =$C$134-C134 -> 0 | D141: 2014354.928 | E141: 2641457.8 | F141: 754380.0351 | G141: 254699.0404 | H141: 2737864.768 | I141: 2071501.225 | J141: 2083734.2 | K141: 2322844.539 | L141: 4289771.907
G142: * GTL does not require any invesment. However a small sum is included in order to include GTL in the figure.
B144: Extra costs over 15 years (€) - same data in columns
C145: Initial investment costs | D145: TCO extra costs | E145: Enviromental benefits (euro) | F145: Benefits / Costs
B146: =D137 -> SCR | C146: =INDEX($C$140:$L$140,MATCH($B146,$C$137:$L$137,0)) -> 87031.60714 | D146: =INDEX($C$138:$L$138,MATCH($B146,$C$137:$L$137,0)) -> 170852.4485 | E146: =INDEX($C$139:$L$139,MATCH($B146,$C$137:$L$137,0)) -> 2185207.377 | F146: =E146/D146 -> 12.7900267
B147: =E137 -> SCR DPF | C147: 161784.6071 | D147: =INDEX($C$138:$L$138,MATCH($B147,$C$137:$L$137,0)) -> 275301.7147 | E147: =INDEX($C$139:$L$139,MATCH($B147,$C$137:$L$137,0)) -> 2916759.514 | F147: =E147/D147 -> 10.59477424
B148: =F137 -> FWE | C148: 148636.8331 | D148: 118457.2758 | E148: 872837.3109 | F148: 7.368372307
B149: =G137 -> GTL* | C149: none | D149: 230025.6426 | E149: 484724.6831 | F149: 2.107263684
B150: =H137 -> Stage V | C150: 609082.0143 | D150: 323763.8627 | E150: 3061628.631 | F150: 9.456363059
B151: =I137 -> LNG mono fuel | C151: 1923862 | D151: 843360.4067 | E151: 2914861.631 | F151: 3.456246711
B152: =J137 -> LNG Dual fuel refit | C152: 996097 | D152: 41475.65503 | E152: 2125209.855 | F152: 51.23993469
B153: =K137 -> Diesel electric | C153: 1099547.54 | D153: 738784.0923 | E153: 3061628.631 | F153: 4.14414531
B154: =L137 -> Battery electric | C154: 2732989.239 | D154: 931427.5587 | E154: 5221199.466 | F154: 5.605588344

Sheet Resultaten_CCNR2_
C1: Resultaten voor een CCNR2 motor
C2: =Resultaten_CCNR1_CCNR0!B2 -> Kosten (mil Euro) voor schippers over 15 jaar
C3: =Invoer_waarden!$D$45&" - " &Invoer_waarden!$G$63 -> Motor vessels dry cargo 110 m ship - normal fuel use - Diesel
C4: =IF(Invoer_waarden!$G$63='Ship segment (Data)'!$S$18,'Ship segment (Data)'!$T$19,'Ship segment (Data)'!$T$18) -> _
A15: Volgende grafiek
A17: Data
C37: Resultaten voor een CCNR2 motor
C38: Totale kosten (mil Euro) inclusief emissies over 15 jaar
C39: =Invoer_waarden!$D$45&" - " &Invoer_waarden!$G$63 -> Motor vessels dry cargo 110 m ship - normal fuel use - Diesel
C40: =IF(Invoer_waarden!$G$63='Ship segment (Data)'!$S$18,'Ship segment (Data)'!$T$19,'Ship segment (Data)'!$T$18) -> _
A49: Vorige grafiek
A51: Volgende grafiek
A53: Data
L71: * GTL does not require any invesment. However a small sum is included in order to include GTL in the figure.
C73: Resultaten voor een CCNR2 motor
C74: Grafiek die milieuvoordelen uitzet tegenover de totale kosten voor de schipper. De grootte van de bel geeft weer hoe groot de investeringen zijn.
C75: =Invoer_waarden!$D$45&" - " &Invoer_waarden!$G$63 -> Motor vessels dry cargo 110 m ship - normal fuel use - Diesel
C76: =IF(Invoer_waarden!$G$63='Ship segment (Data)'!$S$18,'Ship segment (Data)'!$T$19,'Ship segment (Data)'!$T$18) -> _
A82: Vorige grafiek
A84: Data
C112: * GTL does not require any invesment. However a small sum is included in order to include GTL in the figure.
C124: Resultaten voor een CCNR2 motor
C125: Kosten over 15 jaar (mil €)
C126: =Invoer_waarden!D45 -> Motor vessels dry cargo 110 m ship - normal fuel use
C127: =IF(Invoer_waarden!$G$63='Ship segment (Data)'!$S$18,'Ship segment (Data)'!$T$19,'Ship segment (Data)'!$T$18) -> _
C128: Cost factors | D128: CCNR2 revision | E128: SCR CCNR2 | F128: SCR+ DPF CCNR2 | G128: FWE CCNR2 | H128: GTL CCNR2 | I128: Stage V | J128: LNG mono fuel | K128: LNG Dual fuel refit | L128: Diesel electric | M128: Battery electric
C129: Investments in start year | D129: =Results!C4 -> 0 | E129: =Results!H4 -> 87031.60714 | F129: =Results!J4 -> 161784.6071 | G129: =Results!N4 -> 148636.8331 | H129: =Results!P4 -> 0 | I129: =Results!E4 -> 609082.0143 | J129: =Results!F4 -> 1923862 | K129: =Results!G4 -> 996097 | L129: =Results!L4 -> 1099547.54 | M129: =Results!M4 -> 2732989.239
C130: Investments | D130: =Results!C19 -> 100782 | E130: =Results!H19 -> 187813.6071 | F130: =Results!J19 -> 262566.6071 | G130: =Results!N19 -> 249418.8331 | H130: =Results!P19 -> 100782 | I130: =Results!E19 -> 609082.0143 | J130: =Results!F19 -> 1923862 | K130: =Results!G19 -> 1096879 | L130: =Results!L19 -> 1099547.54 | M130: =Results!M19 -> 2732989.239
C131: Revision costs in start year | D131: =Results!C20 -> 171826.6071 | E131: =Results!H20 -> 171826.6071 | F131: =Results!J20 -> 171826.6071 | G131: =Results!N20 -> 171826.6071 | H131: =Results!P20 -> 171826.6071 | I131: =Results!E20 -> 0 | J131: =Results!F20 -> 0 | K131: =Results!G20 -> 0 | L131: =Results!L20 -> 0 | M131: =Results!M20 -> 0
C132: Investments in assessment period | D132: =Results!C21 -> 0 | E132: =Results!H21 -> 0 | F132: =Results!J21 -> 0 | G132: =Results!N21 -> 0 | H132: =Results!P21 -> 0 | I132: =Results!E21 -> 0 | J132: =Results!F21 -> 0 | K132: =Results!G21 -> 0 | L132: =Results!L21 -> 0 | M132: =Results!M21 -> 0
C133: Revision costs in assessment period (incl. SCR/DPF) | D133: =Results!C22 -> 0 | E133: =Results!H22 -> 0 | F133: =Results!J22 -> 0 | G133: =Results!N22 -> 0 | H133: =Results!P22 -> 0 | I133: =Results!E22 -> 0 | J133: =Results!F22 -> 0 | K133: =Results!G22 -> 0 | L133: =Results!L22 -> 0 | M133: =Results!M22 -> 0
A134: Naar de grafieken | C134: Fuel (+ Urea) | D134: =Results!C23 -> 2088289.849 | E134: =Results!H23 -> 2128557.59 | F134: =Results!J23 -> 2128557.59 | G134: =Results!N23 -> 1983875.356 | H134: =Results!P23 -> 2298427.017 | I134: =Results!E23 -> 2027197.705 | J134: =Results!F23 -> 1488015.134 | K134: =Results!G23 -> 1513113.382 | L134: =Results!L23 -> 2027197.705 | M134: =Results!M23 -> 842400.3426
C135: Other operational costs | D135: =Results!C24 -> 502965.7166 | E135: =Results!H24 -> 509443.6014 | F135: =Results!J24 -> 541699.8763 | G135: =Results!N24 -> 554752.1683 | H135: =Results!P24 -> 502965.7166 | I135: =Results!E24 -> 528899.8328 | J135: =Results!F24 -> 272898.9622 | K135: =Results!G24 -> 272898.9622 | L135: =Results!L24 -> 453454.5367 | M135: =Results!M24 -> 197453.6661
C136: Total TCO | D136: =SUM(D129:D135) -> 2863864.173 | E136: =SUM(E129:E135) -> 3084673.013 | F136: 3266435.288 | G136: 3108509.798 | H136: 3074001.34 | I136: 3774261.566 | J136: 5608638.096 | K136: 3878988.344 | L136: 4679747.321 | M136: 6505832.487
C137: Environmental Costs: CO2 | D137: =Results!C25 -> 1964142.957 | E137: =Results!H25 -> 1964142.957 | F137: =Results!J25 -> 1964142.957 | G137: =Results!N25 -> 1865935.809 | H137: =Results!P25 -> 1964142.957 | I137: =Results!E25 -> 1870612.34 | J137: =Results!F25 -> 2017379.34 | K137: =Results!G25 -> 2022973.762 | L137: =Results!L25 -> 1870612.34 | M137: =Results!M25 -> 230942.3611
C138: Environmental Costs: NOx | D138: =Results!C26 -> 1858986.936 | E138: =Results!H26 -> 557696.0807 | F138: =Results!J26 -> 557696.0807 | G138: =Results!N26 -> 1580138.895 | H138: =Results!P26 -> 1673088.242 | I138: =Results!E26 -> 494440.8045 | J138: =Results!F26 -> 494440.8045 | K138: =Results!G26 -> 1078212.423 | L138: =Results!L26 -> 494440.8045 | M138: =Results!M26 -> 0
C139: Environmental Costs: PM | D139: =Results!C27 -> 322493.9817 | E139: =Results!H27 -> 322493.9817 | F139: =Results!J27 -> 32249.39817 | G139: =Results!N27 -> 161246.9909 | H139: =Results!P27 -> 225745.7872 | I139: =Results!E27 -> 25460.05119 | J139: =Results!F27 -> 25460.05119 | K139: =Results!G27 -> 225745.7872 | L139: =Results!L27 -> 25460.05119 | M139: =Results!M27 -> 0
C140: Total enviromental costs | D140: =SUM(D137:D139) -> 4145623.874 | E140: =SUM(E137:E139) -> 2844333.02 | F140: 2554088.436 | G140: 3607321.695 | H140: 3862976.986 | I140: 2390513.196 | J140: 2537280.196 | K140: 3326931.972 | L140: 2390513.196 | M140: 230942.3611
C141: Total SC | D141: =Results!C28 -> 7009488.047 | E141: =Results!H28 -> 5841974.425 | F141: =Results!J28 -> 5658739.117 | G141: =Results!N28 -> 6567194.66 | H141: =Results!P28 -> 6936978.327 | I141: =Results!E28 -> 5555692.748 | J141: =Results!F28 -> 6698556.291 | K141: =Results!G28 -> 6686323.316 | L141: =Results!L28 -> 5970712.977 | M141: =Results!M28 -> 4003785.609
C144: Meerkosten t.o.v. doorvaren over 15 jaar (mil €) | D144: =D128 -> CCNR2 revision | E144: SCR | F144: SCR DPF | G144: FWE | H144: GTL* | I144: =I128 -> Stage V | J144: =J128 -> LNG mono fuel | K144: =K128 -> LNG Dual fuel refit | L144: =L128 -> Diesel electric | M144: =M128 -> Battery electric
C145: TCO extra costs | D145: =SUM(D130:D135)-SUM($D$130:$D$135) -> 0 | E145: 133777.2331 | F145: 240786.508 | G145: 96008.79239 | H145: 210137.1679 | I145: 301315.3792 | J145: 820911.9232 | K145: 19027.17158 | L145: 716335.6089 | M145: 908979.0752
A146: Naar de grafiek | C146: Enviromental benefits | D146: =SUM($D$137:$D$138)-SUM(D137:D138) -> 0 | E146: =SUM($D$137:$D$139)-SUM(E137:E139) -> 1301290.855 | F146: 1591535.438 | G146: 538302.179 | H146: 282646.8881 | I146: 1755110.679 | J146: 1608343.679 | K146: 818691.9024 | L146: 1755110.679 | M146: 3914681.513
C147: Initial investment costs | D147: =D129-$D$129 -> 0 | E147: =E129-$D$129 -> 87031.60714 | F147: =F129-$D$129 -> 161784.6071 | G147: =G129-$D$129 -> 148636.8331 | H147: 1000 | I147: =I129-$D$129 -> 609082.0143 | J147: =J129-$D$129 -> 1923862 | K147: =K129-$D$129 -> 996097 | L147: =L129-$D$129 -> 1099547.54 | M147: =M129-$D$129 -> 2732989.239
C148: Total social costs | D148: =$D$141-D141 -> 0 | E148: 1167513.622 | F148: 1350748.93 | G148: 442293.3867 | H148: 72509.72018 | I148: 1453795.299 | J148: 310931.7555 | K148: 323164.7308 | L148: 1038775.07 | M148: 3005702.438
H149: * GTL does not require any invesment. However a small sum is included in order to include GTL in the figure.
D152: Initial investment costs | E152: TCO extra costs | F152: Enviromental benefits (euro) | G152: Benefits / Costs
C153: =E144 -> SCR | D153: =INDEX($D$147:$M$147,MATCH($C153,$D$144:$M$144,0)) -> 87031.60714 | E153: =INDEX($D$145:$M$145,MATCH($C153,$D$144:$M$144,0)) -> 133777.2331 | F153: =INDEX($D$146:$M$146,MATCH($C153,$D$144:$M$144,0)) -> 1301290.855 | G153: =F153/E153 -> 9.727296828
C154: =F144 -> SCR DPF | D154: =INDEX($D$147:$M$147,MATCH($C154,$D$144:$M$144,0)) -> 161784.6071 | E154: 240786.508 | F154: 1591535.438 | G154: =F154/E154 -> 6.609736781
C155: =G144 -> FWE | D155: =INDEX($D$147:$M$147,MATCH($C155,$D$144:$M$144,0)) -> 148636.8331 | E155: 96008.79239 | F155: 538302.179 | G155: 5.606800853
C156: =H144 -> GTL* | D156: none | E156: 210137.1679 | F156: 282646.8881 | G156: 1.345058996
C157: =I144 -> Stage V | D157: =INDEX($D$147:$M$147,MATCH($C157,$D$144:$M$144,0)) -> 609082.0143 | E157: 301315.3792 | F157: 1755110.679 | G157: 5.824829396
C158: =J144 -> LNG mono fuel | D158: =INDEX($D$147:$M$147,MATCH($C158,$D$144:$M$144,0)) -> 1923862 | E158: 820911.9232 | F158: 1608343.679 | G158: 1.959215883
C159: =K144 -> LNG Dual fuel refit | D159: =INDEX($D$147:$M$147,MATCH($C159,$D$144:$M$144,0)) -> 996097 | E159: 19027.17158 | F159: 818691.9024 | G159: 43.02751458
C160: =L144 -> Diesel electric | D160: =INDEX($D$147:$M$147,MATCH($C160,$D$144:$M$144,0)) -> 1099547.54 | E160: 716335.6089 | F160: 1755110.679 | G160: 2.450123457
C161: =M144 -> Battery electric | D161: =INDEX($D$147:$M$147,MATCH($C161,$D$144:$M$144,0)) -> 2732989.239 | E161: 908979.0752 | F161: 3914681.513 | G161: 4.30667946

Sheet Uitleg_resultaten
B2: Uitleg resultaten

Sheet CBA figures (hidden)
C1: Diesel (baseline)- Stage 5 | D1: Diesel baseline CCNR (2) at revision | E1: Diesel baseline CCNR (0) at revision | G1: LNG mono fuel | H1: LNG dual fuel | K1: SCR on Diesel baseline CCNR 2 at revision | L1: SCR on Diesel baseline CCNR 0 at revision | O1: SCR/ DPF on Diesel baseline CCNR (2) at revision | P1: SCR/ DPF on Diesel baseline CCNR 0 at revision | R1: Compatible prominent segments for Right Size | S1: Diesel elctric (2x 40%) | T1: Battery electric | W1: FWE (CCR2) | X1: FWE (CCR0) | AA1: GTL (CCNR2) | AB1: GTL (CCNR0)
A2: Legend | B2: CE Delft Segment | C2: =INDEX('Shi Segment (Peter)'!$A$3:$A$20,MATCH($C$3,'Shi Segment (Peter)'!$B$3:$B$20,0)) -> H
A3: Purple - Independent value | B3: Vessel Class | C3: ='Ship segment (Data)'!Z5 -> Motor vessels dry cargo 110 m ship
A4: Yellow - Own calculation | B4: Propulsion power range (Kw) | C4: =INDEX('Shi Segment (Peter)'!$C$3:$C$20,MATCH($C$2,'Shi Segment (Peter)'!$A$3:$A$20,0)) -> 0
A5: Red - Data/value not good (Source) | B5: Prominent Category | C5: =INDEX('Shi Segment (Peter)'!$D$3:$D$20,MATCH($C$2,'Shi Segment (Peter)'!$A$3:$A$20,0)) -> MVS 110m
A6: Dark blue - Not used/ reference value | B6: Sailing hours | C6: ='Ship segment (Data)'!AA5 -> normal fuel use
A7: Pink - Recheck the calculations | B7: Average Propulsion power (kW) | C7: =INDEX('Shi Segment (Peter)'!$I$3:$I$20,MATCH($C$2,'Shi Segment (Peter)'!$A$3:$A$20,0)) -> 1527
B9: Diesel fuel consumption (m3/ year) | C9: =SUMPRODUCT(('Ship segment (Data)'!$H$59:$H$76='CBA figures'!$C$2)*('Ship segment (Data)'!$P$58:$R$58='CBA figures'!$C$6)*'Ship segment (Data)'!$P$59:$R$76) -> 307
B10: Diesel fuel consumption (tonnes/ year) | C10: =C9*'Key Data'!$B$42 -> 256.641507
B11: Energy consumption Diesel (GJ/ year) | C11: =C9*'Key Data'!$B$43 -> 11008.7744
B12: Energy consumption LNG mono fuel engine (GJ/year) | C12: =('Key Data'!$B$69/'Key Data'!$B$67)*C11 -> 12537.77084
B13: Energy consumption LNG dual fuel engine (GJ/year) | C13: =('Key Data'!$B$68/'Key Data'!$B$67)*C11 -> 12537.77084
B14: LNG fuel consumption mono fuel engine (Tonnes/year) | C14: =C12/'Key Data'!$B$70 -> 255.8728744
B15: LNG fuel consumption dual fuel engine (Tonnes/year) | C15: =C13*C17/'Key Data'!$B$70 -> 243.0792307
B16: Diesel consumption LNG Dual fuel (tonne) | C16: =(1-C17)*C10 -> 12.83207535
B17: Share of LNG in dual fuel | C17: 0.95
B18: Energy engine output (kWh/year) | C18: =C10*1000/'Key Data'!$B$44 -> 1239814.043
B19: Energy engine output per day (300 days) | D19: =C18/300 -> 4132.713478
B20: Estimated hours per year | C20: =C24 -> 1943
B21: Estimated hours per day | C21: =C20/365 -> 5.323287671
B22: Lifetime battery | D22: 10
B23: Number of engines | C23: =INDEX('Ship segment (Data)'!$J$3:$J$34,MATCH($C$2,'Ship segment (Data)'!$A$3:$A$34,0)) -> 1
B24: Sailing hours (STC Nestra) | C24: =SUMPRODUCT(('Ship segment (Data)'!$H$59:$H$76='CBA figures'!$C$2)*('Ship segment (Data)'!$J$58:$L$58='CBA figures'!$C$6)*'Ship segment (Data)'!$J$59:$L$76) -> 1943
B25: Max pay load | C25: =INDEX('Ship segment (Data)'!$H$3:$H$34,MATCH($C$2,'Ship segment (Data)'!$A$3:$A$34,0)) -> 3043
B26: Total Number of Engines (Prominent & IVR based) | C26: =INDEX('Shi Segment (Peter)'!$F$3:$F$218,MATCH($C$2,'Shi Segment (Peter)'!$A$3:$A$20,0)) -> 575
B27: Total Number of vessels (Prominent & IVR based) | C27: =INDEX('Shi Segment (Peter)'!$E$3:$E$20,MATCH($C$2,'Shi Segment (Peter)'!$A$3:$A$20,0)) -> 575
B29: Engine lifetime min (hgh speed) | C29: =INDEX('Shi Segment (Peter)'!$N$29:$N$55,MATCH($C$2,'Shi Segment (Peter)'!$A$29:$A$55,0)) -> 34
B30: Engine Lifetime max | C30: =INDEX('Shi Segment (Peter)'!$L$29:$L$55,MATCH($C$2,'Shi Segment (Peter)'!$A$29:$A$55,0)) -> 51
B31: Assesement period | C31: ='Ship segment (Data)'!W5 -> 15
B32: Engine hours | C32: =C31*C24 -> 29145
B33: Engines needed in assesment period (starting with new engine) | D33: =ROUNDUP(C31/C29,0) -> 1
B34: Battery needed in assesment period (starting with new battery) | D34: =ROUNDUP(C31/D22,0) -> 2
B35: Revision needed in assessment period (starting with new engine) | D35: =ROUNDUP((C31+C29/2)/C29,0)-1 -> 0
B36: Battery replacement in assessment period (starting with new battery) | D36: =ROUNDUP((C31+D22/2)/D22,0)-1 -> 1
B37: Engines needed in assesment period (starting with revision) | D37: =D35 -> 0 | E37: Engine/ revision in year 0 is included, at end of assesment period not.
B38: Revision needed in assessment period (starting with revision) | D38: =D33 -> 1
B39: Engines reaching end of life (starting with new engine)
B40: Engines reaching end of life (starting with revision)
B41: Interest over engine lifetime period | D41: ='Key Data'!B76^('CBA figures'!C29)-1 -> 2.794316341
B42: Age of engine at end of asesment period (new enigine in 2020) | D42: =C31 -> 15
B43: Age of engine at end of asesment period (revision in 2020) | D43: =C31+C29/2-(D37)*C29 -> 32
B44: Age of battery at the end of assesment period (new engine) | D44: =C31+D22-(D36)*D22 -> 15
B45: Cost for iddling per day | D45: =SUMPRODUCT(('Ship segment (Data)'!$H$59:$H$76='CBA figures'!$C$2)*('Ship segment (Data)'!$S$58:$U$58='CBA figures'!$C$6)*'Ship segment (Data)'!$S$59:$U$76) -> 771.3214286
B46: Port dues (€ per annum) | C46: =SUMPRODUCT(('Ship segment (Data)'!$H$59:$H$76='CBA figures'!$C$2)*('Ship segment (Data)'!$V$58:$X$58='CBA figures'!$C$6)*'Ship segment (Data)'!$V$59:$X$76) -> 14000
A47: Case LNG Monofuel | B47: Definition/Assumption | C47: Remarks
B48: Diesel (New engine)
B49: LNG Mono fuel (New/Retrofit) | C49: Additional cost as comapred to diesel | N49: Life time engine hours (SCR & DPF) | O49: 30000
B50: LNG price | J50: Life time engine hours with (SCR) | K50: 30000 | N50: Port due per annum (CCNR 2 or older) Baseline | O50: =C46 -> 14000 | R50: Life time electromotor (in years) | S50: 30
B51: Diesel price | J51: Port due per annum (CCNR 2 or older) | K51: =C46 -> 14000 | N51: Number of replacements SCR up to 2050 | O51: =ROUNDUP((C31*C20)/O49,0)-1 -> 0
B52: Equipment and installation | C52: Tank will be bought instead of leased | J52: Number of replacements SCR in engine lifetime | K52: =ROUNDUP((C31*C20)/K50,0)-1 -> 0 | N52: Life time SCR (in years) | O52: =O49/C20 -> 15.44004117
B53: Environment (Cost and Benefit) | J53: Life time SCR (in years) | K53: =K50/C20 -> 15.44004117 | N53: Interest factor over lifetime | O53: ='Key Data'!B76^O52 -> 1.832295268
B54: Incentives (If available) | J54: Interest factor over lifetime | K54: ='Key Data'!B76^'CBA figures'!K53 -> 1.832295268
B55: Societal effects
B57: Compatible prominent segments for LNG fuel | D57: =INDEX('Shi Segment (Peter)'!$B$3:$B$20,MATCH($C$2,'Shi Segment (Peter)'!$A$3:$A$20,0)) -> Motor vessels dry cargo 110 m ship | R57: Relative power | S57: 0.8 | T57: 0.8
B58: Cost type
C59: Diesel (baseline)- Stage 5 | D59: Diesel baseline CCNR (2) at revision | E59: Diesel baseline CCNR (0) at revision | G59: LNG mono fuel | H59: LNG dual fuel - Refit | K59: SCR on Diesel baseline CCNR 2 at revision | L59: SCR on Diesel baseline CCNR 0 at revision | O59: SCR/ DPF on Diesel baseline CCNR (2) at revision | P59: SCR/ DPF on Diesel baseline CCNR 0 at revision | R59: Compatible prominent segments for Right Size | S59: =D57 -> Motor vessels dry cargo 110 m ship | T59: =S59 -> Motor vessels dry cargo 110 m ship
C60: Values | D60: Values | E60: Values | G60: Values | H60: Values | K60: Values | O60: Values | P60: Values | R60: RS Hybrid, Diesel 60 & Electricity 20% | S60: Diesel elctric (2x 40%) | T60: =T1 -> Battery electric | U60: Investement costs | V60: Fuel water emulsion | W60: FWE (CCR2) | X60: FWE (CCR0) | Y60: Investement costs | Z60: GTL | AA60: GTL (CCNR2) | AB60: GTL (CCNR0)
A61: Investment costs | B61: Engine (New) (Euros) | C61: ='Key Data'!$B$11*C7 -> 541168.8 | D61: =C7*'Key Data'!$B$12 -> 335940 | E61: =C7*'Key Data'!$B$12 -> 335940 | G61: =INDEX('Shi Segment (Peter)'!L3:$L$20,MATCH($C$2,'Shi Segment (Peter)'!$A$3:$A$20,0))+D61 -> 1143765 | H61: =INDEX('Shi Segment (Peter)'!$M$3:$M$20,MATCH($C$2,'Shi Segment (Peter)'!A3:A20,0)) -> 216000 | I61: Investment costs | J61: Engine (New) | K61: 0 | M61: Investment costs | N61: Engine (New) | O61: 0 | Q61: Investement costs | U61: (one time) | V61: Engine (New) | W61: 0 | X61: 0 | Y61: (One time) | Z61: Total investment cost (New build & Retrofit) (if any)
I62: (One time) | J62: Equipment cost 30000hrs (Euro per vessel) | K62: =IF(C7<2000,'Key Data'!$B$79*$C$7,'Key Data'!$B$80*$C$7) -> 38175 | N62: Equipment cost 30000hrs (Euro per vessel) (SCR Only) | O62: =K62 -> 38175 | Q62: (one time) | R62: Generator set | S62: =S57*C7*'Key Data'!B11 -> 432935.04 | V62: Equipment cost (Incl installation cost) | W62: =$C$7*'Key Data'!$B$163+'Key Data'!$B$164 -> 116890 | X62: =$C$7*'Key Data'!$B$163+'Key Data'!$B$164 -> 116890 | Z62: Revision of engine
N63: Equipment cost 30000hrs (Euro per vessel) (DPF Only) | O63: ='Key Data'!$B$81*C7 -> 59553 | R63: Electromotor + Controller | S63: =S57*C7*'Key Data'!$B$123 -> 610800 | T63: =S63 -> 610800 | Z63: Revision time
A64: (One time) | B64: Tank (Euros) | C64: 0 | D64: 0 | E64: 0 | G64: ='Key Data'!B52 -> 165000 | H64: ='Key Data'!B52 -> 165000 | J64: Design and installation per unit (incl tank + compr) | K64: =C23*'Key Data'!$B$83 -> 45000 | N64: Total equipment costs | O64: =SUM(O62:O63) -> 97728 | R64: Additional equipment cost (€) - Retrofit (Deinstallation/rebuild engine room) | S64: =K64 -> 45000 | T64: =S64 -> 45000 | V64: Reverse osomosis systems | W64: =$C$7*'Key Data'!$B$169 -> 8990.976 | X64: =$C$7*'Key Data'!$B$169 -> 8990.976 | Z64: Scrap value of existing engine (value for "rebuying", instead of restvalue for case)
B65: Tank connection space (Euros) | C65: 0 | D65: 0 | E65: 0 | G65: ='Key Data'!B51 -> 377500 | H65: ='Key Data'!B51 -> 377500 | N65: NPV Additional costs after 30000 hours (30 yrs) (SCR + DPF) | O65: =-1.1*PV((O53-1),O51,O64) -> 0 | R65: Battery benodigde pakket is 2 maal zo groot als dagelijkse benodigde energie. Dit kunnen ook 4 batterijpakketten zijn | T65: =D19*'Key Data'!B152*2 -> 2066356.739 | V65: Measurement after installation costs | W65: ='Key Data'!$B$172 -> 3500 | X65: ='Key Data'!$B$172 -> 3500 | Z65: NPV Scrap value new engine after 30 years
B66: a. Installation costs (Tank above deck - Retrofit/NB) (Euros) | C66: =O66+O67 -> 60200 | D66: 0 | E66: 0 | G66: =INDEX('Shi Segment (Peter)'!M3:M210,MATCH($C$2,'Shi Segment (Peter)'!$A$3:$A$20,0)) -> 216000 | H66: =INDEX('Shi Segment (Peter)'!M3:M210,MATCH($C$2,'Shi Segment (Peter)'!$A$3:$A$20,0)) -> 216000 | N66: Design and installation per unit (DPF) | O66: =C23*'Key Data'!$B$84 -> 15200 | R66: Levensduur batterij pakket | T66: =3000/300*2 -> 20 | V66: Additional cost (Based on Kw)
B67: b. Installation costs (Tank under deck - Retrofit) (Euros) | C67: 0 | D67: 0 | E67: 0 | G67: =INDEX('Shi Segment (Peter)'!$O$3:$O$20,MATCH($C$2,'Shi Segment (Peter)'!$A$3:$A$20,0)) -> 692500 | H67: =INDEX('Shi Segment (Peter)'!$O$3:$O$20,MATCH($C$2,'Shi Segment (Peter)'!$A$3:$A$20,0)) -> 692500 | N67: Design and installation per unit (incl tank + compr) (SCR) | O67: =C23*'Key Data'!$B$83 -> 45000 | R67: Days idle | S67: ='Key Data'!B151 -> 14 | T67: =S67 -> 14 | V67: Installation costs | W67: ='Key Data'!$B$166 -> 10000 | X67: ='Key Data'!$B$166 -> 10000
B68: Days idling | C68: 10 | D68: =C68/2 -> 5 | E68: =C68/2 -> 5 | G68: ='Key Data'!$B$53 -> 28 | H68: ='Key Data'!$B$53 -> 28 | J68: Days idle | K68: ='Key Data'!B107 -> 5 | N68: Days idle | O68: ='Key Data'!B107 -> 5 | R68: Oppurtunity cost | S68: =S67*D45 -> 10798.5 | T68: =S68 -> 10798.5 | V68: Idle time (days) | W68: ='Key Data'!$B$165 -> 12 | X68: ='Key Data'!$B$165 -> 12
B69: Oppurtunity cost (Idling cost) (Euros) | C69: =C68*D45 -> 7713.214286 | D69: =D68*D45 -> 3856.607143 | E69: =E68*D45 -> 3856.607143 | G69: =G68*D45 -> 21597 | H69: =H68*D45 -> 21597 | J69: Oppurtunity cost (Idling cost) (Euros) | K69: =K68*D45 -> 3856.607143 | N69: Oppurtunity cost (Idling cost) (Euros) | O69: =O68*D45 -> 3856.607143 | R69: Scrap value end of life | S69: =S62*'Key Data'!$B$74 -> 43293.504 | V69: Oppurtunity cost | W69: =W68*$D$45 -> 9255.857143 | X69: =X68*$D$45 -> 9255.857143
B70: Scrap value end of life | C70: =('Key Data'!$B$74*C61) -> 54116.88 | D70: =('Key Data'!$B$74*D61) -> 33594 | E70: =('Key Data'!$B$74*E61) -> 33594 | G70: =('Key Data'!$B$74*G61) -> 114376.5 | H70: =('Key Data'!$B$74*H61) -> 21600 | R70: Revision of engine | S70: =S62*'Key Data'!$B$71 -> 216467.52 | T70: =T65*'Key Data'!$B$71 -> 1033178.37 | V70: Scrap value end of life | W70: =D69 -> 3856.607143 | X70: =E69 -> 3856.607143
B71: Revision costs of engine | C71: ='Key Data'!$B$71*'CBA figures'!C61 -> 270584.4 | D71: ='Key Data'!$B$71*'CBA figures'!D61 -> 167970 | E71: ='Key Data'!$B$71*'CBA figures'!E61 -> 167970 | G71: =C71 -> 270584.4 | H71: =C71 -> 270584.4 | R71: Residual value of electro engine | S71: =IF($D$42<=$C$29/2,S63-$D$42/$C$29*'Key Data'!$B$75*S63,S63*(1+'Key Data'!$B$71)-$D$42/$C$29*'Key Data'!$B$75*S63) -> 233541.1765 | T71: =S71 -> 233541.1765 | V71: Revision costs of engine | W71: =D71 -> 167970 | X71: =E71 -> 167970
B72: Residual Value of engine after assement period | C72: =IF(Results!$K$3='Shi Segment (Peter)'!$AF$4,IF($D$42<=$C$29/2,$C$61-$D$42/$C$29*'Key Data'!$B$75*$C$61,$C$61*(1+'Key Data'!$B$71)-$D$42/$C$29*'Key Data'!$B$75*$C$61),0) -> 0 | D72: =IF(Results!$K$3='Shi Segment (Peter)'!$AF$4,IF(D37=0,IF(D43<=C29/2,D61-D43/C29*'Key Data'!$B$75*D61,D61*(1+'Key Data'!$B$71)-D43/C29*'Key Data'!$B$75*D61),IF(D43<=C29/2,C61-D43/C29*'Key Data'!$B$75*C61,C61*(1+'Key Data'!$B$71)-D43/C29*'Key Data'!$B$75*C61)),0) -> 0 | E72: =IF(Results!$K$3='Shi Segment (Peter)'!$AF$4,IF(D37=0,IF(D43<=C29/2,E61-D43/C29*'Key Data'!$B$75*E61,E61*(1+'Key Data'!$B$71)-D43/C29*'Key Data'!$B$75*E61),IF(D43<=C29/2,C61-D43/C29*'Key Data'!$B$75*C61,C61*(1+'Key Data'!$B$71)-D43/C29*'Key Data'!$B$75*C61)),0) -> 0 | G72: =IF(Results!$K$3='Shi Segment (Peter)'!$AF$4,IF(D42<=C29/2,(G61+G64)-D42/C29*'Key Data'!$B$75*(G61+G64),(G61+G64)*(1+'Key Data'!$B$71)-D42/C29*'Key Data'!$B$75*(G61+G64)),0) -> 0 | H72: =IF(Results!$K$3='Shi Segment (Peter)'!$AF$4,IF(D43<=C29/2,(H61+H64)-D43/C29*'Key Data'!$B$75*(H61+H64),(H61+H64)*(1+'Key Data'!$B$71)-D43/C29*'Key Data'!$B$75*(H61+H64))+D72,0) -> 0 | R72: Residual Value of engine after assement period | S72: =IF(Results!$K$3='Shi Segment (Peter)'!$AF$4,IF($D$42<=$C$29/2,S62-$D$42/$C$29*'Key Data'!$B$75*S62,S62*(1+'Key Data'!$B$71)-$D$42/$C$29*'Key Data'!$B$75*S62)+S71,0) -> 0 | T72: =IF(Results!$K$3='Shi Segment (Peter)'!$AF$4,T65*(1-(C31/T66))+T71,0) -> 0 | V72: Residual Value of engine after assement period | W72: =IF(Results!$K$3='Shi Segment (Peter)'!$AF$4,IF($D$42<=$C$29,$C$61-$D$42/$C$29*'Key Data'!$B$75*$C$61,$C$61*(1+'Key Data'!$B$71)-$D$42/$C$29*'Key Data'!$B$75*$C$61),0) -> 0 | X72: =IF(Results!$K$3='Shi Segment (Peter)'!$AF$4,IF($D$42<=$C$29,$C$61-$D$42/$C$29*'Key Data'!$B$75*$C$61,$C$61*(1+'Key Data'!$B$71)-$D$42/$C$29*'Key Data'!$B$75*$C$61),0) -> 0
B73: Total engine and installation costs in 2020 (tank above deck) or revision costs | C73: =C61+C64+C65+C66+C69 -> 609082.0143 | D73: 0 | E73: 0 | G73: =G61+G64+G65+G66+G69 -> 1923862 | H73: =H61+H64+H65+H66+H69 -> 996097 | J73: Total installation costs in 2020 costs | K73: =K61+K62+K64+K69 -> 87031.60714 | N73: Total installation costs in 2020 costs | O73: =O61+O62+O63+O66+O67+O69 -> 161784.6071 | R73: Total engine and installation costs in 2020 (tank above deck) or revision costs | S73: =SUM(S61:S68) -> 1099547.54 | T73: =SUM(T61:T68) -> 2732989.239 | V73: Total engine and installation costs in 2020 | W73: =SUM(W62:W67)+W69 -> 148636.8331 | X73: =SUM(X62:X67)+X69 -> 148636.8331
B74: NPV Additional costs after 30000 hours (30 yrs) | C74: =O74 -> 0 | J74: NPV Additional costs after 30.000 hours (during engine lifetime) | K74: =-1.1*PV((K54-1),K52,K62) -> 0 | N74: NPV Additional costs after 30000 hours (30 yrs) | O74: =-1.1*PV((O53-1),O51,O64) -> 0 | R74: =J74 -> NPV Additional costs after 30.000 hours (during engine lifetime) | S74: =K74 -> 0 | T74: 0
B75: Engine replacement in assement period | C75: =-PV(D41,D33-1,C61+C71) -> 0 | D75: =-PV(D41,D37,(C61+C69)*'Key Data'!$B$76^('CBA figures'!C29/2)) -> 0 | E75: =-PV(D41,D37,(C61+C69)*'Key Data'!$B$76^('CBA figures'!C29/2)) -> 0 | G75: =-PV(D41,D33-1,G61+C69) -> 0 | H75: =-PV(D41,D37,(C61+C69)*'Key Data'!$B$76^(C29/2))-PV(D41,D33-1,H61+C69) -> 0 | J75: Engine replacement in assement period | K75: =D75 -> 0 | N75: Engine replacement in assement period | O75: =D75 -> 0 | R75: Engine replacement in assement period | S75: =-PV($D41,$D33-1,S62+$C69) -> 0 | T75: =-PV($D41,$D34-1,T65+$T68) -> 547438.6036 | V75: Engine replacement in assement period | W75: =D75 -> 0 | X75: 0
B76: Rest value (Value for "rebuying", instead of restvalue for other cases) | D76: =D61-0.5*'Key Data'!B75*D61 -> 100782 | E76: =E61-0.5*'Key Data'!B75*E61 -> 100782 | H76: =D76 -> 100782 | J76: Rest value (Value for "rebuying", instead of restvalue for other cases) | K76: 100782 | N76: Rest value (Value for "rebuying", instead of restvalue for other cases) | O76: =D76 -> 100782 | R76: Rest value (Value for "rebuying", instead of restvalue for other cases) | T76: =S76 -> 0 | V76: Rest value (Value for "rebuying", instead of restvalue for other cases) | W76: 100782 | X76: 100782
B77: Scrap value During life time | C77: =PV('Key Data'!$B$66,(D33-1),C70) -> 0 | D77: =IF(D37<2,0,-D70/'Key Data'!$B$76^(C29/2)+PV(D41,(D37-2),C70/'Key Data'!$B$76^('CBA figures'!C29/2))) -> 0 | E77: =IF(D37<2,0,-E70/'Key Data'!$B$76^(C29/2)+PV(D41,(D37-2),C70/'Key Data'!$B$76^('CBA figures'!C29/2))) -> 0 | G77: =PV('Key Data'!$B$66,(D33-1),'CBA figures'!G70) -> 0 | H77: =PV('Key Data'!$B$66,(D37),H70*'Key Data'!$B$76^(C29/2)) -> 0 | J77: Scrap value During life time | K77: 0 | N77: Scrap value During life time | O77: 0 | R77: Scrap value During life time | S77: =PV('Key Data'!$B$66,($D33-1),S69) -> 0 | T77: =PV('Key Data'!$B$66,($D33-1),T69) -> 0 | V77: Scrap value During life time | W77: 0 | X77: 0
B78: Residual Value at end of assesment period | C78: =-C72/'Key Data'!$B$76^C31 -> 0 | D78: =-D72/'Key Data'!$B$76^C31 -> 0 | E78: =-E72/'Key Data'!$B$76^C31 -> 0 | G78: =-G72/'Key Data'!$B$76^C31 -> 0 | H78: =-H72/'Key Data'!$B$76^C31 -> 0 | J78: Residual Value at end of assesment period | K78: =D78 -> 0 | L78: Aaname: Geen restwaarde van SCR | N78: Residual Value at end of assesment period | O78: 0 | R78: NPV Residual Value at end of assesment period | S78: =-S72/'Key Data'!$B$76^C31 -> 0 | T78: =-T72/'Key Data'!$B$76^C31 -> 0 | V78: Residual Value at end of assesment period | W78: 0 | X78: 0
B79: Revision costs in 2020 | C79: 0 | D79: =D71+D69 -> 171826.6071 | E79: =E71+E69 -> 171826.6071 | G79: 0 | H79: 0 | J79: Revision costs in 2020 | K79: 171826.6071 | N79: Revision costs in 2020 | O79: 171826.6071 | R79: Revision costs in 2020 | S79: 0 | T79: =S79 -> 0 | V79: Revision costs in 2020 | W79: =D79 -> 171826.6071 | X79: =E79 -> 171826.6071
B80: Revision costs during lifetime | C80: =-PV(D41,D35,(C71+D69)*'Key Data'!$B$76^(C29/2)) -> 0 | D80: =-PV(D41,D38-1,(C71+D69)) -> 0 | E80: =-PV(D41,D38-1,(C71+E69)) -> 0 | G80: =-PV(D41,D35,(G71+D69)*'Key Data'!$B$76^(C29/2)) -> 0 | H80: =-PV(D41,D38-1,(H71+D69)) -> 0 | J80: Revision costs during lifetime | K80: 0 | N80: Revision costs during lifetime | O80: 0 | R80: Revision costs during lifetime | S80: =-PV($D41,$D35,(S70+$D69)*'Key Data'!$B$76^($C29/2)) -> 0 | T80: =-PV($D41,$D35,(T70+$D69)*'Key Data'!$B$76^($C29/2)) -> 0 | V80: Revision costs during lifetime | W80: 0 | X80: 0
A81: Operational cost | B81: Fuel consumption (LNG/Phase V/CCNR2 or older) (tonne) | C81: =C10 -> 256.641507 | D81: =C10*(1+'Key Data'!B117) -> 269.4735823 | E81: =C10*(1+'Key Data'!B118) -> 266.9071673 | G81: =C14 -> 255.8728744 | H81: =C15+C16 -> 255.911306 | I81: Operational cost | J81: Fuel consumption (Tonnes/year) includes fuel penalty | K81: =('Key Data'!$B$117*C10)+C10 -> 269.4735823 | L81: =('Key Data'!$B$118*C10)+C10 -> 266.9071673 | M81: Operational cost | N81: Fuel consumption (Tonnes/year) includes fuel penalty | O81: =K81 -> 269.4735823 | P81: =L81 -> 266.9071673 | Q81: Operational cost | R81: Fuel consumption (RS/Phase V/CCNR2 or older) | S81: =C81 -> 256.641507 | T81: =C18/0.9 -> 1377571.159 | U81: Operational cost | V81: Fuel consumption (tonnes/yr) | W81: =D81-(D81*'Key Data'!$B$176) -> 255.9999032 | X81: =E81-(E81*'Key Data'!$B$176) -> 253.5618089 | Y81: Operational cost | Z81: Fuel consumption (tonnes/year) | AA81: =D81 -> 269.4735823 | AB81: =E81 -> 266.9071673
B82: Fuel cost (€ /yr) (Based on 2018 prices) | C82: =C81*'Key Data'!$B$204 -> 178879.1304 | D82: =D81*'Key Data'!$B$204 -> 187823.0869 | E82: =E81*'Key Data'!$B$204 -> 186034.2956 | G82: =G81*'Key Data'!$B$9 -> 133833.7185 | H82: =C15*'Key Data'!$B$9+C16*'Key Data'!B7 -> 136091.0826 | I82: per year | J82: Fuel cost (€ /yr) (Based on 2018 prices) (Euros) | K82: =K81*'Key Data'!$B$204 -> 187823.0869 | L82: =L81*'Key Data'!$B$204 -> 186034.2956 | M82: per year | N82: Fuel cost (€ /yr) (Based on 2018 prices) (Euros) | O82: =O81*'Key Data'!$B$204 -> 187823.0869 | P82: =P81*'Key Data'!$B$204 -> 186034.2956 | Q82: (per year) | R82: Fuel cost (€ /yr) (Based on 2018 prices) | S82: =S81*'Key Data'!$B$204 -> 178879.1304 | T82: =T81*'Key Data'!B154 -> 75766.41377 | U82: (per year) | V82: Fuel cost (€ /yr) (Based on 2018 prices) | W82: =W81*'Key Data'!$B$204 -> 178431.9325 | X82: =X81*'Key Data'!$B$204 -> 176732.5808 | Y82: (per year) | Z82: Fuel cost (€ /yr) (Based on 2018 prices) | AA82: =AA81*'Key Data'!$B$193 -> 206723.055 | AB82: =AB81*'Key Data'!$B$193 -> 204754.264
B83: Urea consumption liter/ year) | C83: ='Key Data'!B90*'CBA figures'!C81*1000 -> 12318.79234 | H83: 0 | R83: Urea consumption liter/ year) | S83: =C83 -> 12318.79234 | T83: 0
B84: Urea costs euro/ year) | C84: =C83*'Key Data'!$B$94 -> 3449.261854 | H84: 0 | J84: Urea cost per year | K84: ='Key Data'!$B$90*K81*1000*'Key Data'!$B$94 -> 3621.724947 | L84: ='Key Data'!$B$91*L81*1000*'Key Data'!$B$94 -> 6726.060615 | N84: Urea cost per year | O84: ='Key Data'!$B$90*O81*1000*'Key Data'!$B$94 -> 3621.724947 | P84: ='Key Data'!$B$91*P81*1000*'Key Data'!$B$94 -> 6726.060615 | R84: Urea costs euro/ year) | S84: =C84 -> 3449.261854 | T84: 0
B85: Insurance cost per year (Euros) | C85: =D85 -> 0 | D85: =Results!U43 -> 0 | E85: =D85 -> 0 | G85: =D85 -> 0 | H85: =D85 -> 0 | J85: Insurance cost per year | K85: =D85 -> 0 | L85: =K85 -> 0 | N85: Insurance cost per year | O85: =K85 -> 0 | P85: =L85 -> 0 | R85: Insurance cost per year (Euros) | S85: =D85 -> 0 | T85: 0 | V85: Insurance cost per year (Euros) | W85: =G85 -> 0 | X85: =H85 -> 0 | Z85: Insurance cost per year (Euros) | AA85: =G85 -> 0
N86: Repair and maintenance in euro per annum (SCR) | O86: =C18*'Key Data'!$B$88/1000 -> 2479.628087 | P86: =C18*'Key Data'!$B$88/1000 -> 2479.628087
J87: Additional Repair and maintenance cost (per annum) | K87: =(C18*'Key Data'!$B$88/1000) -> 2479.628087 | L87: =K87 -> 2479.628087 | N87: Repair and maintenance in euro per annum (DPF) | O87: =(C18*'Key Data'!$B$89)/1000 -> 2901.164862 | P87: =(C18*'Key Data'!$B$89)/1000 -> 2901.164862 | V87: FWE Maintenance cost (Engine hours based) | W87: ='Key Data'!$B$173*$C$20 -> 485.75 | X87: ='Key Data'!$B$173*$C$20 -> 485.75
B88: Repair and Maintenance (Euros) | C88: =O88 -> 12441.83295 | D88: =C9*'Key Data'!$B$124+'Key Data'!$B$125*C7 -> 7061.04 | E88: =C9*'Key Data'!$B$124+'Key Data'!$B$125*C7 -> 7061.04 | G88: =C88 -> 12441.83295 | H88: =C88 -> 12441.83295 | J88: Total repair and maintenance costs per annum (Additional on top of baseline vessel) | K88: =K87+D88 -> 9540.668087 | L88: =L87+E88 -> 9540.668087 | N88: Total Repair and maintenance cost (Euros per annum) (SCR + DPF) | O88: =O86+O87+D88 -> 12441.83295 | P88: =P86+P87+D88 -> 12441.83295 | R88: Total maintenance cost | S88: =S57*$C7*'Key Data'!$B$125+$C9*'Key Data'!$B$124 -> 5656.2 | T88: =T57*$C7*'Key Data'!$B$125+$C9*'Key Data'!$B$124 -> 5656.2 | V88: Repair and Maintenance costs | W88: =G88 -> 12441.83295 | X88: =H88 -> 12441.83295 | Z88: Maintenance cost (Engine hours based) | AA88: =G88 -> 12441.83295 | AB88: =H88 -> 12441.83295
B89: Oil duty under the CCR convention (Euro per annum) | C89: =('Key Data'!$B$57)*(C81/'Key Data'!$B$42)*10 -> 23025 | D89: =('Key Data'!$B$57)*(D81/'Key Data'!$B$42)*10 -> 24176.25 | E89: =('Key Data'!$B$57)*(E81/'Key Data'!$B$42)*10 -> 23946 | J89: Oil duty under the CCR convention (Euro per annum) | K89: =('Key Data'!$B$57)*(K81/'Key Data'!$B$42)*10 -> 24176.25 | L89: =('Key Data'!$B$57)*(L81/'Key Data'!$B$42)*10 -> 23946 | N89: Oil duty under the CCR convention (Euro per annum) | O89: =('Key Data'!$B$57)*(O81/'Key Data'!$B$42)*10 -> 24176.25 | P89: =('Key Data'!$B$57)*(P81/'Key Data'!$B$42)*10 -> 23946 | R89: Oil duty under the CCR convention (Euro per annum) | S89: =('Key Data'!$B$57)*(S81/'Key Data'!$B$42)*10 -> 23025 | T89: 0 | V89: Oil duty under the CCNR convention (Euro per annum) | W89: =('Key Data'!$B$57)*(W81/'Key Data'!$B$42)*10 -> 22967.4375 | X89: =('Key Data'!$B$57)*(X81/'Key Data'!$B$42)*10 -> 22748.7 | Z89: Oil duty under the CCR convention (Euro per annum) | AA89: =('Key Data'!$B$57)*(AA81/'Key Data'!$B$42)*10 -> 24176.25 | AB89: =('Key Data'!$B$57)*(AB81/'Key Data'!$B$42)*10 -> 23946
B90: Port dues per annum (Euros) | C90: =(D90-C98) -> 12103 | D90: =C46 -> 14000 | E90: =C46 -> 14000 | G90: =(D90-G98) -> 12103 | H90: =(D90-H98) -> 12103 | J90: Port dues (Euros per annum) | K90: =(K51-K98) -> 12103 | L90: 12103 | N90: Port dues (Euros per annum) (CCNR1 & CCNR2) | O90: =(O50-O98) -> 12103 | P90: =O90 -> 12103 | R90: Port dues | S90: =C90 -> 12103 | T90: =S90 -> 12103 | V90: Port dues (Euros per annum) (CCNR1 & CCNR2) | W90: =D90 -> 14000 | X90: =E90 -> 14000 | Z90: Port dues (Euros per annum) (CCNR1 & CCNR2) | AA90: =D90 -> 14000 | AB90: =E90 -> 14000
A91: External Costs | B91: CO2 (tonne /year) | C91: ='Key Data'!$B$205*C81 -> 1004.238217 | D91: ='Key Data'!$B$205*D81 -> 1054.450128 | E91: ='Key Data'!$B$205*E81 -> 1044.407746 | G91: ='Key Data'!$B$25*C14 -> 944.1709064 | H91: ='Key Data'!$B$25*C15+C16*'Key Data'!$B$24 -> 947.174272 | I91: External Costs | J91: CO2 (tonne /year) | K91: ='Key Data'!$B$205*K81 -> 1054.450128 | L91: ='Key Data'!$B$205*L81 -> 1044.407746 | M91: External Costs | N91: CO2 (tonne /year) | O91: ='Key Data'!$B$205*O81 -> 1054.450128 | P91: ='Key Data'!$B$205*P81 -> 1044.407746 | Q91: External costs | R91: CO2 (tonne /year) | S91: ='Key Data'!$B$205*S81 -> 1004.238217 | T91: =C18*'Key Data'!$B$157 -> 123.9814043 | U91: External costs | V91: CO2 (tonne /year) CCNR2 | W91: ='Key Data'!$B$205*W81 -> 1001.727621 | X91: ='Key Data'!$B$205*X81 -> 992.1873583 | Y91: Operational benefits | Z91: CO2 (tonne /year) | AA91: ='Key Data'!$B$24*AA81 -> 1054.450128 | AB91: ='Key Data'!$B$24*AB81 -> 1044.407746
B92: Nox (kg/ year) | C92: =C18*'Key Data'!B31/1000 -> 2219.267138 | D92: =C18*'Key Data'!$B$30/1000 -> 8343.948512 | E92: =C18*'Key Data'!$B$28/1000 -> 12311.35345 | G92: =C18*'Key Data'!$B$31/1000 -> 2219.267138 | H92: =C18*'Key Data'!$B$34/1000 -> 4839.490137 | J92: Nox (kg/ year) | K92: =D92*(1-'Key Data'!$B$110) -> 2503.184554 | L92: =E92*(1-'Key Data'!$B$110) -> 3693.406035 | N92: Nox (kg/ year) | O92: =K92 -> 2503.184554 | P92: =L92 -> 3693.406035 | Q92: (per year) | R92: Nox (kg/ year) | S92: =C92 -> 2219.267138 | T92: 0 | U92: (per year) | V92: Nox (kg/ year) | W92: =D92*(1-'Key Data'!$B$178) -> 7092.356235 | X92: =E92*(1-'Key Data'!$B$178) -> 10464.65043 | Y92: (per year) | Z92: Nox (kg/ year) | AA92: =($C$18*'Key Data'!$B$30/1000)*(1-'Key Data'!$B$197) -> 7509.553661 | AB92: =($C$18*'Key Data'!$B$28/1000)*(1-'Key Data'!$B$197) -> 11080.21811
B93: PM (kg/year) (PM 2.5) | C93: ='Key Data'!B38*C18/1000 -> 18.59721065 | D93: =C18*'Key Data'!$B$37/1000 -> 235.5646683 | E93: =C18*'Key Data'!$B$35/1000 -> 557.9163195 | G93: =C18*'Key Data'!$B$38/1000 -> 18.59721065 | H93: =C18*'Key Data'!$B$41/1000 -> 164.8952678 | J93: PM (kg/year) | K93: =C18*'Key Data'!$B$113/1000 -> 235.5646683 | L93: =C18*'Key Data'!$B$114/1000 -> 557.9163195 | N93: PM (kg/year) | O93: =D93*(1-'Key Data'!$B$112) -> 23.55646683 | P93: =E93*(1-'Key Data'!$B$112) -> 55.79163195 | R93: PM 2.5 (kg/year) | S93: =C93 -> 18.59721065 | T93: 0 | V93: PM (kg/year) | W93: =D93*(1-'Key Data'!$B$183) -> 117.7823341 | X93: =E93*(1-'Key Data'!$B$183) -> 278.9581598 | Z93: PM (kg/year) | AA93: =($C$18*'Key Data'!$B$37/1000)*(1-('Key Data'!$B$198)) -> 164.8952678 | AB93: =($C$18*'Key Data'!$B$35/1000)*(1-('Key Data'!$B$198)) -> 390.5414237
B94: Methane slip (tonne CO2 eq/year) | C94: 0 | D94: 0 | E94: 0 | G94: =C18*'Key Data'!$B$27/1000*'Key Data'!$B$15/1000 -> 138.8591729 | H94: =C18*'Key Data'!$B$27/1000*'Key Data'!$B$15/1000 -> 138.8591729
B95: Climate costs (Euro/year) | C95: =(C94+C91)*'Key Data'!$B$58 -> 168244.9322 | D95: =(D94+D91)*'Key Data'!$B$58 -> 176657.1789 | E95: =(E94+E91)*'Key Data'!$B$58 -> 174974.7295 | G95: =(G94+G91)*'Key Data'!$B$58 -> 181445.3177 | H95: =(H94+H91)*'Key Data'!$B$58 -> 181948.4862 | J95: Climate costs (Euro/year) | K95: =(K94+K91)*'Key Data'!$B$58 -> 176657.1789 | L95: =(L94+L91)*'Key Data'!$B$58 -> 174974.7295 | N95: Climate costs (Euro/year) CCNR 1 or Older | O95: =(O94+O91)*'Key Data'!$B$58 -> 176657.1789 | P95: =(P94+P91)*'Key Data'!$B$58 -> 174974.7295 | R95: Climate costs (Euro/year) | S95: =(S94+S91)*'Key Data'!$B$58 -> 168244.9322 | T95: =(T94+T91)*'Key Data'!$B$58 -> 20771.21008 | V95: Climate costs (Euro/year) CCNR2+0 | W95: =(W94+W91)*'Key Data'!$B$58 -> 167824.3199 | X95: =(X94+X91)*'Key Data'!$B$58 -> 166225.9931 | Z95: Climate costs (Euro/year) | AA95: =(AA94+AA91)*'Key Data'!$B$58 -> 176657.1789 | AB95: =(AB94+AB91)*'Key Data'!$B$58 -> 174974.7295
B96: Nox (Euro/ year) | C96: =('Key Data'!$B$63*C92) -> 44470.55003 | D96: =('Key Data'!$B$63*D92) -> 167199.3306 | E96: =('Key Data'!$B$63*E92) -> 246699.7552 | G96: =('Key Data'!$B$63*G92) -> 44470.55003 | H96: =('Key Data'!$B$63*H92) -> 96975.61172 | J96: Nox (Euro/ year) | K96: =('Key Data'!$B$63*K92) -> 50159.79917 | L96: =('Key Data'!$B$63*L92) -> 74009.92656 | N96: Nox (Euro/ year) | O96: =O92*'Key Data'!$B$63 -> 50159.79917 | P96: =('Key Data'!$B$63*P92) -> 74009.92656 | R96: Nox (Euro/ year) | S96: =('Key Data'!$B$63*S92) -> 44470.55003 | T96: 0 | V96: Nox (Euro/ year) | W96: =W92*'Key Data'!$B$63 -> 142119.431 | X96: =X92*'Key Data'!$B$63 -> 209694.7919 | Z96: Nox (Euro/ year) | AA96: =AA92*'Key Data'!$B$63 -> 150479.3975 | AB96: =AB92*'Key Data'!$B$63 -> 222029.7797
B97: PM (Euro/year) (Based on PM2.5 cost) | C97: =('Key Data'!$B$64*C93) -> 2289.905019 | D97: =('Key Data'!$B$64*D93) -> 29005.46358 | E97: =('Key Data'!$B$64*E93) -> 68697.15058 | G97: =('Key Data'!$B$64*G93) -> 2289.905019 | H97: =('Key Data'!$B$64*H93) -> 20303.82451 | J97: PM (Euro/year) CCNR 2 | K97: =('Key Data'!$B$64*K93) -> 29005.46358 | L97: =('Key Data'!$B$64*L93) -> 68697.15058 | N97: PM (Euro/year) | O97: =('Key Data'!$B$64*O93) -> 2900.546358 | P97: =('Key Data'!$B$64*P93) -> 6869.715058 | R97: PM (Euro/year) (Based on PM 2.5 Cost) | S97: =('Key Data'!$B$64*S93) -> 2289.905019 | T97: 0 | V97: PM (Euro/year) | W97: =('Key Data'!$B$64*W93) -> 14502.73179 | X97: =('Key Data'!$B$64*X93) -> 34348.57529 | Z97: PM (Euro/year) CCR2 | AA97: =('Key Data'!$B$64*AA93) -> 20303.82451 | AB97: =('Key Data'!$B$64*AB93) -> 48088.00541
A98: per year | B98: Port dues (Savings per annum) in euros | C98: =C46*'Key Data'!$B$65/100 -> 1897 | D98: 0 | E98: 0 | G98: =C46*'Key Data'!$B$65/100 -> 1897 | H98: =C46*'Key Data'!$B$65/100 -> 1897 | J98: Port dues (Savings per annum) (CCNR1 & CCNR2) | K98: =G98 -> 1897 | L98: =H98 -> 1897 | N98: Port dues (Savings per annum) ( SCR CCNR1 & CCNR2) + DPF (High and medium speed engines) | O98: =K98 -> 1897 | P98: =L98 -> 1897 | Q98: per year | R98: Port dues (Savings per annum) Assumed | S98: =O98 -> 1897 | T98: =P98 -> 1897 | U98: per year | V98: Port dues (Savings per annum) | W98: =T98 -> 1897 | X98: =W98 -> 1897 | Y98: per year | Z98: Port dues (Savings per annum) | AA98: =W98 -> 1897 | AB98: =X98 -> 1897
A99: NPV (Tank above deck/ new) | B99: Total Investment (Tank above deck) 2020 | C99: =C73 -> 609082.0143 | D99: =D73 -> 0 | E99: =E73 -> 0 | G99: =G73 -> 1923862 | H99: =H73 -> 996097 | J99: Total Investment (Tank above deck) 2020 | K99: =K73 -> 87031.60714 | L99: =K73 -> 87031.60714 | M99: NPV | N99: Total Investment (Tank above deck) 2020 | O99: =O73 -> 161784.6071 | P99: =O73 -> 161784.6071 | Q99: NPV | R99: Total Investment (Tank above deck) 2020 | S99: =S73 -> 1099547.54 | T99: =T73 -> 2732989.239 | U99: NPV | V99: Total Investment (Tank above deck) 2020 | W99: =W73 -> 148636.8331 | X99: =W99 -> 148636.8331 | Y99: NPV | Z99: Total Investment (Tank above deck) 2020 | AA99: =D99 -> 0 | AB99: 0
B100: Revision costs in 2020 | C100: =C79 -> 0 | D100: =D79 -> 171826.6071 | E100: =E79 -> 171826.6071 | G100: =G79 -> 0 | H100: =H79 -> 0 | I100: NPV | J100: Revision costs in 2020 | K100: =K79 -> 171826.6071 | L100: =K79 -> 171826.6071 | N100: Revision costs in 2020 | O100: =O79 -> 171826.6071 | P100: =O79 -> 171826.6071 | R100: Revision costs in 2020 | S100: 0 | T100: 0 | V100: Revision costs in 2020 | W100: =W79 -> 171826.6071 | X100: =W100 -> 171826.6071 | Z100: Revision costs in 2020 | AA100: 171826.6071 | AB100: 171826.6071
B101: Investments later in assessment period | C101: =+C75+C76+C77+C78 -> 0 | D101: =+D75+D76+D77+D78 -> 100782 | E101: =+E75+E76+E77+E78 -> 100782 | G101: =+G75+G76+G77+G78 -> 0 | H101: =H75+H76+H77+H78 -> 100782 | J101: Investments later in assessment period | K101: =K75+K76+K77+K78 -> 100782 | L101: =K101 -> 100782 | N101: Investments later in assessment period | O101: =O75+O76+O77+O78 -> 100782 | P101: =O101 -> 100782 | R101: Investments later in assessment period | S101: =S75+S76+S77+S78 -> 0 | T101: =T75+T76+T77+T78 -> 547438.6036 | V101: Investments later in assessment period | W101: =SUM(W75:W78) -> 100782 | X101: 100782 | Z101: Investments later in assessment period | AA101: 100782 | AB101: 100782
B102: Revision costs during assesment period | C102: =C80+C74 -> 0 | D102: =D80+D74 -> 0 | E102: =E80+E74 -> 0 | G102: =G80+G74 -> 0 | H102: 0 | J102: Revision costs during assesment period (incl SCR ) | K102: =K80+K74 -> 0 | L102: =K80+K74 -> 0 | N102: Revision costs during assesment period (incl SCR+DPF ) | O102: =O74+O80 -> 0 | P102: =O74+O80 -> 0 | R102: Revision costs during assesment period | S102: =S80+S74 -> 0 | T102: =T80+T74 -> 0 | V102: Revision costs during assesment period | W102: =W80+W74 -> 0 | X102: 0 | Z102: Revision costs during assesment period | AA102: 0 | AB102: 0
B103: Fuel (+ Urea) | C103: =-PV('Key Data'!$B$66,C$31,C82+C84) -> 2027197.705 | D103: =-PV('Key Data'!$B$66,C31,D82)-PV('Key Data'!$B$66,(C31-'CBA figures'!C29/2),D84/'Key Data'!B76^('CBA figures'!C29/2)) -> 2088289.849 | E103: =-PV('Key Data'!$B$66,C$31,E82)-PV('Key Data'!$B$66,(C31-'CBA figures'!C29/2),E84/'Key Data'!B76^('CBA figures'!C29/2)) -> 2068401.374 | G103: =-PV('Key Data'!$B$66,C$31,G82+G84) -> 1488015.134 | H103: =-PV('Key Data'!$B$66,C$31,(H82)) -> 1513113.382 | J103: Fuel (+ Urea) | K103: =-PV('Key Data'!$B$66,C$31,(K82+K84)) -> 2128557.59 | L103: =-PV('Key Data'!$B$66,C$31,(L82+L84)) -> 2143184.322 | N103: Fuel (+ Urea) | O103: =-PV('Key Data'!$B$66,C$31,(O82+O84)) -> 2128557.59 | P103: =-PV('Key Data'!$B$66,C$31,(P82+P84)) -> 2143184.322 | R103: Fuel (+ Urea) | S103: =-PV('Key Data'!$B$66,C$31,S82+S84) -> 2027197.705 | T103: =-PV('Key Data'!$B$66,C$31,T82+T84) -> 842400.3426 | V103: Fuel (+ Urea) | W103: =-PV('Key Data'!$B$66,C31,W82)-PV('Key Data'!$B$66,(C31-'CBA figures'!C29/2),D84/'Key Data'!B76^('CBA figures'!C29/2)) -> 1983875.356 | X103: =W103 -> 1983875.356 | Z103: Fuel (+ Urea) | AA103: =-PV('Key Data'!$B$66,$C31,AA82)-PV('Key Data'!$B$66,(C31-C29/2),D84/'Key Data'!$B$76^(C29/2)) -> 2298427.017 | AB103: =-PV('Key Data'!$B$66,$C31,AA82)-PV('Key Data'!$B$66,($C31-C29/2),E84/'Key Data'!B76^(C29/2)) -> 2298427.017
B104: Other operational costs | C104: =-PV('Key Data'!$B$66,C$31,(C85+C88+C89+C90)) -> 528899.8328 | D104: =-PV('Key Data'!$B$66,C$31,(D85+D88+D89+D90)) -> 502965.7166 | E104: =-PV('Key Data'!$B$66,C$31,(E85+E88+E89+E90)) -> 500405.7079 | G104: =-PV('Key Data'!$B$66,C$31,(G85+G88+G89+G90)) -> 272898.9622 | H104: =-PV('Key Data'!$B$66,C$31,(SUM(H85:H90))) -> 272898.9622 | J104: Other operational costs | K104: =-PV('Key Data'!$B$66,C$31,(K89+K88+K85+K90)) -> 509443.6014 | L104: =-PV('Key Data'!$B$66,C$31,(K89+K88+K85+K90)) -> 509443.6014 | N104: Other operational costs | O104: =-PV('Key Data'!$B$66,C$31,(O89+O88+O85+O90)) -> 541699.8763 | P104: =-PV('Key Data'!$B$66,C$31,(P89+P88+P85+P90)) -> 539139.8676 | R104: Other operational costs | S104: =-PV('Key Data'!$B$66,C$31,S88+S89+S90+S85) -> 453454.5367 | T104: =-PV('Key Data'!$B$66,C$31,T88+T89+T90+T85) -> 197453.6661 | V104: Other operational costs | W104: =-PV('Key Data'!$B$66,C$31,SUM(W85:W90)) -> 554752.1683 | X104: =W104 -> 554752.1683 | Z104: Other operational costs | AA104: =D104 -> 502965.7166 | AB104: =E104 -> 500405.7079
B105: Extra Cost Tank under deck | D105: =D67-D66 -> 0 | E105: =E67-E66 -> 0 | G105: =G67-G66 -> 476500 | H105: =H67-H66 -> 476500 | Z105: Extra Cost Tank under deck | AA105: 0 | AB105: =AA105 -> 0
B106: Total costs | C106: =SUM(C99:C105) -> 3165179.552 | D106: =SUM(D100:D105) -> 2863864.173 | E106: =SUM(E100:E105) -> 2841415.689 | G106: =SUM(G99:G105) -> 4161276.096 | H106: =SUM(H99:H105) -> 3359391.344 | J106: Total costs | K106: =SUM(K99:K104) -> 2997641.406 | L106: =SUM(L99:L104) -> 3012268.138 | N106: Total costs | O106: =SUM(O99:O104) -> 3104650.681 | P106: =SUM(P99:P104) -> 3116717.404 | R106: Total costs | S106: =SUM(S99:S104) -> 3580199.781 | T106: =SUM(T99:T104) -> 4320281.851 | V106: Total costs | W106: =SUM(W99:W104) -> 2959872.965 | X106: =W106 -> 2959872.965 | Z106: Total costs | AA106: =SUM(AA99:AA105) -> 3074001.34 | AB106: =SUM(AB99:AB105) -> 3071441.332
B107: Enviromental Costs: CO2 | C107: =-PV('Key Data'!$B$62,C$31,(C95)) -> 1870612.34 | D107: =-PV('Key Data'!$B$62,C$31,(D95)) -> 1964142.957 | E107: =-PV('Key Data'!$B$62,C$31,(E95)) -> 1945436.834 | G107: =-PV('Key Data'!$B$62,C$31,(G95)) -> 2017379.34 | H107: =-PV('Key Data'!$B$62,C$31,(H95)) -> 2022973.762 | J107: Enviromental Costs: CO2 | K107: =-PV('Key Data'!$B$62,C$31,(K95)) -> 1964142.957 | L107: =-PV('Key Data'!$B$62,C$31,(L95)) -> 1945436.834 | N107: Enviromental Costs: CO2 | O107: =-PV('Key Data'!$B$62,C$31,(O95)) -> 1964142.957 | P107: =-PV('Key Data'!$B$62,C$31,(P95)) -> 1945436.834 | R107: Enviromental Costs: CO2 | S107: =-PV('Key Data'!$B$62,$C$31,(S95)) -> 1870612.34 | T107: =-PV('Key Data'!$B$62,$C$31,(T95)) -> 230942.3611 | V107: Enviromental Costs: CO2 | W107: =-PV('Key Data'!$B$62,C$31,(W95)) -> 1865935.809 | X107: =-PV('Key Data'!$B$62,C$31,(W95)) -> 1865935.809 | Z107: Enviromental Costs: CO2 | AA107: =-PV('Key Data'!$B$62,C$31,(AA95)) -> 1964142.957 | AB107: =-PV('Key Data'!$B$62,C$31,(AA95)) -> 1964142.957
B108: Enviromental Costs: Nox | C108: =-PV('Key Data'!$B$66,C$31,(C96)) -> 494440.8045 | D108: =-PV('Key Data'!$B$66,C$31,(D96)) -> 1858986.936 | E108: =-PV('Key Data'!$B$66,C$31,(E96)) -> 2742903.458 | G108: =-PV('Key Data'!$B$66,C$31,(G96)) -> 494440.8045 | H108: =-PV('Key Data'!$B$66,C$31,(H96)) -> 1078212.423 | J108: Enviromental Costs: Nox | K108: =-PV('Key Data'!$B$66,C$31,(K96)) -> 557696.0807 | L108: =-PV('Key Data'!$B$66,C$31,(K96)) -> 557696.0807 | N108: Enviromental Costs: Nox | O108: =-PV('Key Data'!$B$66,C$31,(O96)) -> 557696.0807 | P108: =-PV('Key Data'!$B$66,C$31,(O96)) -> 557696.0807 | R108: Enviromental Costs: Nox | S108: =-PV('Key Data'!$B$66,$C$31,(S96)) -> 494440.8045 | T108: =-PV('Key Data'!$B$66,$C$31,(T96)) -> 0 | V108: Enviromental Costs: Nox | W108: =-PV('Key Data'!$B$66,C$31,(W96)) -> 1580138.895 | X108: =-PV('Key Data'!$B$66,C$31,(X96)) -> 2331467.939 | Z108: Enviromental Costs: Nox | AA108: =-PV('Key Data'!$B$66,C$31,(AA96)) -> 1673088.242 | AB108: =-PV('Key Data'!$B$66,C$31,(AB96)) -> 2468613.112
B109: Enviromental Costs: PM | C109: =-PV('Key Data'!$B$66,C$31,(C97)) -> 25460.05119 | D109: =-PV('Key Data'!$B$66,C$31,(D97)) -> 322493.9817 | E109: =-PV('Key Data'!$B$66,C$31,(E97)) -> 763801.5357 | G109: =-PV('Key Data'!$B$66,C$31,(G97)) -> 25460.05119 | H109: =-PV('Key Data'!$B$66,C$31,(H97)) -> 225745.7872 | J109: Enviromental Costs: PM | K109: =-PV('Key Data'!$B$66,C$31,(K97)) -> 322493.9817 | L109: =-PV('Key Data'!$B$66,C$31,(L97)) -> 763801.5357 | N109: Enviromental Costs: PM | O109: =-PV('Key Data'!$B$66,C$31,(O97)) -> 32249.39817 | P109: =-PV('Key Data'!$B$66,C$31,(O97)) -> 32249.39817 | R109: Enviromental Costs: PM | S109: =-PV('Key Data'!$B$66,C$31,(S97)) -> 25460.05119 | T109: =-PV('Key Data'!$B$66,C$31,(T97)) -> 0 | V109: Enviromental Costs: PM | W109: =-PV('Key Data'!$B$66,C$31,(W97)) -> 161246.9909 | X109: =-PV('Key Data'!$B$66,C$31,(X97)) -> 381900.7678 | Z109: Enviromental Costs: PM | AA109: =-PV('Key Data'!$B$66,C$31,(AA97)) -> 225745.7872 | AB109: =-PV('Key Data'!$B$66,C$31,(AB97)) -> 534661.075
B110: Total Cost (Incl. environmental costs) | C110: =SUM(C106:C109) -> 5555692.748 | D110: =SUM(D106:D109) -> 7009488.047 | E110: =SUM(E106:E109) -> 8293557.516 | G110: =SUM(G106:G109) -> 6698556.291 | H110: =SUM(H106:H109) -> 6686323.316 | I110: Total | J110: Total | K110: =SUM(K106:K109) -> 5841974.425 | L110: =SUM(L106:L109) -> 6279202.588 | N110: Total Cost (Incl. environmental costs) | O110: =SUM(O106:O109) -> 5658739.117 | P110: =SUM(P106:P109) -> 5652099.716 | R110: Total Cost (Incl. environmental costs) | S110: =SUM(S106:S109) -> 5970712.977 | T110: =SUM(T106:T109) -> 4551224.212 | V110: Total Cost (Incl. environmental costs) | W110: =SUM(W106:W109) -> 6567194.66 | X110: =SUM(X106:X109) -> 7539177.481 | Z110: Total Cost (Incl. environmental costs) | AA110: =SUM(AA106:AA109) -> 6936978.327 | AB110: =SUM(AB106:AB109) -> 8038858.476
R111: Cost advantage in 2030 when battery electric is needed | S111: =-('CBA figures'!S63+'CBA figures'!S64+'CBA figures'!S68/2)/'Key Data'!B76^'CBA figures'!C31 -> -367140.4727 | T111: =-('CBA figures'!T63+'CBA figures'!T64+'CBA figures'!T68/2)/'Key Data'!B76^'CBA figures'!C31 -> -367140.4727
B112: Residual value when only scrap value | C112: =-C70/'Key Data'!$B$76^'CBA figures'!$D$42 -> -30049.18246 | D112: =-D70/'Key Data'!$B$76^'CBA figures'!$D$42 -> -18653.5557 | E112: =-E70/'Key Data'!$B$76^'CBA figures'!$D$42 -> -18653.5557 | G112: =-G70/'Key Data'!$B$76^'CBA figures'!$D$42 -> -63509.21039 | H112: =-H70/'Key Data'!$B$76^'CBA figures'!$D$42 -> -11993.71326 | K112: =-K70/'Key Data'!$B$76^'CBA figures'!$D$42 -> 0 | L112: =-L70/'Key Data'!$B$76^'CBA figures'!$D$42 -> 0 | O112: =-O70/'Key Data'!$B$76^'CBA figures'!$D$42 -> 0 | P112: =-P70/'Key Data'!$B$76^'CBA figures'!$D$42 -> 0 | S112: =-S69/'Key Data'!$B$76^'CBA figures'!$D$42 -> -24039.34597 | W112: =-W70/'Key Data'!$B$76^'CBA figures'!$D$42 -> -2141.437047 | X112: =-X70/'Key Data'!$B$76^'CBA figures'!$D$42 -> -2141.437047 | AA112: =D112 -> -18653.5557 | AB112: =E112 -> -18653.5557
B113: Investments later in assessment period when only scrap value | C113: =C101-C78+C112 -> -30049.18246 | D113: =D101-D78+D112 -> 82128.4443 | E113: =E101-E78+E112 -> 82128.4443 | G113: =G101-G78+G112 -> -63509.21039 | H113: =H101-H78+H112 -> 88788.28674 | K113: =D113 -> 82128.4443 | L113: =E113 -> 82128.4443 | O113: =D113 -> 82128.4443 | P113: =E113 -> 82128.4443 | S113: =S101-S78+S112 -> -24039.34597 | W113: =W101-W78+W112 -> 98640.56295 | X113: =W113 -> 98640.56295 | AA113: =D113 -> 82128.4443 | AB113: =E113 -> 82128.4443
B115: € per ton environmental costs | C115: =SUM(C107:C109)/C106 -> 0.7552535826 | D115: =SUM(D107:D109)/D106 -> 1.447563021 | E115: =SUM(E107:E109)/E106 -> 1.918811756 | G115: =SUM(G107:G109)/G106 -> 0.6097360851 | H115: =SUM(H107:H109)/H106 -> 0.9903377223 | K115: =SUM(K107:K109)/K106 -> 0.9488569961 | L115: =SUM(L107:L109)/L106 -> 1.084543042 | O115: =SUM(O107:O109)/O106 -> 0.8226653169 | P115: =SUM(P107:P109)/P106 -> 0.8134784083 | S115: =SUM(S107:S109)/S106 -> 0.6677038551 | T115: =SUM(T107:T109)/T106 -> 0.05345539228 | W115: =SUM(W107:W109)/W106 -> 1.218742067 | X115: =SUM(X107:X109)/X106 -> 1.547128735 | AA115: =SUM(AA107:AA109)/AA106 -> 1.256660801 | AB115: =SUM(AB107:AB109)/AB106 -> 1.617291886
B116: € per ton Co2 | C116: =C$106/($D$91-C91) -> 63036.42898 | D116: 0 | E116: 0 | G116: =G$106/($D$91-G91) -> 37733.99965 | H116: =H$106/($D$91-H91) -> 31315.44672 | K116: 0 | L116: 0 | O116: 0 | P116: 0 | S116: =S$106/($D$91-S91) -> 71301.80312 | T116: =T$106/($D$91-T91) -> 4643.124205 | W116: =W$106/($D$91-W91) -> 56140.59664 | X116: 0 | AA116: 0 | AB116: 0
B117: € per kg NOx | C117: =C$106/($D$92-C92) -> 516.7908922 | D117: 0 | E117: 0 | G117: =G$106/($D$92-G92) -> 679.4273598 | H117: =H$106/($D$92-H92) -> 958.6050067 | K117: =K$106/($D$92-K92) -> 513.2276234 | L117: 0 | O117: =O$106/($D$92-O92) -> 531.5487328 | P117: 0 | S117: =S$106/($D$92-S92) -> 584.552822 | T117: =T$106/($D$92-T92) -> 517.7742702 | W117: =W$106/($D$92-W92) -> 2364.885929 | X117: 0 | AA117: =AA$106/($D$92-AA92) -> 3684.108712 | AB117: 0

Sheet Results (hidden)
B3: Cost factors | C3: CCNR2 revision | D3: CCNRO revision | E3: Stage V | F3: LNG mono fuel | G3: LNG Dual fuel refit | H3: SCR CCNR2 | I3: SCR CCNR0 | J3: SCR+ DPF CCNR2 | K3: SCR+DPF CCNR0 | L3: Diesel electric | M3: Battery electric | N3: FWE CCNR2 | O3: FWE CCNR0 | P3: GTL CCNR2 | Q3: GTL CCNR0 | T3: CCR 2 | U3: =C3 -> CCNR2 revision | V3: =E3 -> Stage V | W3: =F3 -> LNG mono fuel | X3: =G3 -> LNG Dual fuel refit | Y3: =H3 -> SCR CCNR2 | Z3: =J3 -> SCR+ DPF CCNR2 | AA3: =L3 -> Diesel electric | AB3: =M3 -> Battery electric | AC3: =N3 -> FWE CCNR2 | AD3: =P3 -> GTL CCNR2 | AF3: CCR 0 | AG3: =D3 -> CCNRO revision | AH3: =E3 -> Stage V | AI3: =F3 -> LNG mono fuel | AJ3: =G3 -> LNG Dual fuel refit | AK3: =I3 -> SCR CCNR0 | AL3: =K3 -> SCR+DPF CCNR0 | AM3: =L3 -> Diesel electric | AN3: =M3 -> Battery electric | AO3: =O3 -> FWE CCNR0 | AP3: =Q3 -> GTL CCNR0
A4: ='Ship segment (Data)'!$Z$5&"&"&'Ship segment (Data)'!$AA$5 -> Motor vessels dry cargo 110 m ship&normal fuel use | B4: Investments in start year | C4: ='CBA figures'!D99 -> 0 | D4: ='CBA figures'!E99 -> 0 | E4: ='CBA figures'!C99 -> 609082.0143 | F4: ='CBA figures'!G99 -> 1923862 | G4: ='CBA figures'!H99 -> 996097 | H4: ='CBA figures'!K99 -> 87031.60714 | I4: ='CBA figures'!L99 -> 87031.60714 | J4: ='CBA figures'!O99 -> 161784.6071 | K4: ='CBA figures'!P99 -> 161784.6071 | L4: ='CBA figures'!S99 -> 1099547.54 | M4: =IF('Ship segment (Data)'!$AC$5="nee",'CBA figures'!T99*10^3,'CBA figures'!T99) -> 2732989.239 | N4: ='CBA figures'!W99 -> 148636.8331 | O4: ='CBA figures'!X99 -> 148636.8331 | P4: ='CBA figures'!AA99 -> 0 | Q4: ='CBA figures'!AB99 -> 0 | T4: =B4 -> Investments in start year | U4: 0 | V4: 609082.0143 | W4: 1923862 | X4: 996097 | Y4: 87031.60714 | Z4: 161784.6071 | AA4: 1099547.54 | AB4: 2732989.239 | AC4: 148636.8331 | AD4: 0 | AF4: =B4 -> Investments in start year | AG4: 0 | AH4: 609082.0143 | AI4: 1923862 | AJ4: 996097 | AK4: 87031.60714 | AL4: 161784.6071 | AM4: 1099547.54 | AN4: 2732989.239 | AO4: 148636.8331 | AP4: 0
A5: ='Ship segment (Data)'!$Z$5&"&"&'Ship segment (Data)'!$AA$5 -> Motor vessels dry cargo 110 m ship&normal fuel use | B5: Revision costs in start year | C5: ='CBA figures'!D100 -> 171826.6071 | D5: ='CBA figures'!E100 -> 171826.6071 | E5: ='CBA figures'!C100 -> 0 | F5: ='CBA figures'!G100 -> 0 | G5: ='CBA figures'!H100 -> 0 | H5: ='CBA figures'!K100 -> 171826.6071 | I5: ='CBA figures'!L100 -> 171826.6071 | J5: ='CBA figures'!O100 -> 171826.6071 | K5: ='CBA figures'!P100 -> 171826.6071 | L5: ='CBA figures'!S100 -> 0 | M5: ='CBA figures'!T100 -> 0 | N5: ='CBA figures'!W100 -> 171826.6071 | O5: ='CBA figures'!X100 -> 171826.6071 | P5: ='CBA figures'!AA100 -> 171826.6071 | Q5: ='CBA figures'!AB100 -> 171826.6071 | T5: Revision costs in start year | U5: 171826.6071 | V5: 0 | W5: 0 | X5: 0 | Y5: 171826.6071 | Z5: 171826.6071 | AA5: 0 | AB5: 0 | AC5: 171826.6071 | AD5: 171826.6071 | AF5: Revision costs in start year | AG5: 171826.6071 | AH5: 0 | AI5: 0 | AJ5: 0 | AK5: 171826.6071 | AL5: 171826.6071 | AM5: 0 | AN5: 0 | AO5: 171826.6071 | AP5: 171826.6071
A6: ='Ship segment (Data)'!$Z$5&"&"&'Ship segment (Data)'!$AA$5 -> Motor vessels dry cargo 110 m ship&normal fuel use | B6: Investments in assessment period | C6: =IF($S$44="YES",'CBA figures'!D101,'CBA figures'!D113) -> 100782 | D6: =IF($S$44="YES",'CBA figures'!E101,'CBA figures'!E113) -> 100782 | E6: =IF($S$44="YES",'CBA figures'!C101,'CBA figures'!C113) -> 0 | F6: =IF($S$44="YES",'CBA figures'!G101,'CBA figures'!G113) -> 0 | G6: =IF($S$44="YES",'CBA figures'!H101,'CBA figures'!H113) -> 100782 | H6: =IF($S$44="YES",'CBA figures'!K101,'CBA figures'!K113) -> 100782 | I6: =IF($S$44="YES",'CBA figures'!L101,'CBA figures'!L113) -> 100782 | J6: =IF($S$44="YES",'CBA figures'!O101,'CBA figures'!O113) -> 100782 | K6: =IF($S$44="YES",'CBA figures'!P101,'CBA figures'!P113) -> 100782 | L6: =IF($S$44="YES",'CBA figures'!S101,'CBA figures'!S113) -> 0 | N6: =IF($S$44="YES",'CBA figures'!W101,'CBA figures'!W113) -> 100782 | O6: =IF($S$44="YES",'CBA figures'!X101,'CBA figures'!X113) -> 100782 | P6: =IF($S$44="YES",'CBA figures'!AA101,'CBA figures'!AA113) -> 100782 | Q6: =IF($S$44="YES",'CBA figures'!AB101,'CBA figures'!AB113) -> 100782 | T6: =B6 -> Investments in assessment period | U6: 100782 | V6: =E6 -> 0 | W6: 0 | X6: 100782 | Y6: 100782 | Z6: =J6 -> 100782 | AA6: =L6 -> 0 | AB6: 0 | AC6: 100782 | AD6: 100782 | AF6: Investments in assessment period | AG6: 100782 | AH6: 0 | AI6: 0 | AJ6: 100782 | AK6: 100782 | AL6: 100782 | AM6: 0 | AN6: 0 | AO6: 100782 | AP6: 100782
A7: ='Ship segment (Data)'!$Z$5&"&"&'Ship segment (Data)'!$AA$5 -> Motor vessels dry cargo 110 m ship&normal fuel use | B7: Revision costs in assesment period (incl SCR/ DPF) | C7: ='CBA figures'!D102 -> 0 | D7: ='CBA figures'!E102 -> 0 | E7: ='CBA figures'!C102 -> 0 | F7: ='CBA figures'!G102 -> 0 | G7: ='CBA figures'!H102 -> 0 | H7: ='CBA figures'!K102 -> 0 | I7: ='CBA figures'!L102 -> 0 | J7: ='CBA figures'!O102 -> 0 | K7: ='CBA figures'!P102 -> 0 | L7: ='CBA figures'!S102 -> 0 | M7: ='CBA figures'!T102 -> 0 | N7: ='CBA figures'!W102 -> 0 | O7: ='CBA figures'!X102 -> 0 | P7: ='CBA figures'!AA102 -> 0 | Q7: ='CBA figures'!AB102 -> 0 | T7: Revision costs in assesment period (incl SCR/ DPF) | U7: 0 | V7: 0 | W7: 0 | X7: 0 | Y7: 0 | Z7: 0 | AA7: 0 | AB7: 0 | AC7: 0 | AD7: 0 | AF7: Revision costs in assesment period (incl SCR/ DPF) | AG7: 0 | AH7: 0 | AI7: 0 | AJ7: 0 | AK7: 0 | AL7: 0 | AM7: 0 | AN7: 0 | AO7: 0 | AP7: 0
A8: ='Ship segment (Data)'!$Z$5&"&"&'Ship segment (Data)'!$AA$5 -> Motor vessels dry cargo 110 m ship&normal fuel use | B8: Fuel (+ Urea) | C8: ='CBA figures'!D103 -> 2088289.849 | D8: ='CBA figures'!E103 -> 2068401.374 | E8: ='CBA figures'!C103 -> 2027197.705 | F8: ='CBA figures'!G103 -> 1488015.134 | G8: ='CBA figures'!H103 -> 1513113.382 | H8: ='CBA figures'!K103 -> 2128557.59 | I8: ='CBA figures'!L103 -> 2143184.322 | J8: ='CBA figures'!O103 -> 2128557.59 | K8: ='CBA figures'!P103 -> 2143184.322 | L8: ='CBA figures'!S103 -> 2027197.705 | M8: ='CBA figures'!T103 -> 842400.3426 | N8: ='CBA figures'!W103 -> 1983875.356 | O8: ='CBA figures'!X103 -> 1983875.356 | P8: ='CBA figures'!AA103 -> 2298427.017 | Q8: ='CBA figures'!AB103 -> 2298427.017 | T8: Fuel (+ Urea) | U8: 2088289.849 | V8: 2027197.705 | W8: 1488015.134 | X8: 1513113.382 | Y8: 2128557.59 | Z8: 2128557.59 | AA8: 2027197.705 | AB8: 842400.3426 | AC8: 1983875.356 | AD8: 2298427.017 | AF8: Fuel (+ Urea) | AG8: 2068401.374 | AH8: 2027197.705 | AI8: 1488015.134 | AJ8: 1513113.382 | AK8: 2143184.322 | AL8: 2143184.322 | AM8: 2027197.705 | AN8: 842400.3426 | AO8: 1983875.356 | AP8: 2298427.017
A9: ='Ship segment (Data)'!$Z$5&"&"&'Ship segment (Data)'!$AA$5 -> Motor vessels dry cargo 110 m ship&normal fuel use | B9: Other operational costs | C9: ='CBA figures'!D104 -> 502965.7166 | D9: ='CBA figures'!E104 -> 500405.7079 | E9: ='CBA figures'!C104 -> 528899.8328 | F9: ='CBA figures'!G104 -> 272898.9622 | G9: ='CBA figures'!H104 -> 272898.9622 | H9: ='CBA figures'!K104 -> 509443.6014 | I9: ='CBA figures'!L104 -> 509443.6014 | J9: ='CBA figures'!O104 -> 541699.8763 | K9: ='CBA figures'!P104 -> 539139.8676 | L9: ='CBA figures'!S104 -> 453454.5367 | M9: ='CBA figures'!T104 -> 197453.6661 | N9: ='CBA figures'!W104 -> 554752.1683 | O9: ='CBA figures'!X104 -> 554752.1683 | P9: ='CBA figures'!AA104 -> 502965.7166 | Q9: ='CBA figures'!AB104 -> 500405.7079 | T9: Other operational costs | U9: 502965.7166 | V9: 528899.8328 | W9: 272898.9622 | X9: 272898.9622 | Y9: 509443.6014 | Z9: 541699.8763 | AA9: 453454.5367 | AB9: 197453.6661 | AC9: 554752.1683 | AD9: 502965.7166 | AF9: Other operational costs | AG9: 500405.7079 | AH9: 528899.8328 | AI9: 272898.9622 | AJ9: 272898.9622 | AK9: 509443.6014 | AL9: 539139.8676 | AM9: 453454.5367 | AN9: 197453.6661 | AO9: 554752.1683 | AP9: 500405.7079
A10: ='Ship segment (Data)'!$Z$5&"&"&'Ship segment (Data)'!$AA$5 -> Motor vessels dry cargo 110 m ship&normal fuel use | B10: Extra Cost Tank under deck | C10: ='CBA figures'!D105 -> 0 | D10: ='CBA figures'!E105 -> 0 | E10: ='CBA figures'!C105 -> 0 | F10: ='CBA figures'!G105 -> 476500 | G10: ='CBA figures'!H105 -> 476500 | M10: ='CBA figures'!T105 -> 0 | N10: ='CBA figures'!W105 -> 0 | O10: ='CBA figures'!X105 -> 0 | P10: ='CBA figures'!AA105 -> 0 | Q10: ='CBA figures'!AB105 -> 0 | T10: Extra Cost Tank under deck | U10: 0 | V10: 0 | W10: 476500 | X10: 476500 | Y10: 0 | Z10: 0 | AA10: 0 | AB10: 0 | AC10: 0 | AD10: 0 | AF10: Extra Cost Tank under deck | AG10: 0 | AH10: 0 | AI10: 476500 | AJ10: 476500 | AK10: 0 | AL10: 0 | AM10: 0 | AN10: 0 | AO10: 0 | AP10: 0
A11: ='Ship segment (Data)'!$Z$5&"&"&'Ship segment (Data)'!$AA$5 -> Motor vessels dry cargo 110 m ship&normal fuel use | B11: Environmental Costs: CO2 | C11: ='CBA figures'!D107 -> 1964142.957 | D11: ='CBA figures'!E107 -> 1945436.834 | E11: ='CBA figures'!C107 -> 1870612.34 | F11: ='CBA figures'!G107 -> 2017379.34 | G11: ='CBA figures'!H107 -> 2022973.762 | H11: ='CBA figures'!K107 -> 1964142.957 | I11: ='CBA figures'!L107 -> 1945436.834 | J11: ='CBA figures'!O107 -> 1964142.957 | K11: ='CBA figures'!P107 -> 1945436.834 | L11: ='CBA figures'!S107 -> 1870612.34 | M11: ='CBA figures'!T107 -> 230942.3611 | N11: ='CBA figures'!W107 -> 1865935.809 | O11: ='CBA figures'!X107 -> 1865935.809 | P11: ='CBA figures'!AA107 -> 1964142.957 | Q11: ='CBA figures'!AB107 -> 1964142.957 | T11: Environmental Costs: CO2 | U11: 1964142.957 | V11: 1870612.34 | W11: 2017379.34 | X11: 2022973.762 | Y11: 1964142.957 | Z11: 1964142.957 | AA11: 1870612.34 | AB11: 230942.3611 | AC11: 1865935.809 | AD11: 1964142.957 | AF11: Environmental Costs: CO2 | AG11: 1945436.834 | AH11: 1870612.34 | AI11: 2017379.34 | AJ11: 2022973.762 | AK11: 1945436.834 | AL11: 1945436.834 | AM11: 1870612.34 | AN11: 230942.3611 | AO11: 1865935.809 | AP11: 1964142.957
A12: ='Ship segment (Data)'!$Z$5&"&"&'Ship segment (Data)'!$AA$5 -> Motor vessels dry cargo 110 m ship&normal fuel use | B12: Environmental Costs: NOx | C12: ='CBA figures'!D108 -> 1858986.936 | D12: ='CBA figures'!E108 -> 2742903.458 | E12: ='CBA figures'!C108 -> 494440.8045 | F12: ='CBA figures'!G108 -> 494440.8045 | G12: ='CBA figures'!H108 -> 1078212.423 | H12: ='CBA figures'!K108 -> 557696.0807 | I12: ='CBA figures'!L108 -> 557696.0807 | J12: ='CBA figures'!O108 -> 557696.0807 | K12: ='CBA figures'!P108 -> 557696.0807 | L12: ='CBA figures'!S108 -> 494440.8045 | M12: ='CBA figures'!T108 -> 0 | N12: ='CBA figures'!W108 -> 1580138.895 | O12: ='CBA figures'!X108 -> 2331467.939 | P12: ='CBA figures'!AA108 -> 1673088.242 | Q12: ='CBA figures'!AB108 -> 2468613.112 | T12: Environmental Costs: NOx | U12: 1858986.936 | V12: 494440.8045 | W12: 494440.8045 | X12: 1078212.423 | Y12: 557696.0807 | Z12: 557696.0807 | AA12: 494440.8045 | AB12: 0 | AC12: 1580138.895 | AD12: 1673088.242 | AF12: Environmental Costs: NOx | AG12: 2742903.458 | AH12: 494440.8045 | AI12: 494440.8045 | AJ12: 1078212.423 | AK12: 557696.0807 | AL12: 557696.0807 | AM12: 494440.8045 | AN12: 0 | AO12: 2331467.939 | AP12: 2468613.112
A13: ='Ship segment (Data)'!$Z$5&"&"&'Ship segment (Data)'!$AA$5 -> Motor vessels dry cargo 110 m ship&normal fuel use | B13: Environmental Costs: PM | C13: ='CBA figures'!D109 -> 322493.9817 | D13: ='CBA figures'!E109 -> 763801.5357 | E13: ='CBA figures'!C109 -> 25460.05119 | F13: ='CBA figures'!G109 -> 25460.05119 | G13: ='CBA figures'!H109 -> 225745.7872 | H13: ='CBA figures'!K109 -> 322493.9817 | I13: ='CBA figures'!L109 -> 763801.5357 | J13: ='CBA figures'!O109 -> 32249.39817 | K13: ='CBA figures'!P109 -> 32249.39817 | L13: ='CBA figures'!S109 -> 25460.05119 | M13: ='CBA figures'!T109 -> 0 | N13: ='CBA figures'!W109 -> 161246.9909 | O13: ='CBA figures'!X109 -> 381900.7678 | P13: ='CBA figures'!AA109 -> 225745.7872 | Q13: ='CBA figures'!AB109 -> 534661.075 | T13: Environmental Costs: PM | U13: 322493.9817 | V13: 25460.05119 | W13: 25460.05119 | X13: 225745.7872 | Y13: 322493.9817 | Z13: 32249.39817 | AA13: 25460.05119 | AB13: 0 | AC13: 161246.9909 | AD13: 225745.7872 | AF13: Environmental Costs: PM | AG13: 763801.5357 | AH13: 25460.05119 | AI13: 25460.05119 | AJ13: 225745.7872 | AK13: 763801.5357 | AL13: 32249.39817 | AM13: 25460.05119 | AN13: 0 | AO13: 381900.7678 | AP13: 534661.075
A14: ='Ship segment (Data)'!$Z$5&"&"&'Ship segment (Data)'!$AA$5 -> Motor vessels dry cargo 110 m ship&normal fuel use | B14: Total investment start year | C14: =SUM(C4:C5) -> 171826.6071 | D14: =SUM(D4:D5) -> 171826.6071 | E14: 609082.0143 | F14: 1923862 | G14: 996097 | H14: 258858.2143 | I14: 258858.2143 | J14: 333611.2143 | K14: 333611.2143 | L14: 1099547.54 | M14: 2732989.239 | N14: 320463.4403 | O14: 320463.4403 | P14: 171826.6071 | Q14: 171826.6071 | T14: =B16 -> Total SC | U14: =C16 -> 7009488.047 | V14: =E16 -> 5555692.748 | W14: =F16 -> 6698556.291 | X14: =G16 -> 6686323.316 | Y14: =H16 -> 5841974.425 | Z14: =J16 -> 5658739.117 | AA14: =L16 -> 5970712.977 | AB14: =M16 -> 4003785.609 | AC14: =N16 -> 6567194.66 | AD14: =P16 -> 6936978.327 | AF14: =B16 -> Total SC | AG14: =D16 -> 8293557.516 | AH14: =E16 -> 5555692.748 | AI14: =F16 -> 6698556.291 | AJ14: =G16 -> 6686323.316 | AK14: =I16 -> 6279202.588 | AL14: =K16 -> 5652099.716 | AM14: =L16 -> 5970712.977 | AN14: =M16 -> 4003785.609 | AO14: =O16 -> 7539177.481 | AP14: =Q16 -> 8038858.476
A15: ='Ship segment (Data)'!$Z$5&"&"&'Ship segment (Data)'!$AA$5 -> Motor vessels dry cargo 110 m ship&normal fuel use | B15: TCO costs | C15: =SUM(C4:C10) -> 2863864.173 | D15: =SUM(D4:D10) -> 2841415.689 | E15: 3165179.552 | F15: 4161276.096 | G15: 3359391.344 | H15: 2997641.406 | I15: 3012268.138 | J15: 3104650.681 | K15: 3116717.404 | L15: 3580199.781 | M15: 3772843.248 | N15: 2959872.965 | O15: 2959872.965 | P15: 3074001.34 | Q15: 3071441.332
A16: ='Ship segment (Data)'!$Z$5&"&"&'Ship segment (Data)'!$AA$5 -> Motor vessels dry cargo 110 m ship&normal fuel use | B16: Total SC | C16: =SUM(C4:C13) -> 7009488.047 | D16: =SUM(D4:D13) -> 8293557.516 | E16: 5555692.748 | F16: 6698556.291 | G16: 6686323.316 | H16: 5841974.425 | I16: 6279202.588 | J16: 5658739.117 | K16: 5652099.716 | L16: 5970712.977 | M16: 4003785.609 | N16: 6567194.66 | O16: 7539177.481 | P16: 6936978.327 | Q16: 8038858.476
B18: Cost factors | C18: =C3 -> CCNR2 revision | D18: CCNRO revision | E18: Stage V | F18: LNG mono fuel | G18: LNG Dual fuel refit | H18: SCR CCNR2 | I18: SCR CCNR0 | J18: SCR+ DPF CCNR2 | K18: SCR+DPF CCNR0 | L18: Diesel electric | M18: Battery electric | N18: FWE CCNR2 | O18: FWE CCNR0 | P18: GTL CCNR2 | Q18: GTL CCNR0 | T18: =B4 -> Investments in start year | U18: =U4+U6 -> 100782 | V18: 609082.0143 | W18: 1923862 | X18: 1096879 | Y18: 187813.6071 | Z18: 262566.6071 | AA18: 1099547.54 | AB18: 2732989.239 | AC18: 249418.8331 | AD18: 100782 | AE18: 0 | AF18: =B4 -> Investments in start year | AG18: =AG4+AG6 -> 100782 | AH18: 609082.0143 | AI18: 1923862 | AJ18: 1096879 | AK18: 187813.6071 | AL18: 262566.6071 | AM18: 1099547.54 | AN18: =AN4+AN6 -> 2732989.239 | AO18: 249418.8331 | AP18: 100782
B19: Investments | C19: =C4+C6+C10 -> 100782 | D19: =D4+D6 -> 100782 | E19: 609082.0143 | F19: 1923862 | G19: 1096879 | H19: 187813.6071 | I19: 187813.6071 | J19: 262566.6071 | K19: 262566.6071 | L19: 1099547.54 | M19: 2732989.239 | N19: 249418.8331 | O19: 249418.8331 | P19: 100782 | Q19: 100782 | T19: Revision costs in start year | U19: =U5 -> 171826.6071 | V19: 0 | W19: 0 | X19: 0 | Y19: 171826.6071 | Z19: 171826.6071 | AA19: 0 | AB19: 0 | AC19: 171826.6071 | AD19: 171826.6071 | AE19: 0 | AF19: Revision costs in start year | AG19: =AG5 -> 171826.6071 | AH19: 0 | AI19: 0 | AJ19: 0 | AK19: 171826.6071 | AL19: 171826.6071 | AM19: 0 | AN19: =AN5 -> 0 | AO19: 171826.6071 | AP19: 171826.6071
B20: Revision costs in start year | C20: =C5 -> 171826.6071 | D20: 171826.6071 | E20: 0 | F20: 0 | G20: 0 | H20: 171826.6071 | I20: 171826.6071 | J20: 171826.6071 | K20: 171826.6071 | L20: 0 | M20: 0 | N20: 171826.6071 | O20: 171826.6071 | P20: 171826.6071 | Q20: 171826.6071 | T20: =B6 -> Investments in assessment period | AF20: Investments in assessment period
B21: Investments in assessment period | C21: 0 | D21: 0 | E21: 0 | F21: 0 | G21: 0 | H21: 0 | I21: 0 | J21: 0 | K21: 0 | L21: 0 | M21: 0 | N21: 0 | O21: 0 | P21: 0 | Q21: 0 | T21: =B7 -> Revision costs in assesment period (incl SCR/ DPF) | U21: =U7 -> 0 | V21: 0 | W21: 0 | X21: 0 | Y21: 0 | Z21: 0 | AA21: 0 | AB21: 0 | AC21: 0 | AD21: 0 | AE21: 0 | AF21: Revision costs in assesment period (incl SCR/ DPF) | AG21: =AG7 -> 0 | AH21: 0 | AI21: 0 | AJ21: 0 | AK21: 0 | AL21: 0 | AM21: 0 | AN21: =AN7 -> 0 | AO21: 0 | AP21: 0
B22: Revision costs in assesment period (incl SCR/DPF) | C22: =C7 -> 0 | D22: 0 | E22: 0 | F22: 0 | G22: 0 | H22: 0 | I22: 0 | J22: 0 | K22: 0 | L22: 0 | M22: 0 | N22: 0 | O22: 0 | P22: 0 | Q22: 0 | T22: =B8 -> Fuel (+ Urea) | U22: =U8 -> 2088289.849 | V22: 2027197.705 | W22: 1488015.134 | X22: 1513113.382 | Y22: 2128557.59 | Z22: 2128557.59 | AA22: 2027197.705 | AB22: 842400.3426 | AC22: 1983875.356 | AD22: 2298427.017 | AE22: 0 | AF22: Fuel (+ Urea) | AG22: =AG8 -> 2068401.374 | AH22: 2027197.705 | AI22: 1488015.134 | AJ22: 1513113.382 | AK22: 2143184.322 | AL22: 2143184.322 | AM22: 2027197.705 | AN22: =AN8 -> 842400.3426 | AO22: 1983875.356 | AP22: 2298427.017
B23: Fuel (+ Urea) | C23: =C8 -> 2088289.849 | D23: 2068401.374 | E23: 2027197.705 | F23: 1488015.134 | G23: 1513113.382 | H23: 2128557.59 | I23: 2143184.322 | J23: 2128557.59 | K23: 2143184.322 | L23: 2027197.705 | M23: 842400.3426 | N23: 1983875.356 | O23: 1983875.356 | P23: 2298427.017 | Q23: 2298427.017 | T23: =B9 -> Other operational costs | U23: =U9 -> 502965.7166 | V23: 528899.8328 | W23: 272898.9622 | X23: 272898.9622 | Y23: 509443.6014 | Z23: 541699.8763 | AA23: 453454.5367 | AB23: 197453.6661 | AC23: 554752.1683 | AD23: 502965.7166 | AE23: 0 | AF23: Other operational costs | AG23: =AG9 -> 500405.7079 | AH23: 528899.8328 | AI23: 272898.9622 | AJ23: 272898.9622 | AK23: 509443.6014 | AL23: 539139.8676 | AM23: 453454.5367 | AN23: =AN9 -> 197453.6661 | AO23: 554752.1683 | AP23: 500405.7079
B24: Other operational costs | C24: =C9 -> 502965.7166 | D24: 500405.7079 | E24: 528899.8328 | F24: 272898.9622 | G24: 272898.9622 | H24: 509443.6014 | I24: 509443.6014 | J24: 541699.8763 | K24: 539139.8676 | L24: 453454.5367 | M24: 197453.6661 | N24: 554752.1683 | O24: 554752.1683 | P24: 502965.7166 | Q24: 500405.7079 | T24: =B11 -> Environmental Costs: CO2 | U24: =U11 -> 1964142.957 | V24: 1870612.34 | W24: 2017379.34 | X24: 2022973.762 | Y24: 1964142.957 | Z24: 1964142.957 | AA24: 1870612.34 | AB24: 230942.3611 | AC24: 1865935.809 | AD24: 1964142.957 | AE24: =AE12 -> 0 | AF24: =B11 -> Environmental Costs: CO2 | AG24: =AG11 -> 1945436.834 | AH24: 1870612.34 | AI24: 2017379.34 | AJ24: 2022973.762 | AK24: 1945436.834 | AL24: 1945436.834 | AM24: 1870612.34 | AN24: =AN11 -> 230942.3611 | AO24: 1865935.809 | AP24: 1964142.957
B25: Environmental Costs: CO2 | C25: =C11 -> 1964142.957 | D25: 1945436.834 | E25: 1870612.34 | F25: 2017379.34 | G25: 2022973.762 | H25: 1964142.957 | I25: 1945436.834 | J25: 1964142.957 | K25: 1945436.834 | L25: 1870612.34 | M25: 230942.3611 | N25: 1865935.809 | O25: 1865935.809 | P25: 1964142.957 | Q25: 1964142.957 | T25: =B12 -> Environmental Costs: NOx | U25: =U12 -> 1858986.936 | V25: 494440.8045 | W25: 494440.8045 | X25: 1078212.423 | Y25: 557696.0807 | Z25: 557696.0807 | AA25: 494440.8045 | AB25: 0 | AC25: 1580138.895 | AD25: 1673088.242 | AE25: =AE13 -> 0 | AF25: =B12 -> Environmental Costs: NOx | AG25: =AG12 -> 2742903.458 | AH25: 494440.8045 | AI25: 494440.8045 | AJ25: 1078212.423 | AK25: 557696.0807 | AL25: 557696.0807 | AM25: 494440.8045 | AN25: =AN12 -> 0 | AO25: 2331467.939 | AP25: 2468613.112
B26: Environmental Costs: NOx | C26: =C12 -> 1858986.936 | D26: 2742903.458 | E26: 494440.8045 | F26: 494440.8045 | G26: 1078212.423 | H26: 557696.0807 | I26: 557696.0807 | J26: 557696.0807 | K26: 557696.0807 | L26: 494440.8045 | M26: 0 | N26: 1580138.895 | O26: 2331467.939 | P26: =P12 -> 1673088.242 | Q26: 2468613.112 | T26: =B13 -> Environmental Costs: PM | U26: =U13 -> 322493.9817 | V26: 25460.05119 | W26: 25460.05119 | X26: 225745.7872 | Y26: 322493.9817 | Z26: 32249.39817 | AA26: 25460.05119 | AB26: 0 | AC26: 161246.9909 | AD26: 225745.7872 | AE26: =AE14 -> 0 | AF26: =B13 -> Environmental Costs: PM | AG26: =AG13 -> 763801.5357 | AH26: 25460.05119 | AI26: 25460.05119 | AJ26: 225745.7872 | AK26: 763801.5357 | AL26: 32249.39817 | AM26: 25460.05119 | AN26: =AN13 -> 0 | AO26: 381900.7678 | AP26: 534661.075
B27: Environmental Costs: PM | C27: =C13 -> 322493.9817 | D27: 763801.5357 | E27: 25460.05119 | F27: 25460.05119 | G27: 225745.7872 | H27: 322493.9817 | I27: 763801.5357 | J27: 32249.39817 | K27: 32249.39817 | L27: 25460.05119 | M27: 0 | N27: 161246.9909 | O27: 381900.7678 | P27: 225745.7872 | Q27: 534661.075 | T27: =B16 -> Total SC | U27: =SUM(U18:U26) -> 7009488.047 | V27: =SUM(V18:V26) -> 5555692.748 | W27: 6222056.291 | X27: 6209823.316 | Y27: 5841974.425 | Z27: 5658739.117 | AA27: 5970712.977 | AB27: =SUM(AB18:AB26) -> 4003785.609 | AC27: 6567194.66 | AD27: 6936978.327
B28: Total SC | C28: =C16 -> 7009488.047 | D28: 8293557.516 | E28: 5555692.748 | F28: 6698556.291 | G28: 6686323.316 | H28: 5841974.425 | I28: 6279202.588 | J28: 5658739.117 | K28: 5652099.716 | L28: 5970712.977 | M28: 4003785.609 | N28: 6567194.66 | O28: 7539177.481 | P28: 6936978.327 | Q28: 8038858.476
S36: insurance costs (all 161000
S37: 0
S40: Assement period
S41: ='Ship segment (Data)'!W5 -> 15
S43: Residual value in 2050?
S44: yes
S46: LNG price
S47: 442 | T47: 442 (Hary input
U58: =U3 -> CCNR2 revision | V58: Stage V | W58: LNG mono fuel | X58: LNG Dual fuel refit | Y58: SCR CCNR2 | Z58: SCR+ DPF CCNR2 | AA58: Diesel electric | AC58: =AC3 -> FWE CCNR2 | AD58: =AD3 -> GTL CCNR2
T59: investment costs | U59: =U4+U5 -> 171826.6071 | V59: =V4+V5-$U$59 -> 437255.4071 | W59: 1752035.393 | X59: 824270.3929 | Y59: 87031.60714 | Z59: 161784.6071 | AA59: 927720.9329 | AC59: =AC4+AC5-$U$59 -> 148636.8331 | AD59: =AD4+AD5-$U$59 -> 0
T60: TCO (over 30 years) | U60: =SUM(U4:U10) -> 2863864.173 | V60: =SUM(V4:V10)-$U$60 -> 301315.3792 | W60: 1297411.923 | X60: 495527.1716 | Y60: 133777.2331 | Z60: 240786.508 | AA60: 716335.6089 | AC60: =SUM(AC4:AC10)-$U$60 -> 96008.79239 | AD60: =SUM(AD4:AD10)-$U$60 -> 210137.1679
T61: enviromental benefits | U61: =SUM(U11:U13) -> 4145623.874 | V61: =$U$61-SUM(V11:V13) -> 1755110.679 | W61: 1608343.679 | X61: 818691.9024 | Y61: 1301290.855 | Z61: 1591535.438 | AA61: 1755110.679 | AC61: =$U$61-SUM(AC11:AC13) -> 538302.179 | AD61: =$U$61-SUM(AD11:AD13) -> 282646.8881
T63: Effectivity | V63: =V60/V61 -> 0.1716788479 | W63: =W60/W61 -> 0.8066757997 | X63: 0.6052669755 | Y63: 0.1028034836 | Z63: 0.151291955 | AA63: 0.4081426987 | AC63: 0.1783548277 | AD63: 0.7434618132
Z96: [TCO in euro]/ [Environmental benefits in euro]
AA97: 2020-2050
V98: =V58 -> Stage V | W98: =V63 -> 0.1716788479 | Z98: Diesel (baseline)- Stage V | AA98: 0.1714250242
V99: =W58 -> LNG mono fuel | W99: =W63 -> 0.8066757997 | Z99: LNG mono fuel | AA99: -0.03409711612
V100: =X58 -> LNG Dual fuel refit | W100: =X63 -> 0.6052669755 | Z100: LNG Dual fuel refit | AA100: -0.8724861601
V101: =Y58 -> SCR CCNR2 | W101: =Y63 -> 0.1028034836 | Z101: SCR (CCR2) | AA101: 0.09501303022
V102: =Z58 -> SCR+ DPF CCNR2 | W102: =Z63 -> 0.151291955 | Z102: SCR+ DPF (CCR2) | AA102: 0.180049625
V103: =AA58 -> Diesel electric | W103: =AA63 -> 0.4081426987 | Z103: Diesel electric (0% fuel change) | AA103: 0.2457047388
Z104: Diesel electric incl advantage in 2030 (0% fuel change) | AA104: 0.1632318154
V105: =AC58 -> FWE CCNR2 | W105: =AC63 -> 0.1783548277 | Z105: FWE CCR2 | AA105: 0.1189702026
V106: =AD58 -> GTL CCNR2 | W106: =AD63 -> 0.7434618132 | Z106: GTL CCR2 | AA106: 2.081206466
C128: Revision | D128: Stage V | E128: LNG mono fuel | F128: LNG Dual fuel refit | G128: SCR | H128: SCR+ DPF | I128: Diesel electric | J128: Battery electric | K128: FWE | L128: GTL | O128: Lijn
B129: TCO extra costs | C129: =C15-$C15 -> 0 | D129: =E15-$C15 -> 301315.3792 | E129: =F15-$C15 -> 1297411.923 | F129: =G15-$C15 -> 495527.1716 | G129: =H15-$C15 -> 133777.2331 | H129: =J15-$C15 -> 240786.508 | I129: =L15-$C15 -> 716335.6089 | J129: =M15-$C15 -> 908979.0752 | K129: =N15-$C15 -> 96008.79239 | L129: =P15-$C15 -> 210137.1679 | O129: =MAX($C$129:$L$129) -> 1297411.923
B130: Enviromental benefits (euro) | C130: =SUM($C$11:$C$13)-SUM(C11:C13) -> 0 | D130: =SUM($C$11:$C$13)-SUM(E11:E13) -> 1755110.679 | E130: =SUM($C$11:$C$13)-SUM(F11:F13) -> 1608343.679 | F130: =SUM($C$11:$C$13)-SUM(G11:G13) -> 818691.9024 | G130: =SUM($C$11:$C$13)-SUM(H11:H13) -> 1301290.855 | H130: =SUM($C$11:$C$13)-SUM(J11:J13) -> 1591535.438 | I130: =SUM($C$11:$C$13)-SUM(L11:L13) -> 1755110.679 | J130: =SUM($C$11:$C$13)-SUM(M11:M13) -> 3914681.513 | K130: =SUM($C$11:$C$13)-SUM(N11:N13) -> 538302.179 | L130: =SUM($C$11:$C$13)-SUM(P11:P13) -> 282646.8881 | O130: =O129 -> 1297411.923
B131: Initial investment costs | C131: =C14-$C14 -> 0 | D131: =E14-$C14 -> 437255.4071 | E131: =F14-$C14 -> 1752035.393 | F131: =G14-$C14 -> 824270.3929 | G131: =H14-$C14 -> 87031.60714 | H131: =J14-$C14 -> 161784.6071 | I131: =L14-$C14 -> 927720.9329 | J131: =M14-$C14 -> 2561162.632 | K131: =N14-$C14 -> 148636.8331 | L131: 1000 | O131: 1
B132: Total social benefits | C132: =$C16-C16 -> 0 | D132: =$C16-E16 -> 1453795.299 | E132: =$C16-F16 -> 310931.7555 | F132: 323164.7308 | G132: =$C16-H16 -> 1167513.622 | H132: =$C16-J16 -> 1350748.93 | I132: =$C16-L16 -> 1038775.07 | J132: =$C16-M16 -> 3005702.438 | K132: =$C16-N16 -> 442293.3867 | L132: =$C16-P16 -> 72509.72018
D135: =D130/D129 -> 5.824829396 | E135: 1.239655386 | F135: 1.652163492 | G135: 9.727296828 | H135: 6.609736781 | I135: 2.450123457 | J135: 4.30667946 | K135: 5.606800853 | L135: 1.345058996
C142: =D18 -> CCNRO revision | D142: =E18 -> Stage V | E142: =F18 -> LNG mono fuel | F142: =G18 -> LNG Dual fuel refit | G142: =I18 -> SCR CCNR0 | H142: =K18 -> SCR+DPF CCNR0 | I142: =L18 -> Diesel electric | J142: =M18 -> Battery electric | K142: =O18 -> FWE CCNR0 | L142: =Q18 -> GTL CCNR0
B143: TCO extra costs | C143: =D15-$D15 -> 0 | D143: =E15-$D15 -> 323763.8627 | E143: =F15-$D15 -> 1319860.407 | F143: =G15-$D15 -> 517975.655 | G143: =I15-$D15 -> 170852.4485 | H143: =K15-$D15 -> 275301.7147 | I143: =L15-$D15 -> 738784.0923 | J143: =M15-$D15 -> 931427.5587 | K143: =O15-$D15 -> 118457.2758 | L143: =Q15-$D15 -> 230025.6426
B144: Enviromental benefits (euro) | C144: =SUM($D$25:$D$27)-SUM(D25:D27) -> 0 | D144: =SUM($D$25:$D$27)-SUM(E25:E27) -> 3061628.631 | E144: =SUM($D$25:$D$27)-SUM(F25:F27) -> 2914861.631 | F144: 2125209.855 | G144: =SUM($D$25:$D$27)-SUM(I25:I27) -> 2185207.377 | H144: =SUM($D$25:$D$27)-SUM(K25:K27) -> 2916759.514 | I144: =SUM($D$25:$D$27)-SUM(L25:L27) -> 3061628.631 | J144: 5221199.466 | K144: =SUM($D$25:$D$27)-SUM(O25:O27) -> 872837.3109 | L144: =SUM($D$25:$D$27)-SUM(Q25:Q27) -> 484724.6831
B145: Initial investment costs | C145: =D14-$D14 -> 0 | D145: =E14-$D14 -> 437255.4071 | E145: =F14-$D14 -> 1752035.393 | F145: =G14-$D14 -> 824270.3929 | G145: =I14-$D14 -> 87031.60714 | H145: =K14-$D14 -> 161784.6071 | I145: =L14-$D14 -> 927720.9329 | J145: =M14-$D14 -> 2561162.632 | K145: =O14-$D14 -> 148636.8331 | L145: 1
B146: Total social benefits | C146: =$D16-D16 -> 0 | D146: =$D16-E16 -> 2737864.768 | E146: =$D16-F16 -> 1595001.225 | F146: =$D16-G16 -> 1607234.2 | G146: =$D16-I16 -> 2014354.928 | H146: =$D16-K16 -> 2641457.8 | I146: =$D16-L16 -> 2322844.539 | J146: =$D16-M16 -> 4289771.907 | K146: =$D16-O16 -> 754380.0351 | L146: =$D16-Q16 -> 254699.0404
C191: =B131 -> Initial investment costs | D191: =B129 -> TCO extra costs | E191: =B130 -> Enviromental benefits (euro) | F191: Benefits / Costs
B192: =D128 -> Stage V | C192: =D131 -> 437255.4071 | D192: =D129 -> 301315.3792 | E192: =D130 -> 1755110.679 | F192: =E192/D192 -> 5.824829396
B193: =E128 -> LNG mono fuel | C193: =E131 -> 1752035.393 | D193: =E129 -> 1297411.923 | E193: =E130 -> 1608343.679 | F193: =E193/D193 -> 1.239655386
B194: =F128 -> LNG Dual fuel refit | C194: =F131 -> 824270.3929 | D194: =F129 -> 495527.1716 | E194: =F130 -> 818691.9024 | F194: 1.652163492
B195: =G128 -> SCR | C195: =G131 -> 87031.60714 | D195: =G129 -> 133777.2331 | E195: =G130 -> 1301290.855 | F195: 9.727296828
B196: =H128 -> SCR+ DPF | C196: =H131 -> 161784.6071 | D196: =H129 -> 240786.508 | E196: =H130 -> 1591535.438 | F196: 6.609736781
B197: =I128 -> Diesel electric | C197: =I131 -> 927720.9329 | D197: =I129 -> 716335.6089 | E197: =I130 -> 1755110.679 | F197: 2.450123457
B198: =J128 -> Battery electric | C198: =J131 -> 2561162.632 | D198: =J129 -> 908979.0752 | E198: =J130 -> 3914681.513 | F198: =E198/D198 -> 4.30667946
B199: =K128 -> FWE | C199: =K131 -> 148636.8331 | D199: =K129 -> 96008.79239 | E199: =K130 -> 538302.179 | F199: =E199/D199 -> 5.606800853
B200: =L128 -> GTL | D200: =L129 -> 210137.1679 | E200: =L130 -> 282646.8881 | F200: =E200/D200 -> 1.345058996

Sheet Key Data (hidden)
A2: Key data
A4: General data/Details - LNG (Mono & Dual fuel) | B4: # | C4: Units | D4: Source | E4: Type of costs
A5: Fuel price | B5: =N9 -> 583 | C5: Euro per 1000 liter | D5: CBRB five year average price https://www.zandmij.nl/logistiek/cbrb
A6: Fuel price (Diesel/100KG) | B6: =B5/B42 -> 697.3969336 | C6: Per 1000 KG | D6: http://www.interrijn.com/ | E6: operational
A7: Fuel Price (Diesel/Ton) | B7: =B6 -> 697.3969336 | C7: Per Ton | D7: http://www.interrijn.com/ | E7: =E6 -> operational
A8: Fuel price (Diesel/Lt) | B8: =70.11/100 -> 0.7011 | C8: € /lt | D8: http://www.interrijn.com/ (70.11 euro for 100 Lt on 16/11/2018) | E8: =E7 -> operational | H8: 2015 | I8: 2016 | J8: 2017 | K8: 2018 | L8: 2019 | M8: 2020 | N8: Average
A9: Fuel price (LNG) | B9: =0.75*B7 -> 523.0477002 | C9: € /ton | D9: 501$/ton converted into euro (DNV GL Sep 18) (https://www.dnvgl.com/maritime/lng/current-price-development-oil-and-gas.html) | E9: =E8 -> operational | G9: € per 1000 litre | H9: 569 | I9: 490 | J9: 564 | K9: 657 | L9: 668 | M9: 550 | N9: =AVERAGE(H9:M9) -> 583
A10: Fuel price (Diesel/BBTU) | B10: 7.298 | C10: $/bbtu | D10: Coversion of 1 BTU = 10.41 Liter atmosphere has been used. | E10: =E9 -> operational
A11: Diesel (New engine Phase V) | B11: =B12+B80+B82 -> 354.4 | C11: (euro/kW) | D11: https://theicct.org/publications/emission_reduction_tech_cost_non_road_diesel | E11: investment | F11: VERWIJZEN SCR DPF aan de hand van kW | G11: DST gaat uit van 375
A12: Diesel (New engine CCNR2) | B12: 220 | C12: (euro/kW) | D12: Robert Hekkenberg 2014 - and Prominent D2.8 Page nr 30 | E12: investment | G12: =220*500 -> 110000 | H12: =G12+10000 -> 120000 | I12: =H12/500 -> 240
A13: Price difference (Scenario 4: Current policies = 0.35) | B13: 0.35 | C13: Euro/l | D13: Pg:9 Act 1.1 Ex ante cost benefit analysis | E13: operational
A14: Price difference (Scenario 1: Clow oil price (0,05)) | B14: 0.05 | C14: Euro/l | E14: operational
A15: Methane CO2 eq. | B15: 28 | C15: CO2 eq/ | D15: IPCC | E15: environmental
A16: LNG Engine (Mono fuel) (500 - 2000kw) - Min | B16: 895825 | C16: € | D16: The costs are additional costs compared to diesel taken from Pg:40 (Salih Karaarslan) | E16: investment
A17: LNG Engine Mono fuel (2000kw) - Max | B17: 1920425 | C17: € | D17: Pg: 40 Act 1.1 (Prominent concluded it is not possible to calculate this cost) | E17: investment
A18: Price difference (Scenario 1: Low oil price) | B18: 0.05 | C18: Lt/euro | D18: Pg:9 Act 1.1 Ex ante cost benefit analysis | E18: operational
A19: Price difference (Scenario 2: 450 ) | B19: 0.17 | C19: Lt/euro | D19: Pg:9 Act 1.1 Ex ante cost benefit analysis | E19: operational
A20: Dual fuel engine (low estimate) - Additional costs as compared to diesel | C20: € | D20: Pg: 40 Act 1.1 Ex ante cost benefit analysis | E20: investment
A21: Dual fuel engine (Middle estimate) - Additional costs as compared to diesel | B21: 666335 | C21: € | D21: Based on average of the low estimate and the high estimate | E21: investment
A22: Dual fuel engine (High estimate) - Additional costs as compared to diesel | B22: 967670 | C22: € | D22: Pg: 40 Act 1.1 Ex ante cost benefit analysis | E22: investment
A23: Ton to liter | B23: 1 ton = 1000 lt | C23: litres | D23: 14314 Tonnes (metric ton) into Liters, For substance with density: 885 kg/m3 | E23: general
A24: CO2 emissions Diesel WTW | B24: 3.913 | C24: kg/ kg | D24: STREAM 2020 | E24: environmental
A25: CO2 emission/LT (LNG) WTW | B25: 3.69 | C25: kg/kg | D25: STREAM 2020 (Max 10% reduction - Salih Karaarslan 2017) | E25: environmental
A26: Fuel use benefit of Euro VI | B26: 0.05 | C26: per kwh | D26: discussions with Vink diesel
A27: Methane emissions (LNG Only) | B27: 4 | C27: g/kWh | D27: For other dual or mono fuel engines (TNO, 2017)/4g/kwh = 0.53MJ (This is the value taken) | E27: environmental
A28: NOX emissions (Diesel) CCR 0 | B28: ='Emission factors'!D4 -> 9.93 | C28: g/kwh | D28: Measurements CLINSH | E28: environmental
A29: NOX emissions (Diesel) CCR 1 | B29: =B28 -> 9.93 | C29: g/kwh | D29: Measurements CLINSH | E29: environmental
A30: NOX emissions (Diesel) CCR 2 | B30: ='Emission factors'!D7 -> 6.73 | C30: g/kwh | D30: Measurements CLINSH | E30: environmental
A31: NOX emissions (LNG)/ Phase V @ 1.8g/kwh | B31: 1.79 | C31: g/kwh | D31: EMS protocol BIVAS | E31: environmental
A32: Nox emission Phase V <300 kW | B32: 2.9 | C32: g/ kWh | D32: EMS protocol BIVAS | E32: environmental
A33: Nox emissions Euro VI <400 kW | B33: 0.4 | C33: g/ kWh | D33: https://dieselnet.com/standards/eu/hd.php
A34: Nox emission LNG Dual fuel | B34: =58%*B30 -> 3.9034 | C34: g/kwh | D34: Prominent D1.2; page 69 | E34: environmental | G34: Tremod | H34: TNO
A35: PM emission (Diesel) CCR0 | B35: =H35 -> 0.45 | C35: g/kwh | D35: TNO | E35: environmental | G35: 0.4 | H35: 0.45
A36: PM emission (Diesel) CCR1 | B36: =H36 -> 0.285 | C36: g/kwh | D36: TNO | E36: environmental | G36: 0.12 | H36: 0.285
A37: PM emission (Diesel) CCR2 | B37: 0.19 | C37: g/kwh | D37: TNO | E37: environmental | G37: 0.12 | H37: 0.19
A38: PM emission (LNG) and stage V >300 kW | B38: 0.015 | C38: g/kwh | D38: EMS protocol BIVAS | E38: environmental
A39: Stage V <300 kW PM | B39: 0.1 | C39: g/kwh | D39: EMS protocol BIVAS | E39: environmental
A40: PM emissions Euro VI <400 kW | B40: 0.01 | C40: g/kwh | D40: https://dieselnet.com/standards/eu/hd.php
A41: PM emission LNG Dual fuel | B41: =70%*B37 -> 0.133 | C41: g/kwh | D41: Prominent D1.2; page 69 : 50-90& reduction | E41: environmental
A42: Diesel density | B42: 0.8359658208 | C42: (kg/ litre) | D42: STREam 2020 | E42: environmental
A43: Energy density Diesel | B43: 35.8592 | C43: MJ/ liter | D43: STREAM 2020 | E43: environmental
A44: Specfic diesel consumption | B44: 0.207 | C44: (kg/ kwh) | D44: STREAM 2020 | E44: environmental
A45: Installation cost (Tank above deck) Min | B45: 507500 | C45: € | D45: Pg:40 Act 1.1 Ex ante cost beneift analysis | E45: investment
A46: Installation cost (Tank above deck) Avg | B46: =AVERAGE(B45,B47) -> 598750 | C46: € | D46: Pg:40 Act 1.1 Ex ante cost beneift analysis | E46: investment | G46: =B49+B51+B52+B55 -> 1391822
A47: Installatioon cost (Tank above deck) Max | B47: 690000 | C47: € | D47: Pg:40 Act 1.1 Ex ante cost beneift analysis | E47: investment | G47: =G46/1000 -> 1391.822
A48: Installation cost (Tank under deck) Min | B48: 667500 | C48: € | D48: Pg:40 Act 1.1 Ex ante cost beneift analysis | E48: investment
A49: Installation cost (Tank under deck) Avg | B49: =AVERAGE(B48,B50) -> 777500 | C49: € | D49: Pg:40 Act 1.1 Ex ante cost beneift analysis | E49: investment
A50: Installation cost (Tank under deck) Max | B50: 887500 | C50: € | D50: Pg:40 Act 1.1 Ex ante cost beneift analysis | E50: investment
A51: Tank connection space (for all categories of ships) | B51: 377500 | C51: € | D51: Pg:40 Act 1.1 Ex ante cost beneift analysis | E51: investment
A52: Tank (for all categories of ships) | B52: 165000 | C52: € | D52: Pg:40 Act 1.1 Ex ante cost beneift analysis | E52: investment
A53: Oppurtunity cost | B53: =4*7 -> 28 | C53: days | D53: Pg:40 Act 1.1 Ex ante cost beneift analysis | E53: investment
A54: Additional installation cost (Low estimate) | B54: 20231 | C54: € | D54: Pg:40 Act 1.1 Ex ante cost beneift analysis | E54: investment
A55: Additional installation cost (middle estimate) | B55: =(B54+B56)/2 -> 71822 | C55: € | D55: Pg:40 Act 1.1 Ex ante cost beneift analysis | E55: investment
A56: Additional installation cost (High estimate) | B56: 123413 | C56: € | D56: Pg:40 Act 1.1 Ex ante cost beneift analysis | E56: investment
A57: Oil duty under CCR convention (per 100 liters) | B57: 7.5 | C57: € /liter | D57: Pg:20 Charges for barges (CE delft, 2004) & https://www.cdni-iwt.org/en/part-a/ | E57: operational
A58: Climate cost (€ /tonne) - (Diesel (Maritime emissions cost factor) | B58: =AD64 -> 167.5348831 | C58: € | D58: =D60 -> CE Delft Handbook of External costs | E58: environmental
A59: Climate cost (€ /tonne) (LNG - Maritime emissions cost factor) | B59: =B58 -> 167.5348831 | C59: € | D59: =D60 -> CE Delft Handbook of External costs | E59: environmental | H59: source: handbook of external cots
A60: Cllimate costs 2050 (€/ tonne CO2) | B60: 269 | D60: CE Delft Handbook of External costs | E60: environmental | G60: Emission factors | H60: €/ton NOX | I60: €/ton NOX | J60: €/ton NMVOC | K60: €/ton SO2 | L60: €/ton PM (exhaust) | O60: Inflation | P60: source Eurostat | T60: €/ton NOX | U60: €/ton NOX | V60: €/ton NMVOC | W60: €/ton SO2 | X60: €/ton PM (exhaust)
A61: Annual increase climate costs factor | B61: 1 | D61: =D60 -> CE Delft Handbook of External costs | E61: environmental | H61: cities | I61: rural | J61: All areas | K61: All areas | L61: Metropolitan | M61: Urban | N61: Rural | O61: 2016 | P61: 2018 | T61: cities | U61: rural | V61: All areas | W61: All areas | X61: Metropolitan | Y61: Urban | Z61: Rural | AA61: tkm 2018 (Eurostat) | AD61: CO2 short term (<2030) | AG61: Metropolitan | AH61: Urban | AI61: Rural | AJ61: €/ton NOX | AK61: €/ton PM (exhaust)
A62: rentfacto/climatecost factor -1 | B62: =(B76/B61)-1 -> 0.04 | E62: environmental | G62: Belgium | H62: 26100 | I62: 15100 | J62: 3600 | K62: 17100 | L62: 479000 | M62: 155000 | N62: 114000 | O62: 98.68 | P62: 102.48 | S62: Belgium | T62: =H62/$O62*$P62 -> 27105.06688 | U62: 15681.47548 | V62: 3738.629915 | W62: 17758.4921 | X62: 497445.4803 | Y62: 160968.788 | Z62: 118389.9473 | AA62: 11328 | AC62: bron EU handboek | AD62: 100 | AF62: Share (source PVeR 2014) | AG62: 0.05 | AH62: 0.05 | AI62: 0.9 | AJ62: =((AG62+AH62)*T65)+U65*AI62 -> 20038.39433 | AK62: =X65*AG62+Y65*AH62+Z65*AI62 -> 123131.6385
A63: Environmental costs Nox euro/kg | B63: =AJ62/10^3 -> 20.03839433 | C63: € | D63: CE Delft Handbook of External costs | E63: environmental | G63: Germany | H63: 36800 | I63: 21600 | J63: 1800 | K63: 16500 | L63: 448000 | M63: 144000 | N63: 93000 | O63: 100.4 | P63: 104 | S63: Germany | T63: 38119.52191 | U63: 22374.50199 | V63: 1864.541833 | W63: 17091.63347 | X63: 464063.745 | Y63: 149163.3466 | Z63: 96334.66135 | AA63: 46901 | AC63: Toename CO2 prijs | AD63: 0.035
A64: Environmental costs PM 2.5 euro/kg rural | B64: =AK62/10^3 -> 123.1316385 | C64: € | D64: CE Delft Handbook of External costs | E64: environmental | G64: Netherlands | H64: 26500 | I64: 15300 | J64: 2800 | K64: 20200 | L64: 458000 | M64: 148000 | N64: 101000 | O64: 100.11 | P64: 103.2 | S64: Netherlands | T64: 27317.95025 | U64: 15772.25052 | V64: 2886.424933 | W64: 20823.49416 | X64: 472136.6497 | Y64: 152568.175 | Z64: 104117.4708 | AA64: 47242 | AC64: Gemiddelde | AD64: =AD62*(1+AD63)^15 -> 167.5348831
A65: Estimated annual savings on port dues | B65: 13.55 | C65: % | D65: Pg:40 Act 1.1 Ex ante cost beneift analysis | E65: operational | S65: Weighted | T65: =SUMPRODUCT(T62:T64,$AA$62:$AA$64)/SUM($AA$62:$AA$64) -> 32098.34458 | U65: =SUMPRODUCT(U62:U64,$AA$62:$AA$64)/SUM($AA$62:$AA$64) -> 18698.39986 | V65: =SUMPRODUCT(V62:V64,$AA$62:$AA$64)/SUM($AA$62:$AA$64) -> 2523.542612 | W65: 18834.81157 | X65: 471265.0464 | Y65: 151956.3697 | Z65: 102189.5197
A66: Interest rate (Depricition cost -Own calculation) | B66: 0.04 | C66: % | D66: Suggested by Mattijs / ook uit prominent
A67: Energy efficiency (LNG Mono fuel) | B67: =36/100 -> 0.36 | C67: % | D67: Life cycle assessment of marine fuels (Chalmers university, 2011)
A68: Energy efficiency (LNG dual fuel) | B68: =41/100 -> 0.41 | C68: % | D68: Life cycle assessment of marine fuels (Chalmers university, 2011)
A69: Energy efficiency (Conventional CCNR2 diesel engine) | B69: =41/100 -> 0.41 | C69: % | D69: Life cycle assessment of marine fuels (Chalmers university, 2011)
A70: LNG energy density (MJ/ kg) | B70: 49 | C70: MJ/KG | D70: STREAM 2020
A71: Relative revision costs (% of new engine costs) | B71: 0.5 | C71: % | D71: Bijlagen visie On-Board-Monitoring in de binnenvaart
A72: Relative scrap value of engine at half life time (without revision) | B72: 0.25 | C72: % | D72: Source: Assumed by mattijs
A73: Assessment period | B73: 30 | C73: years | D73: Source: Assumed by Mattijs
A74: NPV Scrap value new engine after 30 years (% of new engine price) | B74: 0.1 | C74: % | D74: Source: Assumed by matijs
A75: Lineair value decrease factor over life time | B75: =(1+B71)-B74 -> 1.4 | C75: % | D75: Source: assumption see cel G68 for explanation | G75: Depreciation of engine value
A76: Annual interest factor NPV calculation | B76: =1+B66 -> 1.04 | D76: Source:Assumed by Mattijs | G76: Scrap valuue | H76: =B74 -> 0.1
G77: Costs revision = increase in vale engine = % of new value | H77: =B71 -> 0.5
A78: General data/Details - SCR +DPF | B78: # | C78: Units | D78: Source | G78: Life time: assume 30 year
A79: SCR (Investment costs - Variable) @ < 30000 hours in five years | B79: 25 | C79: Euro/ kW | D79: Prominent (D2.2), Page 23. Section 2.4.1 | E79: investment | G79: Year | H79: Rest value engine | I79: Revision costs | J79: Rest value+ revision costs | M79: NPV rest value | N79: NPV revision costs | O79: NPV total
A80: SCR (Investment costs - Variable) @ > 30000 hours | B80: 52.5 | C80: Euro/ kW | D80: Prominent (D2.2), Page 23. Section 2.4. 1 | E80: investment | G80: 0 | H80: 1 | I80: 0 | J80: =H80+I80 -> 1 | M80: =H80 -> 1 | N80: =I80/1.04^G80 -> 0 | O80: =M80+N80 -> 1 | Q80: =$J$80-G80/$G$85*140% -> 1 | R80: =Q80/1.04^G80 -> 1
A81: DPF (Investment costs - Variable) @ 30000 hours | B81: 39 | C81: Euro/ kW | D81: Prominent (D2.2), Page 24. Section 2.4. 2 | E81: investment | G81: 15 | H81: =H80-15/30*B75 -> 0.3 | I81: 0 | J81: 0.3 | M81: =H81/1.04^G81 -> 0.1665793508 | N81: 0 | O81: =M81+N81 -> 0.1665793508 | Q81: 0.3 | R81: 0.1665793508
A82: DPF (Investment costs - Variable) @ 30000 - 60000 hours | B82: 81.9 | C82: Euro/ kW | D82: Prominent (D2.2), Page 24. Section 2.4. 2 | E82: investment | G82: 15 | H82: =H81+H77 -> 0.8 | I82: -0.5 | J82: 0.3 | M82: =H82/1.04^G82 -> 0.4442116022 | N82: -0.2776322514 | O82: =M82+$N$82 -> 0.1665793508 | Q82: 0.3 | R82: 0.1665793508
A83: SCR design and installation costs (Per unit/per engine) | B83: 45000 | C83: per engine | D83: Prominent (D2.2), Page 24. Section 2.4. 1 | E83: investment | G83: 20 | H83: =H82-5/15*70% -> 0.5666666667 | I83: 0 | J83: 0.5666666667 | M83: =H83/1.04^G83 -> 0.2586192695 | N83: 0 | O83: =M83+$N$82 -> -0.01901298184 | Q83: 0.06666666667 | R83: 0.03042579641
A84: DPF design and installation costs | B84: 15200 | C84: per engine | E84: investment | G84: 25 | H84: =H82-10/15*70% -> 0.3333333333 | I84: 0 | J84: 0.3333333333 | M84: =H84/1.04^G84 -> 0.1250389341 | N84: 0 | O84: =M84+$N$82 -> -0.1525933173 | Q84: -0.1666666667 | R84: -0.06251946704
A85: SCR + DPF (Investment cost - Fixed) @ 30000 hours (For high speed engines) | B85: 15200 | C85: Euro | D85: Prominent (D2.2), Page 24. Section 2.4. 1 | E85: investment | G85: 30 | H85: =H82-15/30*B75 -> 0.1 | I85: 0 | J85: 0.1 | M85: =H85/1.04^G85 -> 0.0308318668 | N85: 0 | O85: =M85+$N$82 -> -0.2468003846 | Q85: -0.4 | R85: -0.1233274672
A86: SCR + DPF (Investment cost - % increase from high speed engines) | B86: 0.5 | C86: % | D86: Prominent (D2.2), Page 24. Section 2.4. 1 | E86: investment
A87: SCR + DPF (Investment cost - Fixed) @ 30000 hours (For medium speed engines) (Costs determined based on 50% higher than high speed engines) | B87: 22800 | C87: Euro | D87: Prominent (D2.2), Page 24. Section 2.4. 1 | E87: investment
A88: SCR - Maintenance costs (Includes repair) for every 1000 engine hours | B88: 2 | C88: Euro/1000kwh | D88: Prominent (D2.2), Page 23. Section 2.4. 1 | E88: operational | G88: 1
A89: DPF - Maintenance costs (Includes repair) for every 1000 engine hours + filter cleaning @ 3000 hours | B89: 2.34 | C89: Euro/1000kwh | D89: Prominent (D2.2), Page 23. Section 2.4. 1 | E89: operational | H89: number of engines | I89: 1 | J89: 1 | K89: 1.5 | L89: 2 | M89: 2.5 | N89: 3
A90: Urea consumption of CCNR2 engines (To reduce Nox to 1.8g/kwh) | B90: 0.048 | C90: Liter/ kg diesel | D90: Prominent (D2.2), Page 23. Section 2.4. 1 | E90: operational | H90: kW | I90: 500 | J90: =I90+500 -> 1000 | K90: =J90+500 -> 1500 | L90: 2000 | M90: 2500 | N90: 3000
A91: Urea consumption of CCNR1 and CCCNR0 engines (To reduce Nox to 1.8g/kwh) | B91: =9/100 -> 0.09 | C91: Liter/ kg diesel | D91: Prominent (D2.2), Page 24. Section 2.4. 1 | E91: operational | H91: filter | I91: =$B$81*I90 -> 19500 | J91: =$B$81*J90 -> 39000 | K91: 58500 | L91: 78000 | M91: 97500 | N91: 117000
A92: Price of Urea (Adblue) Min | B92: 0.25 | C92: Euro/litre | D92: Prominent (D2.2), Page 24. Section 2.4. 1 | E92: operational | H92: per engine | I92: =$B$84*I89 -> 15200 | J92: =$B$84*J89 -> 15200 | K92: 22800 | L92: 30400 | M92: 38000 | N92: 45600
A93: Price of Urea (Adblue) Max | B93: 0.31 | C93: Euro/litre | D93: Prominent (D2.2), Page 24. Section 2.4. 1 | E93: operational | H93: SCR | I93: =$B$79*I90 -> 12500 | J93: =$B$79*J90 -> 25000 | K93: 37500 | L93: 50000 | M93: 62500 | N93: 75000
A94: Price of Urea (Adblue) Avg | B94: 0.28 | C94: Euro/litre | D94: Prominent (D2.2), Page 24. Section 2.4. 1 | E94: operational | H94: SCR fixed | I94: =$B$83*I89 -> 45000 | J94: =$B$83*J89 -> 45000 | K94: 67500 | L94: 90000 | M94: 112500 | N94: 135000
A95: Lifetime of the system (SCR + Catalyst) | B95: 30000 | C95: Hours | D95: Prominent (D2.2), Page 23. Section 2.4.1 | E95: operational | H95: Total | I95: =SUM(I91:I94) -> 92200 | J95: =SUM(J91:J94) -> 124200 | K95: 186300 | L95: 248400 | M95: 310500 | N95: 372600
A96: Rotterdam - Basic tarriff (Annual and complied to CCNR2 Standards) | B96: 3.196 | C96: Euros/tonne | D96: Prominent (D2.2), Page 25, Sectio 2.4.3 | E96: operational | I96: =I95/I90 -> 184.4 | J96: =J95/J90 -> 124.2 | K96: =K95/K90 -> 124.2 | L96: =L95/L90 -> 124.2 | M96: 124.2 | N96: 124.2
A97: Rotterdam - Basic tarriff (Annual and complied to CCNR1 Standards) | B97: 3.515 | C97: Euros/tonne | D97: Prominent (D2.2), Page 25, Sectio 2.4.3 | E97: operational
A98: Rotterdam - Tariff (Green Award certficiation) | B98: 2.716 | C98: Euros/tonne | D98: Prominent (D2.2), Page 25, Sectio 2.4.3 | E98: operational
A99: Rotterdam - Tariff (Emission 60% lower than CCNR2 standards) - *SCR + DPF installation reach these standards* | B99: 2.237 | C99: Euros/tonne | D99: Prominent (D2.2), Page 25, Sectio 2.4.3 | E99: operational
A100: Antwerp - Basic Tarriff (Annual) | B100: 3.15 | C100: Euros/tonne | D100: Prominent (D2.2), Page 26, Sectio 2.4.3 | E100: operational
A101: Antwerp - Tarriff (if compiled to CCNR-2 standards) | B101: 2.9295 | C101: Euros/tonne | D101: Prominent (D2.2), Page 26, Sectio 2.4.3 | E101: operational
A102: Antwerp - Tarriff (if diesel electric, with CCNR2 engine) LNG or hydrogen powered | B102: 2.6755 | C102: Euros/tonne | D102: Prominent (D2.2), Page 26, Sectio 2.4.3 | E102: operational
A103: Amsterdam - Basic tarriff | B103: 3.2446 | C103: Euros/tonne | D103: Prominent (D2.2), Page 26, Sectio 2.4.3 | E103: operational
A104: Amsterdam - Green Award Bronze certificate | B104: 3.08 | C104: Euros/Tonne | D104: Prominent (D2.2), Page 26, Sectio 2.4.3 | E104: operational
A105: Amsterdam - Green Award Silver certificate | B105: 2.9201 | C105: Euros/tonne | D105: Prominent (D2.2), Page 26, Sectio 2.4.3 | E105: operational
A106: Amsterdam - Green Award Gold certificate | B106: 2.75 | C106: Euros/tonne | D106: Prominent (D2.2), Page 26, Sectio 2.4.3 | E106: operational
A107: Oppurtunity costs | B107: 5 | C107: Days | D107: IWT Greening tool | E107: investment
A108: Time needed for installation | B108: 5 | C108: Days | D108: Prominent D2.2 Annex A2 | E108: investment
A109: Additional power or Fuel penalty | B109: 2 | C109: % | D109: Data is based on Sea going vessel = 0,05kw and fuel penalty is 1-2% in SFOC | E109: operational
A110: Nox emission (SCR Only) | B110: 0.7 | C110: % | D110: Prominent D1.2 | E110: environmental
A111: Nox emission (SCR + DPF) | B111: 0.7 | C111: % | D111: Prominent D1.2 | E111: environmental
A112: PM emission (SCR + DPF) | B112: ='Emission factors'!I5 -> 0.9 | C112: % | E112: environmental
A113: PM emission (SCR Only) CCNR 2 (Same as diesel value) | B113: =B37 -> 0.19 | C113: g/kwh | D113: The information in prominent is contradicting from no increase/decrease of PM to 0-20%. CCNR2 Values are used. | E113: environmental
A114: PM emission (SCR Only) CCNR 0 (Same as diesel value) | B114: =B35 -> 0.45 | D114: Assuming PM emission can be reduced optimizing on fuel consumption | E114: environmental
A115: CO2 emission/LT (Diesel) | B115: 2.64 | C115: kg/lt | D115: Salih Karaarslan 2017 (Same value for SCR/SCR+DPF since they do not reduce CO2).
A116: Fuel benefit Phase 5 | B116: 0.05 | C116: % | D116: 3-10 Range Panteia 2020
A117: Fuel penalty CCR2 (Additional on top of phase V diesel vessel) | B117: 0.05 | C117: % | D117: Its 1 -2% based on manufacturer data but we have taken the conservative approach | E117: operational
A118: Fuel penalty CCNR 1/ CCNR0 (Additional on top of baseline diesel vessel) | B118: 0.04 | C118: % | D118: 2% since old engines are less efficienct hence load would vary so applying the conservative approach. | E118: operational
A120: General data/Details - Right Sizing/Diesel - Electric/ Hybrid | B120: # | C120: Units | D120: Source
A121: Diesel engine CCNR2 incl gear box | B121: 220 | C121: Euro/Kw | D121: Table 7, Pg: 30, Document D2.8/2.9 Prominent | E121: investment | H121: kW | I121: 500 | J121: =I121+500 -> 1000 | K121: =J121+500 -> 1500 | L121: =K121+500 -> 2000 | M121: =L121+500 -> 2500 | N121: =M121+500 -> 3000
A122: Generator set | B122: 350 | C122: Euro/Kw | D122: Table 7, Pg: 30, Document D2.8/2.9 Prominent | E122: investment | H122: Generator set | I122: =I121*$B$122 -> 175000 | J122: =J121*$B$122 -> 350000 | K122: 525000 | L122: 700000 | M122: 875000 | N122: 1050000
A123: Electromotor + Controller | B123: 500 | C123: Euro/Kw | D123: Table 7, Pg: 30, Document D2.8/2.9 Prominent | E123: investment | H123: Electromotr | I123: =I121*$B$123 -> 250000 | J123: =J121*$B$123 -> 500000 | K123: 750000 | L123: 1000000 | M123: 1250000 | N123: 1500000
A124: Fuel based maintenance cost | B124: 0.12 | C124: Euro/m3 | D124: Section 6.3, Pg: 30, Document D2.8/2.9 Prominent | E124: operational | H124: Total | I124: =SUM(I122:I123) -> 425000 | J124: =SUM(J122:J123) -> 850000 | K124: 1275000 | L124: 1700000 | M124: 2125000 | N124: 2550000
A125: Power based maintenance cost | B125: 4.6 | C125: Euro/Kw | D125: Section 6.3, Pg: 30, Document D2.8/2.9 Prominent | E125: operational | H125: Eur/kw | I125: =I124/I121 -> 850 | J125: 850 | K125: 850 | L125: 850 | M125: 850 | N125: 850
A126: Engine revision time frame | B126: 30,000 hour or 6 years | C126: Hours/Years | D126: Section 6.3, Pg: 30, Document D2.8/2.9 Prominent | E126: operational
A127: Fuel price (Diesel/Lt) | B127: 0.7011 | C127: $/ton | D127: http://www.interrijn.com/ (70.11 euro for 100 Lt on 16/11/2018) | E127: operational | H127: =B124+B125+B128 -> 67.72
A128: Engine revision | B128: 63 | C128: Euro/Kw | D128: Section 6.3, Pg: 30, Document D2.8/2.9 Prominent | E128: operational
A129: Right size option 1 - Reduce it by 20% | B129: 80 | C129: % | D129: Table 9, Pg: 31, Document D2.8/2.9 Prominent | E129: investment
A130: Right size option 2 - Reduce it by 40% | B130: 60 | C130: % | D130: Table 9, Pg: 31, Document D2.8/2.9 Prominent | E130: investment
A131: Right size option 1 - Fuel reduction (Pessimistic value) | B131: -0.01 | C131: % | D131: Table 9, Pg: 31, Document D2.8/2.9 Prominent | E131: operational
A132: Right size option 1 - Fuel reduction (Optimistic value) | B132: -3 | C132: % | D132: Table 9, Pg: 31, Document D2.8/2.9 Prominent | E132: operational
A133: Conventional engine (KW - Baseline value) | B133: 1250 | C133: kw | D133: Table 9, Pg: 31, Document D2.8/2.9 Prominent | E133: investment
A134: Right size option 2 - Fuel reduction (Pessimistic value) | B134: -2 | C134: % | D134: Table 9, Pg: 31, Document D2.8/2.9 Prominent | E134: operational
A135: Right size option 2 - Fuel reduction (Optimistic value) | B135: -4 | C135: % | D135: Table 10, Pg: 32, Document D2.8/2.9 Prominent | E135: operational
A136: Right size option 1 - Investment savings | B136: 55000 | C136: Euro/yr | D136: Table 10, Pg: 32, Document D2.8/2.9 Prominent | E136: investment
A137: Right size option 2 - Investment savings | B137: 110000 | C137: Euro/yr | D137: Table 10, Pg: 32, Document D2.8/2.9 Prominent | E137: investment
A138: Extra Investment cost- Hybrid (Compared to Diesel direct drive line) - Lower value | B138: 102 | C138: Keur | D138: Pg:33, Document D2.8/2.9 Prominent | E138: investment
A139: Extra Investment cost- Hybrid (Compared to Diesel direct drive line) - Higher value | B139: 260 | C139: Keur | D139: Pg:33, Document D2.8/2.9 Prominent | E139: investment
A140: Extra Investment cost- Diesel electric driveline (Compared to Diesel direct driveline) | B140: 575 | C140: Keur | D140: Pg:33, Document D2.8/2.9 Prominent | E140: investment
A141: External costs | B141: 0.6 | C141: % | D141: Pg:23, Document Panteia 2013 contribution to impact assessment.
A142: Weighted average external costs for emissions to air (NOX/PM) | B142: 10.47 | C142: Euro/1000tkm | D142: Pg:27, Document Panteia 2013 contribution to impact assessment (Up until 2035)
A143: Climate change costs (CO2) | B143: 3.06 | C143: Euro/1000tkm | D143: Pg:27, Document Panteia 2013 contribution to impact assessment (Up until 2035)
A144: Hybrid configuration 1 | B144: =40/100 -> 0.4 | C144: % | D144: Pg:16, Document D2.8/2.9 Prominent
A145: Hybrid configuration 2 | B145: =50/100 -> 0.5 | C145: % | D145: Pg:16, Document D2.8/2.9 Prominent
A146: Hybrid Configuration 3 | B146: =30/100 -> 0.3 | C146: % | D146: Pg:16, Document D2.8/2.9 Prominent
A147: Fuel penalty | B147: 0.07 | C147: % | D147: 0-14% Page 20 Document D2.8/2.9 Prominent | E147: operational
A148: Diesel electric fuel savings | B148: 0.02 | C148: % | D148: At a certain speed point, it is said to have 2% fuel savings (Page 20 Document D2.8/2.9 Prominent) | E148: operational
A149: Engine revision time frame | B149: 6 | C149: yrs | D149: Pg:30, Document D2.8/2.9 Prominent | E149: operational
A150: Engine revision (euro/kw) | B150: 63 | C150: Euro/Kw | D150: Pg:30, Document D2.8/2.9 Prominent | E150: operational
A151: Idling days | B151: 14 | C151: days | D151: estimated based on greening tool | E151: Jaar | F151: 2020 | G151: 2030 | H151: 2040
A152: Battery costs | B152: =G152 -> 250 | C152: Euro/KWh | D152: BloombergNEF (2019)zegt 60 Euro per kW, TESLA truck gaat richting 150 € per kW (T&E paper), Innterreg gaat uit van 500 Eur /kwh | E152: Kosten | F152: 500 | G152: 250 | H152: 150
A153: Battery replacement
A154: Electricity costs | B154: 0.055 | C154: Euro/kwh | D154: Intter Fact sheet 5 (0.10 per kwH) of PANTEIA marginale prijs voor elektriciteit is vastgesteld op € 0,055 per kWh;DST min 0.03, avg 0.05 en max 0.10. https://ec.europa.eu/clima/sites/clima/files/eu-climate-action/docs/impact_part2_en.pdf small increase for final consumers | H154: beon KEV 2019
A155: Battery lifetime | B155: 10 | C155: years | D155: EICB presentation | H155: 2020 | I155: 2030 | J155: 2040
A156: Lifetime electro motor | B156: simliar to diesel engines | C156: years | D156: assumption | H156: 0.3 | I156: 0.1 | J156: 0.05
A157: CO2 emissions | B157: =I156/1000 -> 0.0001 | C157: ton CO2/kWh
A159: General data/Details - Fuel water emulsion | B159: # | C159: Units | D159: Source
A160: Investment Cost (For smaller engines <1000 kw) | B160: 135 | C160: Euro/kW | D160: Pg: 198, Panteia (Contribution to impact assessment of measures for reducing emissions of inland navigation) | E160: investment
A161: Investment Cost (For larger engines >1000 kw) | B161: 100 | C161: Euro/kW | D161: Pg: 198, Panteia (Contribution to impact assessment of measures for reducing emissions of inland navigation) | E161: investment | G161: € per MWh | H161: 2020 | I161: 2030 | J161: 2040 | L161: 2020 | M161: 2030 | N161: 2040 | P161: 2020 | Q161: 2030 | R161: 2040
A162: Hardware costs per KW | B162: 61 | C162: Euro / kW | D162: IWT Greening tool https://www.inlandwaterways.nl/greeningtool# | E162: investment | G162: Be | H162: =H167 -> 105 | I162: =I167 -> 111 | J162: 97 | L162: =AVERAGE(H162:H165) -> 98.66666667 | M162: =AVERAGE(I162:I165) -> 102.6666667 | N162: =AVERAGE(J162:J165) -> 92.33333333 | P162: =SUM(L162:N162)/3 -> 97.88888889 | Q162: =SUM(M162:N162)/2 -> 97.5 | R162: =N162 -> 92.33333333
A163: Hardware costs per KW | B163: 70 | C163: Euro / kW | D163: Assumption based on greening tool and Panteia | E163: investment
A164: Hardware costs fixed | B164: 10000 | C164: per ship | D164: IWT Greening tool https://www.inlandwaterways.nl/greeningtool# | E164: investment | G164: De | H164: =H170 -> 107 | I164: =I170 -> 101 | J164: 87
A165: Yard time | B165: 12 | C165: days | D165: IWT Greening tool https://www.inlandwaterways.nl/greeningtool# + 2 for revision | E165: investment | G165: Nl | H165: =H173 -> 84 | I165: =I173 -> 96 | J165: 93
A166: Installation costs | B166: 10000 | C166: Euros | D166: IWT Greening tool https://www.inlandwaterways.nl/greeningtool# | E166: investment | G166: BE
A167: Equipment costs (Based on Overview fleetender data) - Shipname: Hoekstra Brons | B167: =98500/883 -> 111.5515289 | C167: Euro/kW | D167: Data from overview fleetender (Ship of 883 kw) | E167: investment | G167: Average Cost of Gross Electricity Generation (€'13/MWh) | H167: 105 | I167: 111 | J167: 97
A168: Equipment costs (Based on Overview fleetender data) - Shipname: Invontes Scheepvaart | B168: =75000/1250 -> 60 | C168: Euro/kW | D168: Data from overview fleetender (Ship of 1250 kw) | E168: investment | G168: Average Price of Electricity in Final demand sectors (€'13/MWh) | H168: 146 | I168: 157 | J168: 158
A169: Reverse osomosis unit | B169: =7360/1250 -> 5.888 | C169: Euro/kW | D169: Data from overview fleetender (Ship of 1250 kw) | E169: investment
A170: Additional cost (Ship of 883 kw) | B170: =15000/883 -> 16.98754247 | C170: Euro/kW | D170: Data from overview fleetender | E170: investment | G170: DE | H170: 107 | I170: 101 | J170: 87
A171: Additional cost (Ship of 1250 kw) | B171: =3500/1250 -> 2.8 | C171: Euro/kW | D171: Data from overview fleetender | E171: investment | H171: 170 | I171: 173 | J171: 183
A172: Measurement after installation costs | B172: 3500 | C172: Euros | D172: Data from overview fleetender | E172: investment
A173: Measurement after installation costs | B173: =250/1000 -> 0.25 | C173: euro/hour | D173: IWT greening tool (Based on 250 euro per 1000 engine hours) | E173: operational | G173: NL | H173: 84 | I173: 96 | J173: 93
A174: Life span | B174: 8 | C174: years | D174: IWT Greening tool | E174: operational | H174: 137 | I174: 153 | J174: 164 | L174: number of engines | M174: 1 | N174: 1 | O174: 1.5 | P174: 2 | Q174: 2.5 | R174: 3
B175: =2/100 -> 0.02 | C175: % | D175: Pg: 198, Panteia (Contribution to impact assessment of measures for reducing emissions of inland navigation) | E175: operational | L175: kW | M175: 500 | N175: =M175+500 -> 1000 | O175: =N175+500 -> 1500 | P175: =O175+500 -> 2000 | Q175: 2500 | R175: 3000
A176: Reduction in fuel consumption | B176: 0.05 | C176: % | D176: Greening tool | E176: operational | L176: Investment costs paneia | M176: =M175*$B$160 -> 67500 | N176: =N175*$B$160 -> 135000 | O176: =O175*$B$161 -> 150000 | P176: =P175*$B$161 -> 200000 | Q176: 250000 | R176: 300000
A177: NOX reduction | B177: =25/100 -> 0.25 | C177: % | D177: Pg: 198, Panteia (Contribution to impact assessment of measures for reducing emissions of inland navigation) | L177: Greening tool | M177: =M175*$B$163+$B$164+$B$166 -> 55000 | N177: 90000 | O177: 125000 | P177: 160000 | Q177: 195000 | R177: 230000
A178: NOX reduction | B178: 0.15 | C178: % | D178: Monitoring results | H178: Op basis van Shell | I178: Meerprijs GTL per ton
A179: NOX reduction | B179: 0.23 | C179: % | D179: Greening tool | M179: =M176/M$175 -> 135 | N179: 135 | O179: 100 | P179: 100 | Q179: 100 | R179: 100
A180: NOX emissions (Diesel) | B180: 7 | C180: g/kwh | D180: 6.0 - 8.0 (Prominent D1.2 - Page no. 22, Section 4.1 | M180: =M177/M$175 -> 110 | N180: =N177/N$175 -> 90 | O180: =O177/O$175 -> 83.33333333 | P180: 80 | Q180: 78 | R180: 76.66666667
A181: Nox emissions (FWE) - 20% reduction | B181: 5.6 | C181: g/kwh | D181: Pg: 198, Panteia (Contribution to impact assessment of measures for reducing emissions of inland navigation - Values taken from Test beds of german vessel TUV Nord
A182: PM Reduction | B182: =80/100 -> 0.8 | C182: % | D182: Pg: 198, Panteia (Contribution to impact assessment of measures for reducing emissions of inland navigation)
A183: PM Reduction | B183: 0.5 | C183: % | D183: Monitoring results
A184: PM Reduction | B184: 0.7 | C184: % | D184: Greening tool
A185: PM emission (Diesel) | B185: 0.8 | C185: g/kwh | D185: Based on CCNR2 values (0,2 - 0,8g/kwh) (https://www.dieselnet.com/standards/eu/nonroad.php)
A186: PM emission (Diesel engine with FWE) | B186: 0.16 | C186: g/kwh | D186: Pg: 198, Panteia (Contribution to impact assessment of measures for reducing emissions of inland navigation - Values taken from Test beds of german vessel TUV Nord
A187: CO2 Reduction | B187: 3 | C187: % | D187: Pg: 198, Panteia (Contribution to impact assessment of measures for reducing emissions of inland navigation - Values taken from Test beds of german vessel TUV Nord
A189: General data/Details - GTL | B189: # | C189: Units | D189: Source
A190: Price of GTL (On top of the diesel cost) | B190: 0.1470588235 | C190: Euro/lt | D190: Jamie file (Additional cost on top of per liter of bunker diesel) | E190: operational
A191: Price of GTL | B191: =B8+B190 -> 0.8481588235 | C191: Euro/lt | D191: Jamie file (Additional cost on top of per liter of bunker diesel) | E191: operational
A192: Price of GTL 2020 (2nd source) | B192: =B191/B42 -> 1.014585528 | C192: Euro/kg | D192: https://www.oliecentrale.nl/producten/lijstprijs-brandstoffen | E192: operational
A193: Price of GTL 2020 (2nd source) | B193: =B200 -> 767.1366269 | C193: Euro/ton | D193: https://www.oliecentrale.nl/producten/lijstprijs-brandstoffen | E193: operational | G193: % | H193: 10 | I193: =N9*H193/100/B42 -> 69.73969336
A194: Price difference GTL- Diesel per kg | B194: =N9*B195-N9 -> 94.88634038 | C194: € per ton | D194: https://www.oliecentrale.nl/producten/lijstprijs-brandstoffen | E194: operational
A195: Price difference GTL- Diesel per kg | B195: =B196*(42.9/44)*(836/780) -> 1.162755301 | C195: % GTL compared to diesel per KG | E195: operational
A196: Price difference GTL- Diesel per liter | B196: =14851/13347 -> 1.112684498 | C196: % GTL compared to diesel per liter | D196: https://www.oliecentrale.nl/producten/lijstprijs-brandstoffen
A197: NOX reduction | B197: 0.1 | C197: % | D197: https://eibip.eu/publication/gas-to-liquid-gtl-fuel/ & monitoring results
A198: PM Reduction | B198: 0.3 | C198: % | D198: https://eibip.eu/publication/gas-to-liquid-gtl-fuel/ & monitoring results
A199: Additional costs GTL | B199: =I193 -> 69.73969336 | C199: € per ton | D199: https://www.oliecentrale.nl/producten/lijstprijs-brandstoffen | G199: en kilogram Shell GTL Fuel bevat weliswaar meer energie
A200: Fuel price GTL | B200: =Invoer_waarden!G59 -> 767.1366269 | C200: € per ton | D200: ='Key Data'!D248 -> 0 | G200: dan een kilogram conventionele diesel (44,0 tegen 42,9
A201: HVO price | B201: =B6*1.23 -> 857.7982283 | C201: € per ton | D201: TNO 2021 R11152 | G201: MJ), maar het aantal grammen per liter ligt beduidend lager.
A202: HVO WTW CO2 emissies | B202: =413.6/1000 -> 0.4136 | C202: kg/ kg | D202: STREAM 2020
G203: Tank je een liter GTL, dan krijg je 774 tot 782 gram brand-
A204: Geselecteerde brandstofprijs | B204: =IF(Invoer_waarden!$G$63='Ship segment (Data)'!$S$18,Invoer_waarden!$G$67,Invoer_waarden!$G$51) -> 697 | C204: =C201 -> € per ton | D204: =D201 -> TNO 2021 R11152 | G204: stof.
A205: Geselecteerde CO2 productie | B205: =IF(Invoer_waarden!$G$63='Ship segment (Data)'!$S$18,$B$202,$B$24) -> 3.913 | C205: =B24 -> 3.913

Sheet Emission factors (hidden)
N2: Nox
C3: g/kwh | D3: Nox | E3: PM | G3: Compared to Diesel | H3: Nox | I3: PM | N3: Engine type | O3: Revision | P3: Stage V | Q3: LNG mono fuel | R3: LNG Dual fuel refit | S3: SCR | T3: SCR + DPF | U3: Diesel electric | V3: Battery electric | W3: FWE | X3: GTL
B4: Diesel | C4: CCNRO/1 | D4: 9.93 | E4: =(E5+E6)/2 -> 0.265 | N4: unregulated | O4: =D5 -> 11.8 | P4: =D8 -> 1.79 | Q4: =D17 -> 1.79 | R4: =D16 -> 2.77 | S4: =D10 -> 3.54 | T4: =S4 -> 3.54 | U4: =P4 -> 1.79 | V4: =U4 -> 1.79 | W4: =D18 -> 10.03 | X4: =D21 -> 10.62
C5: CCNRO | D5: 11.8 | E5: 0.4 | G5: =B10 -> SCR/DPF | H5: 0.7 | I5: 0.9 | N5: CCR1 | O5: =D6 -> 9.2 | P5: =P4 -> 1.79 | Q5: =Q4 -> 1.79 | R5: 2.77 | S5: =D11 -> 2.76 | T5: =S5 -> 2.76 | U5: =P5 -> 1.79 | V5: =U5 -> 1.79 | W5: =D19 -> 7.82 | X5: =D22 -> 8.28
C6: CCNR1 | D6: 9.2 | E6: 0.13 | G6: =B18 -> FWE | H6: 0.15 | I6: 0.5 | N6: CCR2 | O6: =D7 -> 6.73 | P6: =P5 -> 1.79 | Q6: =Q5 -> 1.79 | R6: =R5 -> 2.77 | S6: 2.019 | T6: 2.019 | U6: 1.79 | V6: 1.79 | W6: 5.7205 | X6: 6.057
C7: CCNR2 | D7: 6.73 | E7: 0.13 | G7: =B21 -> GTL | H7: 0.1 | I7: 0.7
C8: Stage V | D8: ='Key Data'!B31 -> 1.79 | E8: 0.015 | N8: PM
C9: Euro VI | D9: 0.4 | E9: 0.01 | N9: Engine type | O9: Revision | P9: Stage V | Q9: LNG mono fuel | R9: LNG Dual fuel refit | S9: SCR | T9: SCR + DPF | U9: Diesel electric | V9: Battery electric | W9: FWE | X9: GTL
B10: SCR/DPF | C10: =C5 -> CCNRO | D10: =(1-$H$5)*D5 -> 3.54 | E10: =(1-$I$5)*E5 -> 0.04 | N10: unregulated | O10: =E5 -> 0.4 | P10: =E8 -> 0.015 | Q10: =E17 -> 0.015 | R10: =E16 -> 0.015 | S10: =E5 -> 0.4 | T10: =E10 -> 0.04 | U10: =P10 -> 0.015 | V10: =U10 -> 0.015 | W10: =E18 -> 0.2 | X10: =E21 -> 0.12
C11: =C6 -> CCNR1 | D11: =(1-$H$5)*D6 -> 2.76 | E11: =(1-$I$5)*E6 -> 0.013 | N11: CCR1 | O11: =E6 -> 0.13 | P11: =P10 -> 0.015 | Q11: =Q10 -> 0.015 | R11: =R10 -> 0.015 | S11: =E6 -> 0.13 | T11: =E11 -> 0.013 | U11: =P11 -> 0.015 | V11: =U11 -> 0.015 | W11: =E19 -> 0.065 | X11: =E22 -> 0.039
C12: CCNR2 | D12: =(1-$H$5)*D7 -> 2.019 | E12: =(1-$I$5)*E7 -> 0.013 | N12: CCR2 | O12: =E7 -> 0.13 | P12: =P11 -> 0.015 | Q12: 0.015 | R12: 0.015 | S12: =E7 -> 0.13 | T12: =E12 -> 0.013 | U12: 0.015 | V12: 0.015 | W12: =E20 -> 0.065 | X12: =E23 -> 0.039
B13: SCR | C13: =C10 -> CCNRO
C14: =C11 -> CCNR1 | I14: min | J14: average | K14: max
C15: CCNR2 | H15: Diesel | I15: =E7 -> 0.13 | J15: =AVERAGE(I15,K15) -> 0.265 | K15: =E5 -> 0.4
B16: LNG | C16: Existing | D16: 2.77 | E16: 0.015 | H16: GTL | I16: =E23 -> 0.039 | J16: =AVERAGE(I16,K16) -> 0.0795 | K16: =E21 -> 0.12
C17: Stage V | D17: =D8 -> 1.79 | E17: =E8 -> 0.015 | H17: FWE | I17: =E20 -> 0.065 | J17: =AVERAGE(I17,K17) -> 0.1325 | K17: =E18 -> 0.2
B18: FWE | C18: =C5 -> CCNRO | D18: =(1-H$6)*D5 -> 10.03 | E18: 0.2 | H18: LNG | I18: =E16 -> 0.015 | J18: 0.015 | K18: =E16 -> 0.015
C19: =C6 -> CCNR1 | D19: 7.82 | E19: 0.065 | H19: SCR-DPF | I19: =E12 -> 0.013 | J19: 0.0265 | K19: =E10 -> 0.04
C20: =C7 -> CCNR2 | D20: 5.7205 | E20: 0.065 | H20: Euro VI | I20: =E9 -> 0.01 | J20: 0.01 | K20: =E9 -> 0.01
B21: GTL | C21: =C18 -> CCNRO | D21: =(1-H$7)*D5 -> 10.62 | E21: 0.12
C22: =C19 -> CCNR1 | D22: 8.28 | E22: 0.039 | I22: =J15-I15 -> 0.135 | K22: =K15-J15 -> 0.135
C23: CCNR2 | D23: 6.057 | E23: 0.039 | I23: =J16-I16 -> 0.0405 | K23: =K16-J16 -> 0.0405
I24: 0.0675 | K24: 0.0675
I25: 0 | K25: 0
I26: 0.0135 | K26: 0.0135
I27: 0 | K27: 0

Sheet Ship segment (Data) (hidden)
B1: source: PROMINENT D2.2
A2: CE Delft Segment | B2: Fleet family | C2: Vessel type | E2: Length (m) | F2: Width (m) | G2: Draught (m) | H2: Max pay-load (t) | I2: Operational hours/year | J2: # en-gines | K2: Installed kW | L2: Fuel cons. (M3) | N2: Average engine load | P2: Segment | S2: M3 / Kwh
A3: ='Ship segment (Data)'!B85 -> A1 | B3: ='Ship segment (Data)'!C85 -> Passenger vessel <250 kW | I3: ='Ship segment (Data)'!I85/0.5 -> 1880 | J3: ='Ship segment (Data)'!G85/'Ship segment (Data)'!F85 -> 1.162173762 | K3: ='Ship segment (Data)'!J85 -> 125.9733664 | L3: =K3*I3*$S$3 -> 10.65054983 | N3: =(L3*'Key Data'!$B$43*1000/3.6)/K3/I3 -> 0.4479541246 | S3: =SUM(L8:L34)/SUMPRODUCT($K$8:$K$34,$I$8:$I$34) -> 4.497130021e-05
A4: ='Ship segment (Data)'!B86 -> A2 | B4: ='Ship segment (Data)'!C86 -> Passenger vessel 250 - 500 kW | I4: ='Ship segment (Data)'!I86/0.5 -> 1390 | J4: ='Ship segment (Data)'!G86/'Ship segment (Data)'!F86 -> 1.506540786 | K4: ='Ship segment (Data)'!J86 -> 429.4484211 | L4: =K4*I4*$S$3 -> 26.84486688 | N4: =(L4*'Key Data'!$B$43*1000/3.6)/K4/I4 -> 0.4479541246 | W4: Period | X4: Scenario | Z4: Vessel type | AA4: Fuel use | AC4: ZE meenemen? | AD4: Afschrijving?
A5: ='Ship segment (Data)'!B87 -> A3 | B5: ='Ship segment (Data)'!C87 -> Passenger vessel 500 - 1000 kW | I5: ='Ship segment (Data)'!I87/0.5 -> 1470 | J5: ='Ship segment (Data)'!G87/'Ship segment (Data)'!F87 -> 1.815869825 | K5: ='Ship segment (Data)'!J87 -> 693.0214216 | L5: =K5*I5*$S$3 -> 45.81412938 | N5: =(L5*'Key Data'!$B$43*1000/3.6)/K5/I5 -> 0.4479541246 | W5: 15 | X5: =Invoer_waarden!D41&Invoer_waarden!G41 -> Motor vessels dry cargo 110 m shipnormal fuel use | Z5: =INDEX('Ship segment (Data)'!AC$85:AC$138,MATCH('Ship segment (Data)'!$X$5,scenario_names,0)) -> Motor vessels dry cargo 110 m ship | AA5: =INDEX('Ship segment (Data)'!AD$85:AD$138,MATCH('Ship segment (Data)'!$X$5,scenario_names,0)) -> normal fuel use | AC5: ja | AD5: met restwaarde
A6: ='Ship segment (Data)'!B101 -> N | B6: ='Ship segment (Data)'!C101 -> Ferry | I6: ='Ship segment (Data)'!I101 -> 750 | J6: ='Ship segment (Data)'!G101/'Ship segment (Data)'!F101 -> 2.1875 | K6: ='Ship segment (Data)'!J101 -> 644 | L6: =K6*I6*$S$3 -> 21.721138 | N6: =(L6*'Key Data'!$B$43*1000/3.6)/K6/I6 -> 0.4479541246
A7: ='Ship segment (Data)'!B102 -> O | B7: ='Ship segment (Data)'!C102 -> tugboat and workboat | I7: ='Ship segment (Data)'!I102 -> 916 | J7: ='Ship segment (Data)'!G102/'Ship segment (Data)'!F102 -> 1.249 | K7: ='Ship segment (Data)'!J102 -> 500 | L7: 20.5968555 | N7: =(L7*'Key Data'!$B$43*1000/3.6)/K7/I7 -> 0.4479541246
A8: A4 | B8: Passenger vessels (hotel/cruise) | C8: PAX 135m | E8: 135 | F8: 11.5 | G8: 2 | H8: NA | I8: 4318 | J8: ='Ship segment (Data)'!G88/'Ship segment (Data)'!F88 -> 2.390116222 | K8: ='Ship segment (Data)'!J88 -> 1492 | L8: 433 | N8: =(L8*'Key Data'!$B$43*1000/3.6)/K8/I8 -> 0.6694752574 | P8: 1 | R8: a | S8: Propulsion power 200-600
A9: B | B9: Push boats <500 kW | C9: PB <500 kW B04 | E9: 85 | F9: 8.2 | G9: 2.7 | H9: 1250 | I9: 3360 | J9: ='Ship segment (Data)'!G89/'Ship segment (Data)'!F89 -> 1.2 | K9: 400 | L9: 82 | N9: =(L9*'Key Data'!$B$43*1000/3.6)/K9/I9 -> 0.6077328042 | P9: 1 | R9: b | S9: Propulsion power 600-1100
A10: C-1 | B10: Push boats 500-2000 kW | C10: PushB2L 500-2000kW | E10: 190 | F10: 11.4 | G10: 3 | H10: 5000 / 352 TEU | I10: 8064 | J10: 2 | K10: 1249 | L10: 141 | N10: =(L10*'Key Data'!$B$43*1000/3.6)/K10/I10 -> 0.1394454188 | P10: 2 | R10: c | S10: Propulsion power 1200-2200
A11: C-2 | B11: Push boats 500-2000 kW | C11: PushBII-1, 500-2000kW | E11: 130 | F11: 11.4 | G11: 6 | H11: 2800 | I11: 4313 | J11: 2 | K11: 1249 | L11: 178 | N11: =(L11*'Key Data'!$B$43*1000/3.6)/K11/I11 -> 0.3291366174 | P11: 2 | R11: d | S11: Propulsion power 2600-4100
A12: C | B12: Push boats 500-2000 kW | C12: Average of both C categories (B2L and BII-1) | E12: =AVERAGE(E10:E11) -> 160 | F12: =AVERAGE(F10:F11) -> 11.4 | G12: =AVERAGE(G10:G11) -> 4.5 | H12: 2800 | I12: 6188.5 | J12: 2 | K12: 1249 | L12: =AVERAGE(L10:L11) -> 159.5 | N12: =(L12*'Key Data'!$B$43*1000/3.6)/K12/I12 -> 0.2055469086 | P12: 2 | R12: e | S12: Coupled convoys (1750-2750 kW)
A13: D-1 | B13: Push boats >=2000 kW | C13: Push B4 > 2000 kW | E13: 190 | F13: 22.8 | G13: 4 | H13: 11200 | I13: 8064 | J13: 3 | K13: 4080 | L13: 1094 | N13: =(L13*'Key Data'!$B$43*1000/3.6)/K13/I13 -> 0.3312109875 | P13: 4
A14: D-2 | B14: Push boats >=2000 kW | C14: Push B6 > 2000 kW | E14: 270 | F14: 22.8 | G14: 4 | H14: 16800 | I14: 8064 | J14: 3 | K14: 4080 | L14: 2323 | N14: =(L14*'Key Data'!$B$43*1000/3.6)/K14/I14 -> 0.7032935319 | P14: 4
A15: D | B15: Push boats >=2000 kW | C15: Average of both D categories (B4 and B6) | E15: =AVERAGE(E13:E14) -> 230 | F15: =AVERAGE(F13:F14) -> 22.8 | G15: 4 | H15: 14000 | I15: 8064 | J15: 3 | K15: 4080 | L15: =AVERAGE(L13:L14) -> 1708.5 | N15: =(L15*'Key Data'!$B$43*1000/3.6)/K15/I15 -> 0.5172522597 | P15: 4
A16: H | B16: Motor vessel dry cargo >=110m length | C16: MVS 110m | E16: 110 | F16: 11.4 | G16: 3.5 | H16: 3043 | I16: 4318 | J16: 1 | K16: 1527 | L16: 307 | N16: =(L16*'Key Data'!$B$43*1000/3.6)/K16/I16 -> 0.4637829686 | P16: 3
A17: I | B17: Motor vessel dry cargo >=110m length | C17: MVS 135m | E17: 135 | F17: 11.4 | G17: 3.3 | H17: 3300 / 268 TEU | I17: 7898 | J17: 2 | K17: 1492 | L17: 472 | N17: =(L17*'Key Data'!$B$43*1000/3.6)/K17/I17 -> 0.3989827706 | P17: 3 | S17: list | T17: List2
A18: K | B18: Motor vessel liquid cargo >=110m length | C18: MTS 110m | E18: 110 | F18: 11.4 | G18: 3.5 | H18: 2908 | I18: 4318 | J18: 1.1 | K18: 1550 | L18: 355 | N18: =(L18*'Key Data'!$B$43*1000/3.6)/K18/I18 -> 0.528338322 | P18: 3 | S18: HVO | T18: _
A19: L-1 | B19: Motor vessel liquid cargo >=110m length | C19: MTS 135m (M11) | E19: 135 | F19: 11.4 | G19: 4 | H19: 4290 (5320 m3) | I19: 7898 | J19: 2 | K19: 2347 | L19: 352 | N19: =(L19*'Key Data'!$B$43*1000/3.6)/K19/I19 -> 0.1891518269 | P19: 3 | S19: Diesel | T19: Let op: HVO is een biodiesel met lagere CO2 uitstoot. Voor GTL en LNG zijn geen bio-varianten doorgerekend maar de reguliere fossiele varianten.
A20: L-2 | B20: Motor vessel liquid cargo >=110m length | C20: MTS 135M (M12) | E20: 135 | F20: 17 | G20: 3.8 | H20: 6228 | I20: 7898 | J20: 2 | K20: 2370 | L20: 352 | N20: =(L20*'Key Data'!$B$43*1000/3.6)/K20/I20 -> 0.1873161762 | P20: 3
A21: L | B21: Motor vessel liquid cargo >=110m length | C21: Average of both L categories (M11 and M12) | E21: =AVERAGE(E19:E20) -> 135 | F21: =AVERAGE(F19:F20) -> 14.2 | G21: =AVERAGE(G19:G20) -> 3.9 | H21: 6228 | I21: 7898 | J21: 2 | K21: =AVERAGE(K19:K20) -> 2358.5 | L21: =AVERAGE(L19:L20) -> 352 | N21: =(L21*'Key Data'!$B$43*1000/3.6)/K21/I21 -> 0.1882295263
A22: F-1 | B22: Motor vessel dry cargo 80-109m length | C22: MVS 80m | E22: 80 | F22: 8.2 | G22: 2.7 | H22: 1250 | I22: 3499 | J22: 1 | K22: 700 | L22: 111 | N22: =(L22*'Key Data'!$B$43*1000/3.6)/K22/I22 -> 0.4514182283 | P22: b
A23: F-2 | B23: Motor vessel dry cargo 80-109m length | C23: MVS 86m | E23: 86 | F23: 9.5 | G23: 2.9 | H23: 1522 | I23: 3971 | J23: 1.1 | K23: 756 | L23: 155 | N23: =(L23*'Key Data'!$B$43*1000/3.6)/K23/I23 -> 0.5142900372 | P23: b
A24: F | B24: Motor vessel dry cargo 80-109m length | C24: Average of both F categories (80m and 86m) | E24: =AVERAGE(E22:E23) -> 83 | F24: =AVERAGE(F22:F23) -> 8.85 | G24: 2.8 | H24: 1386 | I24: 3735 | J24: 1.05 | K24: 728 | L24: =AVERAGE(L22:L23) -> 133 | N24: =(L24*'Key Data'!$B$43*1000/3.6)/K24/I24 -> 0.4872229659
A25: G | B25: Motor vessel dry cargo 80-109m length | C25: MVS 105m | E25: 105 | F25: 9.5 | G25: 3 | H25: 2050 | I25: 4013 | J25: 1.1 | K25: 1286 | L25: 311 | N25: =(L25*'Key Data'!$B$43*1000/3.6)/K25/I25 -> 0.6002723738
A26: J | B26: Motor vessel liquid cargo 80-109m length | C26: MTS 86m | E26: 86 | F26: 9.5 | G26: 3.2 | H26: 1680 (1918m3) | I26: 3971 | J26: 1 | K26: 1210 | L26: 272 | N26: =(L26*'Key Data'!$B$43*1000/3.6)/K26/I26 -> 0.5638735747
A27: E-1 | B27: Motor vessels <80 m. length | C27: MVS 67m | E27: 67 | F27: 8.2 | G27: 2.7 | H27: 985 | I27: 3778 | J27: 1.2 | K27: 445 | L27: 81 | N27: =(L27*'Key Data'!$B$43*1000/3.6)/K27/I27 -> 0.4799114923
A28: E-2 | B28: Motor vessels <80 m. length | C28: MVS 55m | E28: 55 | F28: 7.2 | G28: 2.6 | H28: 653 | I28: 3874 | J28: 1 | K28: 319 | L28: 48 | N28: =(L28*'Key Data'!$B$43*1000/3.6)/K28/I28 -> 0.3868913621
A29: E-3 | B29: Motor vessels <80 m. length | C29: MVS 50m | E29: 50 | F29: 6.6 | G29: 2.6 | H29: 650 | I29: 3830 | J29: 1 | K29: 300 | L29: 34 | N29: =(L29*'Key Data'!$B$43*1000/3.6)/K29/I29 -> 0.2947521516
A30: E-4 | B30: Motor vessels <80 m. length | C30: MVS 38,5m | E30: 39 | F30: 5.1 | G30: 2.5 | H30: 400 | I30: 3265 | J30: 1 | K30: 220 | L30: 23 | N30: =(L30*'Key Data'!$B$43*1000/3.6)/K30/I30 -> 0.3189481337
A31: E | B31: Motor vessels <80 m. length | C31: Average of four E categories (67, 55, 50, 38.5) | E31: =AVERAGE(E27:E30) -> 52.75 | F31: =AVERAGE(F27:F30) -> 6.775 | G31: 2.6 | H31: 672 | I31: 3686.75 | J31: 1.05 | K31: =AVERAGE(K27:K30) -> 321 | L31: =AVERAGE(L27:L30) -> 46.5 | N31: =(L31*'Key Data'!$B$43*1000/3.6)/K31/I31 -> 0.3913833329
A32: M | B32: Coupled convoys | C32: C3L/B | E32: 110 + 80 | F32: 11.4 | G32: 3.4 | H32: 5500 | I32: 8064 | J32: 2 | K32: 2351 | L32: 551 | N32: =(L32*'Key Data'!$B$43*1000/3.6)/K32/I32 -> 0.2894986523
B33: Danube barges | C33: Push Barge, 4 units, Danube | E33: 178 | F33: 22.8 | G33: 2.7 | H33: 6400 | I33: 8064 | J33: 2 | K33: 2000 | L33: 1533 | N33: =(L33*'Key Data'!$B$43*1000/3.6)/K33/I33 -> 0.9468032407
C34: Push Barge, 8/9 units, Danube | E34: 267 | F34: 33 | G34: 2.9 | H34: 17400 | I34: 8064 | J34: 2 | K34: 2000 | L34: 1252 | N34: =(L34*'Key Data'!$B$43*1000/3.6)/K34/I34 -> 0.7732535273
N36: AIS data analyse
B37: Not applicable anymore | J37: =I2 -> Operational hours/year | K37: Sailing hours (STC NESTRA) | L37: AIS data Armin gemiddeld | N37: Schip wat veel vaart (75%) | O37: Mediaan schip | P37: Onderkant van histogram (25%) | R37: PROMINENT
B38: Prominent categories | C38: Segment (CBA) (Not applicable anymore | D38: Defintion (Propulsion power) | H38: A1 | I38: Passenger vessel <250 kW | J38: =INDEX($I$3:$I$32,MATCH(H38,$A$3:$A$32,0)) -> 1880 | K38: ='Ship segment (Data)'!I85 -> 940 | L38: 1601.119433 | N38: 2213.469961 | O38: 1073.159868 | P38: 418.2793119
B39: Passenger vessels (hotel/cruise) | C39: a | D39: Propulsion power 200-600 | H39: A2 | I39: Passenger vessel 250 - 500 kW | J39: =INDEX($I$3:$I$32,MATCH(H39,$A$3:$A$32,0)) -> 1390 | K39: ='Ship segment (Data)'!I86 -> 695 | L39: 1112.361964 | N39: 1370.569382 | O39: 694.1961534 | P39: 310.6063802
B40: Push boats <500 kW | C40: a | H40: A3 | I40: Passenger vessel 500 - 1000 kW | J40: 1470 | K40: ='Ship segment (Data)'!I87 -> 735 | L40: 1406.909642 | N40: 1731.293268 | O40: 1028.514625 | P40: 425.2796623
B41: Motor vessels <80 m. length | C41: a | H41: A4 | I41: Passenger vessel >1000 kW | J41: 4318 | K41: ='Ship segment (Data)'!I88 -> 1750 | L41: 1772.185558 | N41: 2543.377583 | O41: 1436.538051 | P41: 770.0878829
B42: Push boats 500-2000 kW | C42: b | D42: Propulsion power 600-1100 | H42: B | I42: Push boats <500 kW | J42: 3360 | K42: ='Ship segment (Data)'!I89 -> 1420 | L42: 2092.571978 | N42: 2831.328651 | O42: 1746.539199 | P42: 1100.952891
B43: Motor vessel dry cargo 80-109m length | C43: b | H43: C | I43: Push boats 500-2000 kW | J43: 6188.5 | K43: ='Ship segment (Data)'!I90 -> 3000 | L43: 2632.675062 | N43: 3509.238539 | O43: 2423.986016 | P43: 1594.939968
B44: Motor vessel liquid cargo 80-109m length | C44: b | H44: D | I44: Push boats ≥2000 kW | J44: 8064 | K44: ='Ship segment (Data)'!I91 -> 7258 | L44: 6552.997708 | N44: 7354.064801 | O44: 7287.241401 | P44: 6683.197647
B45: Motor vessel dry cargo >=110m length | C45: c | D45: Propulsion power 1200-2200 | H45: E | I45: Motor vessels <80 m. length | J45: 3686.75 | K45: ='Ship segment (Data)'!I92 -> 1500 | L45: 1922.982281 | N45: 2486.593973 | O45: 1776.425623 | P45: 1144.609156
B46: Motor vessel dry cargo 80-109m length | C46: c | H46: F | I46: Motor vessels dry cargo typical 80 and 86 m ship | J46: 3735 | K46: ='Ship segment (Data)'!I93 -> 1600 | L46: 2254.541821 | N46: 2788.584482 | O46: 2183.959266 | P46: 1593.771414
B47: Push boats >=2000 kW | C47: d | D47: Propulsion power 2600-4100 | H47: G | I47: Motor vessels dry cargo typical 105 m ship | J47: 4013 | K47: ='Ship segment (Data)'!I94 -> 1886 | L47: 2725.256185 | N47: 3359.735738 | O47: 2640.22897 | P47: 1932.960045
B48: Coupled convoys | C48: e | D48: Coupled convoys (1750-2750 kW) | H48: H | I48: Motor vessels dry cargo 110 m ship | J48: 4318 | K48: ='Ship segment (Data)'!I95 -> 1943 | L48: 2844.273973 | N48: 3473.126332 | O48: 2711.228387 | P48: 2076.841645
H49: I | I49: Motor vessels dry cargo >130 (135 m ship) | J49: 7898 | K49: ='Ship segment (Data)'!I96 -> 2831 | L49: 2946.844711 | N49: 3563.672197 | O49: 2834.726418 | P49: 2377.093139
H50: J | I50: Motor vessels liquid cargo 80-109m length (typical 86 m ship) | J50: 3971 | K50: ='Ship segment (Data)'!I97 -> 1707 | L50: 2793.678245 | N50: 3410.841097 | O50: 2875.182654 | P50: 2038.91906
H51: K | I51: Motor vessels liquid cargo 110 m ship | J51: 4318 | K51: ='Ship segment (Data)'!I98 -> 1943 | L51: 2861.949784 | N51: 3824.69157 | O51: 2858.195088 | P51: 1781.618226
H52: L | I52: Motor vessels liquid cargo >130 (135 m ship) | J52: 7898 | K52: ='Ship segment (Data)'!I99 -> 2831 | L52: 2118.900279 | N52: 2747.599905 | O52: 1754.598438 | P52: 1197.706896
H53: M | I53: Coupled convoys | J53: 8064 | K53: ='Ship segment (Data)'!I100 -> 2513 | L53: 3294.99293 | N53: 4477.883774 | O53: 3146.421599 | P53: 2235.881524
H54: N | I54: Ferry | J54: 1200 | K54: ='Ship segment (Data)'!I101 -> 750 | L54: 1388.90461 | N54: 1977.279439 | O54: 958.3565827 | P54: 373.2236607
H55: O | I55: tugboat and workboat | J55: 1600 | K55: ='Ship segment (Data)'!I102 -> 916 | L55: 1634.002812 | N55: 2197.901151 | O55: 1077.161365 | P55: 455.1244184
J57: Vaauren | M57: Operationele uren | P57: Brandstofverbruik | S57: idling costs per day | V57: Port dues per annum
J58: high fuel use | K58: normal fuel use | L58: low fuel use | M58: high fuel use | N58: normal fuel use | O58: low fuel use | P58: high fuel use | Q58: normal fuel use | R58: low fuel use | S58: high fuel use | T58: normal fuel use | U58: low fuel use | V58: high fuel use | W58: normal fuel use | X58: low fuel use
H59: A1 | I59: Passenger vessel <250 kW | J59: =$K38/$O38*N38 -> 1938.818087 | K59: =K38 -> 940 | L59: =$K38/$O38*P38 -> 366.3783606 | M59: =$N59-$K59+J59 -> 2878.818087 | N59: =J38 -> 1880 | O59: =$N59-$K59+L59 -> 1306.378361 | P59: =$Q59/$K59*J59 -> 21.96753048 | Q59: =INDEX($L$3:$L$32,MATCH(H59,$A$3:$A$32,0)) -> 10.65054983 | R59: =$Q59/$K59*L59 -> 4.151203177 | S59: =M59/$N59*T59 -> 526.6690697 | T59: ='Ship segment (Data)'!K85 -> 343.9390129 | U59: =O59/$N59*T59 -> 238.9970658 | V59: =M59/$N59*$W59 -> 6464.520096 | W59: ='Ship segment (Data)'!L85 -> 4221.627561 | X59: =O59/$N59*$W59 -> 2933.533453
H60: A2 | I60: Passenger vessel 250 - 500 kW | J60: 1372.156437 | K60: 695 | L60: 310.9660478 | M60: =$N60-$K60+J60 -> 2067.156437 | N60: =J39 -> 1390 | O60: =$N60-$K60+L60 -> 1005.966048 | P60: =$Q60/$K60*J60 -> 53.00051352 | Q60: =INDEX($L$3:$L$32,MATCH(H60,$A$3:$A$32,0)) -> 26.84486688 | R60: 12.01128368 | S60: =M60/$N60*T60 -> 1743.701975 | T60: ='Ship segment (Data)'!K86 -> 1172.502333 | U60: =O60/$N60*T60 -> 848.5593797 | V60: =M60/$N60*$W60 -> 21402.80701 | W60: ='Ship segment (Data)'!L86 -> 14391.70312 | X60: 10415.51418
H61: A3 | I61: Passenger vessel 500 - 1000 kW | J61: 1237.221641 | K61: 735 | L61: 303.9145427 | M61: =$N61-$K61+J61 -> 1972.221641 | N61: 1470 | O61: 1038.914543 | P61: 77.11868344 | Q61: 45.81412938 | R61: 18.9436465 | S61: 2538.561852 | T61: ='Ship segment (Data)'!K87 -> 1892.122997 | U61: 1337.247686 | V61: 31159.19474 | W61: ='Ship segment (Data)'!L87 -> 23224.57847 | X61: 16413.84512
H62: A4 | I62: Passenger vessel >1000 kW | J62: 3098.359119 | K62: 1750 | L62: 938.1260693 | M62: =$N62-$K62+J62 -> 5666.359119 | N62: 4318 | O62: 3506.126069 | P62: 766.6225706 | Q62: 433 | R62: 232.1191931 | S62: =M62/$N62*T62 -> 5345.557258 | T62: ='Ship segment (Data)'!K88 -> 4073.535714 | U62: 3307.626161 | V62: 65613.23667 | W62: ='Ship segment (Data)'!L88 -> 50000 | X62: 40598.95865
H63: B | I63: Push boats <500 kW | J63: 2301.973346 | K63: 1420 | L63: 895.1148111 | M63: 4241.973346 | N63: 3360 | O63: 2835.114811 | P63: 132.9308552 | Q63: 82 | R63: 51.68972853 | S63: 292.1363035 | T63: ='Ship segment (Data)'!K89 -> 231.3965458 | U63: 195.2487423 | V63: 4223.035965 | W63: ='Ship segment (Data)'!L89 -> 3345 | X63: 2822.458049
H64: C | I64: Push boats 500-2000 kW | J64: 4343.142058 | K64: 3000 | L64: 1973.946991 | M64: 7531.642058 | N64: 6188.5 | O64: 5162.446991 | P64: 230.9103861 | Q64: =INDEX($L$3:$L$32,MATCH(H64,$A$3:$A$32,0)) -> 159.5 | R64: 104.9481817 | S64: 879.3537003 | T64: ='Ship segment (Data)'!K90 -> 722.5357143 | U64: 602.7393268 | V64: 63525.75269 | W64: ='Ship segment (Data)'!L90 -> 52197 | X64: 43542.73985
H65: D | I65: Push boats ≥2000 kW | J65: 7324.555259 | K65: 7258 | L65: 6656.380084 | M65: 8130.555259 | N65: 8064 | O65: 7462.380084 | P65: =L14 -> 2323 | Q65: 2100 | R65: 1925.929757 | S65: 4443.984801 | T65: ='Ship segment (Data)'!K91 -> 4407.607143 | U65: 4078.774772 | V65: 90575.43417 | W65: ='Ship segment (Data)'!L91 -> 89834 | X65: 83131.87654
H66: E | I66: Motor vessels <80 m. length | J66: 2099.660639 | K66: 1500 | L66: 966.4990816 | M66: 4286.410639 | N66: 3686.75 | O66: 3153.249082 | P66: =L27 -> 81 | Q66: 46.5 | R66: =L30 -> 23 | S66: 269.8420394 | T66: ='Ship segment (Data)'!K92 -> 232.0916549 | U66: 198.5062176 | V66: 5813.264582 | W66: ='Ship segment (Data)'!L92 -> 5000 | X66: 4276.461764
H67: F | I67: Motor vessels dry cargo typical 80 and 86 m ship | J67: 2042.957139 | K67: 1600 | L67: 1167.619883 | M67: 4177.957139 | N67: 3735 | O67: 3302.619883 | P67: 169.8208121 | Q67: 133 | R67: =$Q67/$K67*L67 -> 97.05840277 | S67: 588.7884014 | T67: ='Ship segment (Data)'!K93 -> 526.3636285 | U67: 465.4294472 | V67: 8948.77031 | W67: ='Ship segment (Data)'!L93 -> 8000 | X67: 7073.884622
H68: G | I68: Motor vessels dry cargo typical 105 m ship | J68: 2399.966698 | K68: 1886 | L68: 1380.775185 | M68: 4526.966698 | N68: 4013 | O68: 3507.775185 | P68: 395.7527269 | Q68: 311 | R68: 227.6888031 | S68: 1048.898831 | T68: ='Ship segment (Data)'!K94 -> 929.8126734 | U68: 812.7520117 | V68: 12408.82972 | W68: ='Ship segment (Data)'!L94 -> 11000 | X68: 9615.132579
H69: H | I69: Motor vessels dry cargo 110 m ship | J69: 2489.01365 | K69: 1943 | L69: 1488.367168 | M69: 4864.01365 | N69: 4318 | O69: 3863.367168 | P69: 393.2718428 | Q69: 307 | R69: 235.1666086 | S69: 868.8554787 | T69: ='Ship segment (Data)'!K95 -> 771.3214286 | U69: 690.1106723 | V69: 15770.30827 | W69: ='Ship segment (Data)'!L95 -> 14000 | X69: 12525.97044
H70: I | I70: Motor vessels dry cargo >130 (135 m ship) | J70: 3558.987536 | K70: 2831 | L70: 2373.968307 | M70: 8625.987536 | N70: 7898 | O70: 7440.968307 | P70: 593.3741141 | Q70: 472 | R70: 395.8011448 | S70: 1281.82181 | T70: ='Ship segment (Data)'!K96 -> 1173.642857 | U70: 1105.727944 | V70: 29488.68872 | W70: ='Ship segment (Data)'!L96 -> 27000 | X70: 25437.5974
H71: J | I71: Motor vessels liquid cargo 80-109m length (typical 86 m ship) | J71: 2025.021174 | K71: 1707 | L71: 1210.509124 | M71: 4289.021174 | N71: 3971 | O71: 3474.509124 | P71: 322.6747271 | Q71: 272 | R71: 192.8872183 | S71: 944.9267992 | T71: ='Ship segment (Data)'!K97 -> 874.8626243 | U71: 765.4792672 | V71: 9546.879414 | W71: ='Ship segment (Data)'!L97 -> 8839 | X71: 7733.867072
H72: K | I72: Motor vessels liquid cargo 110 m ship | J72: 2600.023963 | K72: 1943 | L72: 1211.143434 | M72: 4975.023963 | N72: 4318 | O72: 3586.143434 | P72: 475.0429784 | Q72: 355 | R72: 221.2845698 | S72: 1691.699077 | T72: ='Ship segment (Data)'!K98 -> 1468.285714 | U72: 1219.426395 | V72: 16130.23054 | W72: ='Ship segment (Data)'!L98 -> 14000 | X72: 11627.14407
H73: L | I73: Motor vessels liquid cargo >130 (135 m ship) | J73: 4433.182637 | K73: 2831 | L73: 1932.469646 | M73: =$N73-$K73+J73 -> 9500.182637 | N73: 7898 | O73: 6999.469646 | P73: 551.2116878 | Q73: 352 | R73: 240.2788115 | S73: 3354.001281 | T73: ='Ship segment (Data)'!K99 -> 2788.357143 | U73: 2471.134614 | V73: 57737.24571 | W73: ='Ship segment (Data)'!L99 -> 48000 | X73: 42539.19258
H74: M | I74: Coupled convoys | J74: 3576.41898 | K74: 2513 | L74: 1785.765224 | M74: 9127.41898 | N74: 8064 | O74: 7336.765224 | P74: 784.1650848 | Q74: 551 | R74: 391.5466129 | S74: 1737.868788 | T74: ='Ship segment (Data)'!K100 -> 1535.392857 | U74: 1396.926701 | V74: 36219.91659 | W74: ='Ship segment (Data)'!L100 -> 32000 | X74: 29114.14771
H75: N | I75: Ferry | J75: 1547.398543 | K75: 750 | L75: 292.0809964 | M75: 1997.398543 | N75: 1200 | O75: 742.0809964 | P75: 44.81500972 | Q75: 21.721138 | R75: 8.45910884 | S75: 775.0395103 | T75: ='Ship segment (Data)'!K101 -> 465.6293637 | U75: 287.9455851 | V75: 0 | W75: ='Ship segment (Data)'!L101 -> 0 | X75: 0
H76: O | I76: tugboat and workboat | J76: 1869.05836 | K76: 916 | L76: 387.0301896 | M76: 2553.05836 | N76: =J55 -> 1600 | O76: 1071.03019 | P76: 42.02699232 | Q76: 20.5968555 | R76: 8.702625424 | S76: 576.8531345 | T76: ='Ship segment (Data)'!K102 -> 361.5134811 | U76: 241.9949076 | V76: 5337.487634 | W76: ='Ship segment (Data)'!L102 -> 3345 | X76: 2239.12249
B84: CE Delft Segment | C84: Vessel class | D84: Propulsion power range (kW) | E84: Corresponding PROMINENT Category (D3.5 table 4.2) | F84: Number of vessels (Prominent & IVR based) | G84: Number of engines (Prominent & IVR based) | H84: Average total propulsion power (IVR based) | I84: Sailing hours (STC Nestra) | J84: kW according to Prominent | K84: Idling costs (€ per day) | L84: Port dues (€ per annum) | M84: Additional engine costs mono fuel LNG engine (compared to diesel) (€) | N84: Additional engine costs dual fuel LNG engine (compared to diesel) (€) | O84: Installation costs (tank above deck) (€) | P84: Installation costs (tank below deck) (€) | S84: Idling cost per kW | T84: Port dues | U84: Additional engine costs mono fuel LNG engine (compared to diesel) (€) | V84: Additional engine costs dual fuel LNG engine (compared to diesel) (€) | W84: Installation costs (tank above deck) (€) | X84: Installation costs (tank below deck) (€) | AC84: Vessel type iteraties | AD84: Fuel use | AE84: Year | AF84: ZE meenemen | AG84: Afschrijving | AJ84: NPV | AK84: Fuel use
B85: A1 | C85: Passenger vessel <250 kW | E85: =E89 -> PB< 500 kW B04 | F85: 521 | G85: 605.4925302 | H85: 125.9733664 | I85: 940 | J85: =H85 -> 125.9733664 | K85: =S$88*$J85 -> 343.9390129 | L85: 4221.627561 | M85: 79915.40973 | N85: 24316.57475 | O85: 47493.31006 | P85: 68390.36649 | AB85: =AC85&AD85 -> Passenger vessel <250 kWnormal fuel use | AC85: Passenger vessel <250 kW | AD85: normal fuel use | AE85: 15 | AF85: ja | AG85: zonder restwaarde | AI85: Passenger vessel <250 kW | AJ85: 15 | AK85: 1
B86: A2 | C86: Passenger vessel 250 - 500 kW | E86: =E89 -> PB< 500 kW B04 | F86: 227 | G86: 341.9847585 | H86: 429.4484211 | I86: 695 | J86: =H86 -> 429.4484211 | K86: 1172.502333 | L86: 14391.70312 | M86: 272434.94 | N86: 82896.20996 | O86: 161906.6601 | P86: 233145.5905 | AB86: Passenger vessel 250 - 500 kWnormal fuel use | AC86: Passenger vessel 250 - 500 kW | AD86: normal fuel use | AE86: 15 | AF86: nee | AG86: met restwaarde | AI86: Passenger vessel 250 - 500 kW | AK86: 0.43
B87: A3 | C87: Passenger vessel 500 - 1000 kW | F87: 60 | G87: 108.9521895 | H87: 693.0214216 | I87: 735 | J87: =H87 -> 693.0214216 | K87: 1892.122997 | L87: 23224.57847 | M87: 439641.2705 | N87: 133773.572 | O87: 261276.5078 | P87: 376238.1713 | AB87: Passenger vessel 500 - 1000 kWnormal fuel use | AC87: Passenger vessel 500 - 1000 kW | AD87: normal fuel use | AE87: 15 | AI87: Passenger vessel 500 - 1000 kW | AK87: 1.75
B88: A4 | C88: Passenger vessel >1000 kW | D88: =RIGHT(C88,8) -> >1000 kW | E88: PAX 135m | F88: 155 | G88: 370.4680144 | H88: 1518.851852 | I88: 1750 | J88: 1492 | K88: =114059/4/7 -> 4073.535714 | L88: 50000 | M88: 946500 | N88: 288000 | O88: 562500 | P88: 810000 | R88: Passenger vessel | S88: =K88/$J88 -> 2.730251819 | T88: 33.51206434 | U88: 634.383378 | V88: 193.0294906 | W88: 377.0107239 | X88: 542.8954424 | AB88: Passenger vessel >1000 kWnormal fuel use | AC88: Passenger vessel >1000 kW | AD88: normal fuel use | AE88: 15 | AI88: Passenger vessel >1000 kW
B89: B | C89: Push boats <500 kW | D89: =RIGHT(C89,8) -> <500 kW | E89: PB< 500 kW B04 | F89: 155 | G89: 186 | H89: 247 | I89: 1420 | J89: 400 | K89: =S90*$J89 -> 231.3965458 | L89: 3345 | M89: =U90*$J89 -> 286893.5148 | N89: =V90*$J89 -> 92233.78703 | O89: =W90*$J89 -> 174539.6317 | P89: =X90*$J89 -> 231385.1081 | AB89: Push boats <500 kW normal fuel use | AC89: Push boats <500 kW | AD89: normal fuel use | AE89: 15 | AI89: Push boats <500 kW
B90: C | C90: Push boats 500-2000 kW | D90: =RIGHT(C90,8) -> 2000 kW | E90: Push B2L & Push BII-1 | F90: 92 | G90: 147.2 | H90: 846.9006849 | I90: 3000 | J90: 1249 | K90: =20231/4/7 -> 722.5357143 | L90: 52197 | M90: 895825 | N90: 288000 | O90: 545000 | P90: 722500 | R90: Push boats | S90: =K90/$J90 -> 0.5784913645 | U90: =M90/$J90 -> 717.233787 | V90: 230.5844676 | W90: 436.3490793 | X90: 578.4627702 | AB90: Push boats 500-2000 kW normal fuel use | AC90: Push boats 500-2000 kW | AD90: normal fuel use | AE90: 15 | AI90: Push boats 500-2000 kW
B91: D | C91: Push boats ≥2000 kW | D91: =RIGHT(C91,8) -> 2000 kW | E91: Push B4 & Push B6 | F91: 14 | G91: 37.52 | H91: 3458 | I91: 7258 | J91: 4080 | K91: =123413/4/7 -> 4407.607143 | L91: 89834 | M91: 1920425 | N91: 648000 | O91: 690000 | P91: 887500 | S91: =K91/$J91 -> 1.080295868 | U91: 470.692402 | V91: 158.8235294 | W91: 169.1176471 | X91: 217.5245098 | AB91: Push boats ≥2000 kW normal fuel use | AC91: Push boats ≥2000 kW | AD91: normal fuel use | AE91: 15 | AI91: Push boats ≥2000 kW
B92: E | C92: Motor vessels <80 m. length | E92: MVS 67, MVS 55, MVS 50 , MVS 38.5 | F92: 1839 | G92: 2022.9 | H92: 302 | I92: 1500 | J92: =(445+319+300+220)/4 -> 321 | K92: =$J92*S$102 -> 232.0916549 | L92: 5000 | M92: =$J92*U$102 -> 175787.1519 | N92: 52771.57787 | O92: 103382.5741 | P92: 134995.8536 | AB92: Motor vessels <80 m. lengthnormal fuel use | AC92: Motor vessels <80 m. length | AD92: normal fuel use | AE92: 15 | AI92: Motor vessels <80 m. length
B93: F | C93: Motor vessels dry cargo typical 80 and 86 m ship | E93: MVS 80m & MVS 86m | F93: 853 | G93: 929.8467573 | H93: 669.1883385 | I93: 1600 | J93: =(700+756)/2 -> 728 | K93: =$J93*S$102 -> 526.3636285 | L93: 8000 | M93: 398669.9271 | N93: 119681.3355 | O93: 234462.6603 | P93: 306158.8206 | AB93: Motor vessels dry cargo typical 80 and 86 m shipnormal fuel use | AC93: Motor vessels dry cargo typical 80 and 86 m ship | AD93: normal fuel use | AE93: 15 | AI93: Motor vessels dry cargo typical 80 and 86 m ship
B94: G | C94: Motor vessels dry cargo typical 105 m ship | E94: MVS 105m | F94: 288 | G94: 322.7864418 | H94: 962.8674599 | I94: 1886 | J94: 1286 | K94: =$J94*S$102 -> 929.8126734 | L94: 11000 | M94: 704243.8547 | N94: 211415.1064 | O94: 414174.4246 | P94: 540824.5101 | AB94: Motor vessels dry cargo typical 105 m shipnormal fuel use | AC94: Motor vessels dry cargo typical 105 m ship | AD94: normal fuel use | AE94: 15 | AI94: Motor vessels dry cargo typical 105 m ship
B95: H | C95: Motor vessels dry cargo 110 m ship | E95: MVS 110m | F95: 575 | G95: 575 | H95: 1415.50444 | I95: 1943 | J95: 1527 | K95: =21597/4/7 -> 771.3214286 | L95: 14000 | M95: 807825 | N95: 216000 | O95: 532500 | P95: 692500 | S95: =K95/$J95 -> 0.5051220881 | T95: 9.168303864 | U95: 529.0275049 | V95: 141.453831 | W95: 348.7229862 | X95: 453.5036018 | AB95: Motor vessels dry cargo 110 m shipnormal fuel use | AC95: Motor vessels dry cargo 110 m ship | AD95: normal fuel use | AE95: 15 | AI95: Motor vessels dry cargo 110 m ship
B96: I | C96: Motor vessels dry cargo >130 (135 m ship) | E96: MVS 135m | F96: 211 | G96: 215.7989579 | H96: 2455.984796 | I96: 2831 | J96: 1492 | K96: =32862/4/7 -> 1173.642857 | L96: 27000 | M96: 861500 | N96: 288000 | O96: 532500 | P96: 692500 | S96: 0.7866238989 | T96: 18.09651475 | U96: 577.4128686 | V96: 193.0294906 | W96: 356.9034853 | X96: 464.1420912 | AB96: Motor vessels dry cargo >130 (135 m ship)normal fuel use | AC96: Motor vessels dry cargo >130 (135 m ship) | AD96: normal fuel use | AE96: 15 | AI96: Motor vessels dry cargo >130 (135 m ship)
B97: J | C97: Motor vessels liquid cargo 80-109m length (typical 86 m ship) | E97: MTS86 m | F97: 251 | G97: 276.1 | H97: 954 | I97: 1707 | J97: 1210 | K97: =$J97*S$102 -> 874.8626243 | L97: 8839 | M97: =$J97*U$102 -> 662624.4668 | N97: =$J97*V$102 -> 198920.901 | O97: =$J97*W$102 -> 389697.5535 | P97: =$J97*X$102 -> 508862.875 | AB97: Motor vessels liquid cargo 80-109m length (typical 86 m ship)normal fuel use | AC97: Motor vessels liquid cargo 80-109m length (typical 86 m ship) | AD97: normal fuel use | AE97: 15 | AI97: Motor vessels liquid cargo 80-109m length (typical 86 m ship)
B98: K | C98: Motor vessels liquid cargo 110 m ship | E98: MTS 110m | F98: 391 | G98: 519.4869962 | H98: 1597.66709 | I98: 1943 | J98: 1550 | K98: =41112/4/7 -> 1468.285714 | L98: 14000 | M98: 871000 | N98: 216000 | O98: 507500 | P98: 667500 | S98: =K98/$J98 -> 0.947281106 | T98: 9.032258065 | U98: 561.9354839 | V98: 139.3548387 | W98: 327.4193548 | X98: 430.6451613 | AB98: Motor vessels liquid cargo 110 m shipnormal fuel use | AC98: Motor vessels liquid cargo 110 m ship | AD98: normal fuel use | AE98: 15 | AI98: Motor vessels liquid cargo 110 m ship
B99: L | C99: Motor vessels liquid cargo >130 (135 m ship) | E99: MTS 135 M11& MTS 135 M12 | F99: 91 | G99: 182.1363879 | H99: 2772.047878 | I99: 2831 | J99: =(2347+2370)/2 -> 2358.5 | K99: =((71459/4/7)+(84689/4/7))/2 -> 2788.357143 | L99: 48000 | M99: 1085000 | N99: 432000 | O99: =(570000+575000)/2 -> 572500 | P99: =(742500+747500)/2 -> 745000 | AB99: Motor vessels liquid cargo >130 (135 m ship)normal fuel use | AC99: Motor vessels liquid cargo >130 (135 m ship) | AD99: normal fuel use | AE99: 15 | AI99: Motor vessels liquid cargo >130 (135 m ship)
B100: M | C100: Coupled convoys | E100: C3L/B | F100: 143 | G100: 278.85 | H100: 2237 | I100: 2513 | J100: 2351 | K100: =42991/4/7 -> 1535.392857 | L100: 32000 | M100: 1227500 | N100: 432000 | O100: 600000 | P100: 785000 | S100: =K100/$J100 -> 0.6530807559 | T100: 13.61122926 | U100: 522.1182476 | V100: 183.7515951 | W100: 255.2105487 | X100: 333.9004679 | AB100: Coupled convoysnormal fuel use | AC100: Coupled convoys | AD100: normal fuel use | AE100: 15 | AI100: Coupled convoys
B101: N | C101: Ferry | E101: =E93 -> MVS 80m & MVS 86m | F101: 618 | G101: 1351.875 | H101: 644 | I101: 750 | J101: =H101 -> 644 | K101: =S$102*$J101 -> 465.6293637 | L101: 0 | M101: =U$102*$J101 -> 352669.5509 | N101: 105871.9506 | O101: 207409.2764 | P101: 270832.8029 | AB101: Ferrynormal fuel use | AC101: Ferry | AD101: normal fuel use | AE101: 15 | AI101: Ferry
B102: O | C102: tugboat and workboat | E102: =E86 -> PB< 500 kW B04 | F102: 480 | G102: 599.52 | H102: 500 | I102: 916 | J102: =H102 -> 500 | K102: =S$102*$J102 -> 361.5134811 | L102: =L89 -> 3345 | M102: 273811.7631 | N102: 82198.71943 | O102: 161032.0469 | P102: 210273.9153 | R102: Gemiddelde | S102: =AVERAGE(S95:S100) -> 0.7230269622 | T102: 12.47707648 | U102: 547.6235262 | V102: 164.3974389 | W102: 322.0640938 | X102: 420.5478305 | AB102: tugboat and workboatnormal fuel use | AC102: tugboat and workboat | AD102: normal fuel use | AE102: 15 | AI102: tugboat and workboat
AB103: Passenger vessel <250 kWlow fuel use | AC103: Passenger vessel <250 kW | AD103: low fuel use | AE103: 15
AB104: Passenger vessel 250 - 500 kWlow fuel use | AC104: Passenger vessel 250 - 500 kW | AD104: low fuel use | AE104: 15
AB105: Passenger vessel 500 - 1000 kWlow fuel use | AC105: Passenger vessel 500 - 1000 kW | AD105: low fuel use | AE105: 15
AB106: Passenger vessel >1000 kWlow fuel use | AC106: Passenger vessel >1000 kW | AD106: low fuel use | AE106: 15
AB107: Push boats <500 kW low fuel use | AC107: Push boats <500 kW | AD107: low fuel use | AE107: 15
C108: Lifetime of engine (based on Nestra) | H108: Uit Engines database STC-NESTRA 2 | AB108: Push boats 500-2000 kW low fuel use | AC108: Push boats 500-2000 kW | AD108: low fuel use | AE108: 15
J109: Time to revision | M109: life time in years | AB109: Push boats ≥2000 kW low fuel use | AC109: Push boats ≥2000 kW | AD109: low fuel use | AE109: 15
B110: CE Delft Segment | C110: Categories | E110: Dimensions | F110: Loading capacity | G110: Operational hrs (hrs/yr) | H110: Effective (%) | I110: Effecitve (hrs) | J110: RPM < 750 | K110: RPM 750 - 125- | L110: RPM >1250 | M110: RPM <750 | N110: RPM 750 - 1250 | O110: RPM >1250 | AB110: Motor vessels <80 m. lengthlow fuel use | AC110: Motor vessels <80 m. length | AD110: low fuel use | AE110: 15
B111: E-1 | C111: 38‐49 m | E111: 38.8 x 5.05 | F111: 380 | G111: 3265 | H111: 0.52 | I111: 1697.8 | M111: 67.10526316 | N111: 55.92105263 | O111: 44.73684211 | AB111: Motor vessels dry cargo typical 80 and 86 m shiplow fuel use | AC111: Motor vessels dry cargo typical 80 and 86 m ship | AD111: low fuel use | AE111: 15
B112: E-2 | C112: 50‐54 | E112: 50 x 6.6 | F112: 520 | G112: 3830 | H112: 0.39 | I112: 1493.7 | M112: 75 | N112: 62.5 | O112: 50 | AB112: Motor vessels dry cargo typical 105 m shiplow fuel use | AC112: Motor vessels dry cargo typical 105 m ship | AD112: low fuel use | AE112: 15
B113: E-3 | C113: 55‐66 | E113: 55 x 7.2 | F113: 700 | G113: 3874 | H113: 0.4 | I113: 1549.6 | M113: 75 | N113: 62.5 | O113: 50 | AB113: Motor vessels dry cargo 110 m shiplow fuel use | AC113: Motor vessels dry cargo 110 m ship | AD113: low fuel use | AE113: 15
B114: E-4 | C114: 67‐79 | E114: 67 x 8.2 | F114: 910 | G114: 3778 | H114: 0.44 | I114: 1662.32 | M114: 70.83333333 | N114: 59.02777778 | O114: 47.22222222 | AB114: Motor vessels dry cargo >130 (135 m ship)low fuel use | AC114: Motor vessels dry cargo >130 (135 m ship) | AD114: low fuel use | AE114: 15
B115: E | C115: Average of the above 4 E categories | M115: 71.98464912 | N115: 59.9872076 | O115: 47.98976608 | AB115: Motor vessels liquid cargo 80-109m length (typical 86 m ship)low fuel use | AC115: Motor vessels liquid cargo 80-109m length (typical 86 m ship) | AD115: low fuel use | AE115: 15
B116: F-1 | C116: 80‐84 | E116: 80 x 8.2 | F116: 1130 | G116: 3499 | H116: 0.44 | I116: 1539.56 | M116: 75 | N116: 62.5 | O116: 50 | AB116: Motor vessels liquid cargo 110 m shiplow fuel use | AC116: Motor vessels liquid cargo 110 m ship | AD116: low fuel use | AE116: 15
B117: F-2 | C117: 85‐86 | E117: 86 x 9.5 | F117: 1600 | G117: 3971 | H117: 0.43 | I117: 1707.53 | M117: 67.10526316 | N117: 55.92105263 | O117: 44.73684211 | AB117: =AC117&AD117 -> Motor vessels liquid cargo >130 (135 m ship)low fuel use | AC117: Motor vessels liquid cargo >130 (135 m ship) | AD117: low fuel use | AE117: 15
B118: F | C118: Average of the above 2 F categories | M118: 71.05263158 | N118: 59.21052632 | O118: 47.36842105 | AB118: Coupled convoyslow fuel use | AC118: Coupled convoys | AD118: low fuel use | AE118: 15
B119: J | C119: 85‐86 | E119: 86 x 9.5 | F119: 1600 | G119: 3971 | H119: 0.43 | I119: 1707.53 | M119: 67.10526316 | N119: 55.92105263 | O119: 44.73684211 | AB119: Ferrylow fuel use | AC119: Ferry | AD119: low fuel use | AE119: 15
B120: G | C120: 87‐109 | E120: 105 x 9.5 | F120: 1910 | G120: 4013 | H120: 0.47 | I120: 1886.11 | M120: 53.125 | N120: 44.27083333 | O120: 35.41666667 | AB120: tugboat and workboatlow fuel use | AC120: tugboat and workboat | AD120: low fuel use | AE120: 15
B121: H | C121: 110‐134 | E121: 110 x 11.4 | F121: 3000 | G121: 4318 | H121: 0.45 | I121: 1943.1 | M121: 51 | N121: 42.5 | O121: 34 | AB121: Passenger vessel <250 kWhigh fuel use | AC121: Passenger vessel <250 kW | AD121: high fuel use | AE121: 15
B122: K | C122: 110‐134 | E122: 110 x 11.4 | F122: 3000 | G122: 4318 | H122: 0.45 | I122: 1943.1 | M122: 51 | N122: 42.5 | O122: 34 | AB122: Passenger vessel 250 - 500 kWhigh fuel use | AC122: Passenger vessel 250 - 500 kW | AD122: high fuel use | AE122: 15
B123: I | C123: 135 or longer | E123: 135 x 11,4 | F123: 3920 | G123: 6905 | H123: 0.41 | I123: 2831.05 | M123: 41.12903226 | N123: 34.27419355 | O123: 27.41935484 | AB123: Passenger vessel 500 - 1000 kWhigh fuel use | AC123: Passenger vessel 500 - 1000 kW | AD123: high fuel use | AE123: 15
B124: L | C124: 135 or longer | E124: 135 x 11,4 | F124: 3920 | G124: 6905 | H124: 0.41 | I124: 2831.05 | M124: 41.12903226 | N124: 34.27419355 | O124: 27.41935484 | AB124: Passenger vessel >1000 kWhigh fuel use | AC124: Passenger vessel >1000 kW | AD124: high fuel use | AE124: 15
B125: M | C125: Coupled convoys | E125: 190 x 11.4 | F125: 5300 | G125: 6130 | H125: 0.41 | I125: 2513.3 | M125: 38.63636364 | N125: 32.1969697 | O125: 25.75757576 | AB125: Push boats <500 kW high fuel use | AC125: Push boats <500 kW | AD125: high fuel use | AE125: 15
B126: C-1 | C126: Push boats 500 - 999 kW | E126: 100 x 11.4 | F126: 2450 | G126: 6130 | H126: 0.43 | I126: 2635.9 | M126: 43.96551724 | N126: 36.63793103 | O126: 29.31034483 | AB126: Push boats 500-2000 kW high fuel use | AC126: Push boats 500-2000 kW | AD126: high fuel use | AE126: 15
B127: C-2 | C127: Push boats 1000 - 1999 kW | E127: 100 x 22.8 | F127: 4900 | G127: 7964 | H127: 0.67 | I127: 5335.88 | M127: 21.61016949 | N127: 18.00847458 | O127: 14.40677966 | AB127: Push boats ≥2000 kW high fuel use | AC127: Push boats ≥2000 kW | AD127: high fuel use | AE127: 15
B128: C | C128: Average of the above 2 C categories | M128: 32.78784337 | N128: 27.32320281 | O128: 21.85856224 | AB128: Motor vessels <80 m. lengthhigh fuel use | AC128: Motor vessels <80 m. length | AD128: high fuel use | AE128: 15
B129: D | C129: Push boats > 2000 kw | E129: 195 x 22.8 | F129: 9800 | G129: 8064 | H129: 0.9 | I129: 7257.6 | M129: 15.74074074 | N129: 13.11728395 | O129: 10.49382716 | AB129: Motor vessels dry cargo typical 80 and 86 m shiphigh fuel use | AC129: Motor vessels dry cargo typical 80 and 86 m ship | AD129: high fuel use | AE129: 15
B130: B | C130: Push boats <500 kW | M130: 85 | N130: 70.83333333 | O130: 56.66666667 | AB130: Motor vessels dry cargo typical 105 m shiphigh fuel use | AC130: Motor vessels dry cargo typical 105 m ship | AD130: high fuel use | AE130: 15
B131: a1 | C131: PV<250 | G131: 1000 | H131: 0.8 | I131: 1420 | M131: 159.375 | N131: 132.8125 | O131: 106.25 | AB131: Motor vessels dry cargo 110 m shiphigh fuel use | AC131: Motor vessels dry cargo 110 m ship | AD131: high fuel use | AE131: 15
B132: a2 | C132: PV 250-500 | G132: 2000 | H132: 0.8 | I132: 940 | M132: 79.6875 | N132: 66.40625 | O132: 53.125 | AB132: Motor vessels dry cargo >130 (135 m ship)high fuel use | AC132: Motor vessels dry cargo >130 (135 m ship) | AD132: high fuel use | AE132: 15
B133: a3 | C133: PV 500 - 1000 | G133: 3000 | H133: 0.8 | I133: 695 | M133: 53.125 | N133: 44.27083333 | O133: 35.41666667 | AB133: Motor vessels liquid cargo 80-109m length (typical 86 m ship)high fuel use | AC133: Motor vessels liquid cargo 80-109m length (typical 86 m ship) | AD133: high fuel use | AE133: 15
B134: a4 | C134: PV > 1000 | G134: 4318 | H134: 0.5 | I134: 735 | M134: 57.95454545 | N134: 48.29545455 | O134: 38.63636364 | AB134: Motor vessels liquid cargo 110 m shiphigh fuel use | AC134: Motor vessels liquid cargo 110 m ship | AD134: high fuel use | AE134: 15
B135: O | C135: Tugboat and workboat | I135: 1750 | M135: 106.25 | N135: 88.54166667 | O135: 70.83333333 | AB135: Motor vessels liquid cargo >130 (135 m ship)high fuel use | AC135: Motor vessels liquid cargo >130 (135 m ship) | AD135: high fuel use | AE135: 15
B136: N | C136: Ferry | G136: 4000 | H136: 0.6 | I136: 916 | M136: 53.125 | N136: 44.27083333 | O136: 35.41666667 | AB136: Coupled convoyshigh fuel use | AC136: Coupled convoys | AD136: high fuel use | AE136: 15
AB137: Ferryhigh fuel use | AC137: Ferry | AD137: high fuel use | AE137: 15
AB138: tugboat and workboathigh fuel use | AC138: tugboat and workboat | AD138: high fuel use | AE138: 15

Sheet Shi Segment (Peter) (hidden)
A2: CE Delft Segment | B2: Vessel class | C2: Propulsion power range (kW) | D2: Corresponding PROMINENT Category (D3.5 table 4.2) | E2: Number of vessels (Prominent & IVR based) | F2: Number of engines (Prominent & IVR based) | G2: Average total propulsion power (IVR based) | H2: Sailing hours (STC Nestra) | I2: kW according to Prominent | J2: Idling costs (€ per day) | K2: Port dues (€ per annum) | L2: Additional engine costs mono fuel LNG engine (compared to diesel) (€) | M2: Additional engine costs dual fuel LNG engine (compared to diesel) (€) | N2: Installation costs (tank above deck) (€) | O2: Installation costs (tank below deck) (€) | R2: Idling cost per kW | S2: Port dues | T2: Additional engine costs mono fuel LNG engine (compared to diesel) (€) | U2: Additional engine costs dual fuel LNG engine (compared to diesel) (€) | V2: Installation costs (tank above deck) (€) | W2: Installation costs (tank below deck) (€) | AB2: Vessel type iteraties | AC2: Fuel use | AD2: Year | AE2: ZE meenemen | AF2: Afschrijving | AI2: NPV | AJ2: Fuel use
A3: A1 | B3: Passenger vessel <250 kW | D3: =D7 -> PB< 500 kW B04 | E3: 521 | F3: 605.4925302 | G3: 125.9733664 | H3: 940 | I3: =G3 -> 125.9733664 | J3: =R$6*$I3 -> 343.9390129 | K3: 4221.627561 | L3: 79915.40973 | M3: 24316.57475 | N3: 47493.31006 | O3: 68390.36649 | AA3: =AB3&AC3 -> Passenger vessel <250 kWnormal fuel use | AB3: Passenger vessel <250 kW | AC3: normal fuel use | AD3: 15 | AE3: ja | AF3: zonder restwaarde | AH3: Passenger vessel <250 kW | AI3: 15 | AJ3: 1
A4: A2 | B4: Passenger vessel 250 - 500 kW | D4: =D7 -> PB< 500 kW B04 | E4: 227 | F4: 341.9847585 | G4: 429.4484211 | H4: 695 | I4: =G4 -> 429.4484211 | J4: 1172.502333 | K4: 14391.70312 | L4: 272434.94 | M4: 82896.20996 | N4: 161906.6601 | O4: 233145.5905 | AA4: Passenger vessel 250 - 500 kWnormal fuel use | AB4: Passenger vessel 250 - 500 kW | AC4: normal fuel use | AD4: 15 | AE4: nee | AF4: met restwaarde | AH4: Passenger vessel 250 - 500 kW | AJ4: 0.43
A5: A3 | B5: Passenger vessel 500 - 1000 kW | E5: 60 | F5: 108.9521895 | G5: 693.0214216 | H5: 735 | I5: =G5 -> 693.0214216 | J5: 1892.122997 | K5: 23224.57847 | L5: 439641.2705 | M5: 133773.572 | N5: 261276.5078 | O5: 376238.1713 | AA5: Passenger vessel 500 - 1000 kWnormal fuel use | AB5: Passenger vessel 500 - 1000 kW | AC5: normal fuel use | AD5: 15 | AH5: Passenger vessel 500 - 1000 kW | AJ5: 1.75
A6: A4 | B6: Passenger vessel >1000 kW | C6: =RIGHT(B6,8) -> >1000 kW | D6: PAX 135m | E6: 155 | F6: 370.4680144 | G6: 1518.851852 | H6: 1750 | I6: 1492 | J6: =114059/4/7 -> 4073.535714 | K6: 50000 | L6: 946500 | M6: 288000 | N6: 562500 | O6: 810000 | Q6: Passenger vessel | R6: =J6/$I6 -> 2.730251819 | S6: 33.51206434 | T6: 634.383378 | U6: 193.0294906 | V6: 377.0107239 | W6: 542.8954424 | AA6: Passenger vessel >1000 kWnormal fuel use | AB6: Passenger vessel >1000 kW | AC6: normal fuel use | AD6: 15 | AH6: Passenger vessel >1000 kW
A7: B | B7: Push boats <500 kW | C7: =RIGHT(B7,8) -> <500 kW | D7: PB< 500 kW B04 | E7: 155 | F7: 186 | G7: 247 | H7: 1420 | I7: 400 | J7: =R8*$I7 -> 231.3965458 | K7: 3345 | L7: =T8*$I7 -> 286893.5148 | M7: =U8*$I7 -> 92233.78703 | N7: =V8*$I7 -> 174539.6317 | O7: =W8*$I7 -> 231385.1081 | AA7: Push boats <500 kW normal fuel use | AB7: Push boats <500 kW | AC7: normal fuel use | AD7: 15 | AH7: Push boats <500 kW
A8: C | B8: Push boats 500-2000 kW | C8: =RIGHT(B8,8) -> 2000 kW | D8: Push B2L & Push BII-1 | E8: 92 | F8: 147.2 | G8: 846.9006849 | H8: 3000 | I8: 1249 | J8: =20231/4/7 -> 722.5357143 | K8: 52197 | L8: 895825 | M8: 288000 | N8: 545000 | O8: 722500 | Q8: Push boats | R8: =J8/$I8 -> 0.5784913645 | T8: =L8/$I8 -> 717.233787 | U8: 230.5844676 | V8: 436.3490793 | W8: 578.4627702 | AA8: Push boats 500-2000 kW normal fuel use | AB8: Push boats 500-2000 kW | AC8: normal fuel use | AD8: 15 | AH8: Push boats 500-2000 kW
A9: D | B9: Push boats ≥2000 kW | C9: =RIGHT(B9,8) -> 2000 kW | D9: Push B4 & Push B6 | E9: 14 | F9: 37.52 | G9: 3458 | H9: 7258 | I9: 4080 | J9: =123413/4/7 -> 4407.607143 | K9: 89834 | L9: 1920425 | M9: 648000 | N9: 690000 | O9: 887500 | R9: =J9/$I9 -> 1.080295868 | T9: 470.692402 | U9: 158.8235294 | V9: 169.1176471 | W9: 217.5245098 | AA9: Push boats ≥2000 kW normal fuel use | AB9: Push boats ≥2000 kW | AC9: normal fuel use | AD9: 15 | AH9: Push boats ≥2000 kW
A10: E | B10: Motor vessels <80 m. length | D10: MVS 67, MVS 55, MVS 50 , MVS 38.5 | E10: 1839 | F10: 2022.9 | G10: 302 | H10: 1500 | I10: =(445+319+300+220)/4 -> 321 | J10: =$I10*R$20 -> 232.0916549 | K10: 5000 | L10: =$I10*T$20 -> 175787.1519 | M10: 52771.57787 | N10: 103382.5741 | O10: 134995.8536 | AA10: Motor vessels <80 m. lengthnormal fuel use | AB10: Motor vessels <80 m. length | AC10: normal fuel use | AD10: 15 | AH10: Motor vessels <80 m. length
A11: F | B11: Motor vessels dry cargo typical 80 and 86 m ship | D11: MVS 80m & MVS 86m | E11: 853 | F11: 929.8467573 | G11: 669.1883385 | H11: 1600 | I11: =(700+756)/2 -> 728 | J11: =$I11*R$20 -> 526.3636285 | K11: 8000 | L11: 398669.9271 | M11: 119681.3355 | N11: 234462.6603 | O11: 306158.8206 | AA11: Motor vessels dry cargo typical 80 and 86 m shipnormal fuel use | AB11: Motor vessels dry cargo typical 80 and 86 m ship | AC11: normal fuel use | AD11: 15 | AH11: Motor vessels dry cargo typical 80 and 86 m ship
A12: G | B12: Motor vessels dry cargo typical 105 m ship | D12: MVS 105m | E12: 288 | F12: 322.7864418 | G12: 962.8674599 | H12: 1886 | I12: 1286 | J12: =$I12*R$20 -> 929.8126734 | K12: 11000 | L12: 704243.8547 | M12: 211415.1064 | N12: 414174.4246 | O12: 540824.5101 | AA12: Motor vessels dry cargo typical 105 m shipnormal fuel use | AB12: Motor vessels dry cargo typical 105 m ship | AC12: normal fuel use | AD12: 15 | AH12: Motor vessels dry cargo typical 105 m ship
A13: H | B13: Motor vessels dry cargo 110 m ship | D13: MVS 110m | E13: 575 | F13: 575 | G13: 1415.50444 | H13: 1943 | I13: 1527 | J13: =21597/4/7 -> 771.3214286 | K13: 14000 | L13: 807825 | M13: 216000 | N13: 532500 | O13: 692500 | R13: =J13/$I13 -> 0.5051220881 | S13: 9.168303864 | T13: 529.0275049 | U13: 141.453831 | V13: 348.7229862 | W13: 453.5036018 | AA13: Motor vessels dry cargo 110 m shipnormal fuel use | AB13: Motor vessels dry cargo 110 m ship | AC13: normal fuel use | AD13: 15 | AH13: Motor vessels dry cargo 110 m ship
A14: I | B14: Motor vessels dry cargo >130 (135 m ship) | D14: MVS 135m | E14: 211 | F14: 215.7989579 | G14: 2455.984796 | H14: 2831 | I14: 1492 | J14: =32862/4/7 -> 1173.642857 | K14: 27000 | L14: 861500 | M14: 288000 | N14: 532500 | O14: 692500 | R14: 0.7866238989 | S14: 18.09651475 | T14: 577.4128686 | U14: 193.0294906 | V14: 356.9034853 | W14: 464.1420912 | AA14: Motor vessels dry cargo >130 (135 m ship)normal fuel use | AB14: Motor vessels dry cargo >130 (135 m ship) | AC14: normal fuel use | AD14: 15 | AH14: Motor vessels dry cargo >130 (135 m ship)
A15: J | B15: Motor vessels liquid cargo 80-109m length (typical 86 m ship) | D15: MTS86 m | E15: 251 | F15: 276.1 | G15: 954 | H15: 1707 | I15: 1210 | J15: =$I15*R$20 -> 874.8626243 | K15: 8839 | L15: =$I15*T$20 -> 662624.4668 | M15: =$I15*U$20 -> 198920.901 | N15: =$I15*V$20 -> 389697.5535 | O15: =$I15*W$20 -> 508862.875 | AA15: Motor vessels liquid cargo 80-109m length (typical 86 m ship)normal fuel use | AB15: Motor vessels liquid cargo 80-109m length (typical 86 m ship) | AC15: normal fuel use | AD15: 15 | AH15: Motor vessels liquid cargo 80-109m length (typical 86 m ship)
A16: K | B16: Motor vessels liquid cargo 110 m ship | D16: MTS 110m | E16: 391 | F16: 519.4869962 | G16: 1597.66709 | H16: 1943 | I16: 1550 | J16: =41112/4/7 -> 1468.285714 | K16: 14000 | L16: 871000 | M16: 216000 | N16: 507500 | O16: 667500 | R16: =J16/$I16 -> 0.947281106 | S16: 9.032258065 | T16: 561.9354839 | U16: 139.3548387 | V16: 327.4193548 | W16: 430.6451613 | AA16: Motor vessels liquid cargo 110 m shipnormal fuel use | AB16: Motor vessels liquid cargo 110 m ship | AC16: normal fuel use | AD16: 15 | AH16: Motor vessels liquid cargo 110 m ship
A17: L | B17: Motor vessels liquid cargo >130 (135 m ship) | D17: MTS 135 M11& MTS 135 M12 | E17: 91 | F17: 182.1363879 | G17: 2772.047878 | H17: 2831 | I17: =(2347+2370)/2 -> 2358.5 | J17: =((71459/4/7)+(84689/4/7))/2 -> 2788.357143 | K17: 48000 | L17: 1085000 | M17: 432000 | N17: =(570000+575000)/2 -> 572500 | O17: =(742500+747500)/2 -> 745000 | AA17: Motor vessels liquid cargo >130 (135 m ship)normal fuel use | AB17: Motor vessels liquid cargo >130 (135 m ship) | AC17: normal fuel use | AD17: 15 | AH17: Motor vessels liquid cargo >130 (135 m ship)
A18: M | B18: Coupled convoys | D18: C3L/B | E18: 143 | F18: 278.85 | G18: 2237 | H18: 2513 | I18: 2351 | J18: =42991/4/7 -> 1535.392857 | K18: 32000 | L18: 1227500 | M18: 432000 | N18: 600000 | O18: 785000 | R18: =J18/$I18 -> 0.6530807559 | S18: 13.61122926 | T18: 522.1182476 | U18: 183.7515951 | V18: 255.2105487 | W18: 333.9004679 | AA18: Coupled convoysnormal fuel use | AB18: Coupled convoys | AC18: normal fuel use | AD18: 15 | AH18: Coupled convoys
A19: N | B19: Ferry | D19: =D11 -> MVS 80m & MVS 86m | E19: 618 | F19: 1351.875 | G19: 644 | H19: 750 | I19: =G19 -> 644 | J19: =R$20*$I19 -> 465.6293637 | K19: 0 | L19: =T$20*$I19 -> 352669.5509 | M19: 105871.9506 | N19: 207409.2764 | O19: 270832.8029 | AA19: Ferrynormal fuel use | AB19: Ferry | AC19: normal fuel use | AD19: 15 | AH19: Ferry
A20: O | B20: tugboat and workboat | D20: =D4 -> PB< 500 kW B04 | E20: 480 | F20: 599.52 | G20: 500 | H20: 916 | I20: =G20 -> 500 | J20: =R$20*$I20 -> 361.5134811 | K20: =K7 -> 3345 | L20: 273811.7631 | M20: 82198.71943 | N20: 161032.0469 | O20: 210273.9153 | Q20: Gemiddelde | R20: =AVERAGE(R13:R18) -> 0.7230269622 | S20: 12.47707648 | T20: 547.6235262 | U20: 164.3974389 | V20: 322.0640938 | W20: 420.5478305 | AA20: tugboat and workboatnormal fuel use | AB20: tugboat and workboat | AC20: normal fuel use | AD20: 15 | AH20: tugboat and workboat
AA21: Passenger vessel <250 kWlow fuel use | AB21: Passenger vessel <250 kW | AC21: low fuel use | AD21: 15
AA22: Passenger vessel 250 - 500 kWlow fuel use | AB22: Passenger vessel 250 - 500 kW | AC22: low fuel use | AD22: 15
AA23: Passenger vessel 500 - 1000 kWlow fuel use | AB23: Passenger vessel 500 - 1000 kW | AC23: low fuel use | AD23: 15
AA24: Passenger vessel >1000 kWlow fuel use | AB24: Passenger vessel >1000 kW | AC24: low fuel use | AD24: 15
AA25: Push boats <500 kW low fuel use | AB25: Push boats <500 kW | AC25: low fuel use | AD25: 15
B26: Lifetime of engine (based on Nestra) | G26: Uit Engines database STC-NESTRA 2 | AA26: Push boats 500-2000 kW low fuel use | AB26: Push boats 500-2000 kW | AC26: low fuel use | AD26: 15
I27: Time to revision | L27: life time in years | AA27: Push boats ≥2000 kW low fuel use | AB27: Push boats ≥2000 kW | AC27: low fuel use | AD27: 15
A28: CE Delft Segment | B28: Categories | D28: Dimensions | E28: Loading capacity | F28: Operational hrs (hrs/yr) | G28: Effective (%) | H28: Effecitve (hrs) | I28: RPM < 750 | J28: RPM 750 - 125- | K28: RPM >1250 | L28: RPM <750 | M28: RPM 750 - 1250 | N28: RPM >1250 | AA28: Motor vessels <80 m. lengthlow fuel use | AB28: Motor vessels <80 m. length | AC28: low fuel use | AD28: 15
A29: E-1 | B29: 38‐49 m | D29: 38.8 x 5.05 | E29: 380 | F29: 3265 | G29: 0.52 | H29: 1697.8 | L29: 67.10526316 | M29: 55.92105263 | N29: 44.73684211 | AA29: Motor vessels dry cargo typical 80 and 86 m shiplow fuel use | AB29: Motor vessels dry cargo typical 80 and 86 m ship | AC29: low fuel use | AD29: 15
A30: E-2 | B30: 50‐54 | D30: 50 x 6.6 | E30: 520 | F30: 3830 | G30: 0.39 | H30: 1493.7 | L30: 75 | M30: 62.5 | N30: 50 | AA30: Motor vessels dry cargo typical 105 m shiplow fuel use | AB30: Motor vessels dry cargo typical 105 m ship | AC30: low fuel use | AD30: 15
A31: E-3 | B31: 55‐66 | D31: 55 x 7.2 | E31: 700 | F31: 3874 | G31: 0.4 | H31: 1549.6 | L31: 75 | M31: 62.5 | N31: 50 | AA31: Motor vessels dry cargo 110 m shiplow fuel use | AB31: Motor vessels dry cargo 110 m ship | AC31: low fuel use | AD31: 15
A32: E-4 | B32: 67‐79 | D32: 67 x 8.2 | E32: 910 | F32: 3778 | G32: 0.44 | H32: 1662.32 | L32: 70.83333333 | M32: 59.02777778 | N32: 47.22222222 | AA32: Motor vessels dry cargo >130 (135 m ship)low fuel use | AB32: Motor vessels dry cargo >130 (135 m ship) | AC32: low fuel use | AD32: 15
A33: E | B33: Average of the above 4 E categories | L33: 71.98464912 | M33: 59.9872076 | N33: 47.98976608 | AA33: Motor vessels liquid cargo 80-109m length (typical 86 m ship)low fuel use | AB33: Motor vessels liquid cargo 80-109m length (typical 86 m ship) | AC33: low fuel use | AD33: 15
A34: F-1 | B34: 80‐84 | D34: 80 x 8.2 | E34: 1130 | F34: 3499 | G34: 0.44 | H34: 1539.56 | L34: 75 | M34: 62.5 | N34: 50 | AA34: Motor vessels liquid cargo 110 m shiplow fuel use | AB34: Motor vessels liquid cargo 110 m ship | AC34: low fuel use | AD34: 15
A35: F-2 | B35: 85‐86 | D35: 86 x 9.5 | E35: 1600 | F35: 3971 | G35: 0.43 | H35: 1707.53 | L35: 67.10526316 | M35: 55.92105263 | N35: 44.73684211 | AA35: =AB35&AC35 -> Motor vessels liquid cargo >130 (135 m ship)low fuel use | AB35: Motor vessels liquid cargo >130 (135 m ship) | AC35: low fuel use | AD35: 15
A36: F | B36: Average of the above 2 F categories | L36: 71.05263158 | M36: 59.21052632 | N36: 47.36842105 | AA36: Coupled convoyslow fuel use | AB36: Coupled convoys | AC36: low fuel use | AD36: 15
A37: J | B37: 85‐86 | D37: 86 x 9.5 | E37: 1600 | F37: 3971 | G37: 0.43 | H37: 1707.53 | L37: 67.10526316 | M37: 55.92105263 | N37: 44.73684211 | AA37: Ferrylow fuel use | AB37: Ferry | AC37: low fuel use | AD37: 15
A38: G | B38: 87‐109 | D38: 105 x 9.5 | E38: 1910 | F38: 4013 | G38: 0.47 | H38: 1886.11 | L38: 53.125 | M38: 44.27083333 | N38: 35.41666667 | AA38: tugboat and workboatlow fuel use | AB38: tugboat and workboat | AC38: low fuel use | AD38: 15
A39: H | B39: 110‐134 | D39: 110 x 11.4 | E39: 3000 | F39: 4318 | G39: 0.45 | H39: 1943.1 | L39: 51 | M39: 42.5 | N39: 34 | AA39: Passenger vessel <250 kWhigh fuel use | AB39: Passenger vessel <250 kW | AC39: high fuel use | AD39: 15
A40: K | B40: 110‐134 | D40: 110 x 11.4 | E40: 3000 | F40: 4318 | G40: 0.45 | H40: 1943.1 | L40: 51 | M40: 42.5 | N40: 34 | AA40: Passenger vessel 250 - 500 kWhigh fuel use | AB40: Passenger vessel 250 - 500 kW | AC40: high fuel use | AD40: 15
A41: I | B41: 135 or longer | D41: 135 x 11,4 | E41: 3920 | F41: 6905 | G41: 0.41 | H41: 2831.05 | L41: 41.12903226 | M41: 34.27419355 | N41: 27.41935484 | AA41: Passenger vessel 500 - 1000 kWhigh fuel use | AB41: Passenger vessel 500 - 1000 kW | AC41: high fuel use | AD41: 15
A42: L | B42: 135 or longer | D42: 135 x 11,4 | E42: 3920 | F42: 6905 | G42: 0.41 | H42: 2831.05 | L42: 41.12903226 | M42: 34.27419355 | N42: 27.41935484 | AA42: Passenger vessel >1000 kWhigh fuel use | AB42: Passenger vessel >1000 kW | AC42: high fuel use | AD42: 15
A43: M | B43: Coupled convoys | D43: 190 x 11.4 | E43: 5300 | F43: 6130 | G43: 0.41 | H43: 2513.3 | L43: 38.63636364 | M43: 32.1969697 | N43: 25.75757576 | AA43: Push boats <500 kW high fuel use | AB43: Push boats <500 kW | AC43: high fuel use | AD43: 15
A44: C-1 | B44: Push boats 500 - 999 kW | D44: 100 x 11.4 | E44: 2450 | F44: 6130 | G44: 0.43 | H44: 2635.9 | L44: 43.96551724 | M44: 36.63793103 | N44: 29.31034483 | AA44: Push boats 500-2000 kW high fuel use | AB44: Push boats 500-2000 kW | AC44: high fuel use | AD44: 15
A45: C-2 | B45: Push boats 1000 - 1999 kW | D45: 100 x 22.8 | E45: 4900 | F45: 7964 | G45: 0.67 | H45: 5335.88 | L45: 21.61016949 | M45: 18.00847458 | N45: 14.40677966 | AA45: Push boats ≥2000 kW high fuel use | AB45: Push boats ≥2000 kW | AC45: high fuel use | AD45: 15
A46: C | B46: Average of the above 2 C categories | L46: 32.78784337 | M46: 27.32320281 | N46: 21.85856224 | AA46: Motor vessels <80 m. lengthhigh fuel use | AB46: Motor vessels <80 m. length | AC46: high fuel use | AD46: 15
A47: D | B47: Push boats > 2000 kw | D47: 195 x 22.8 | E47: 9800 | F47: 8064 | G47: 0.9 | H47: 7257.6 | L47: 15.74074074 | M47: 13.11728395 | N47: 10.49382716 | AA47: Motor vessels dry cargo typical 80 and 86 m shiphigh fuel use | AB47: Motor vessels dry cargo typical 80 and 86 m ship | AC47: high fuel use | AD47: 15
A48: B | B48: Push boats <500 kW | L48: 85 | M48: 70.83333333 | N48: 56.66666667 | AA48: Motor vessels dry cargo typical 105 m shiphigh fuel use | AB48: Motor vessels dry cargo typical 105 m ship | AC48: high fuel use | AD48: 15
A49: a1 | B49: PV<250 | F49: 1000 | G49: 0.8 | H49: 1420 | L49: 159.375 | M49: 132.8125 | N49: 106.25 | AA49: Motor vessels dry cargo 110 m shiphigh fuel use | AB49: Motor vessels dry cargo 110 m ship | AC49: high fuel use | AD49: 15
A50: a2 | B50: PV 250-500 | F50: 2000 | G50: 0.8 | H50: 940 | L50: 79.6875 | M50: 66.40625 | N50: 53.125 | AA50: Motor vessels dry cargo >130 (135 m ship)high fuel use | AB50: Motor vessels dry cargo >130 (135 m ship) | AC50: high fuel use | AD50: 15
A51: a3 | B51: PV 500 - 1000 | F51: 3000 | G51: 0.8 | H51: 695 | L51: 53.125 | M51: 44.27083333 | N51: 35.41666667 | AA51: Motor vessels liquid cargo 80-109m length (typical 86 m ship)high fuel use | AB51: Motor vessels liquid cargo 80-109m length (typical 86 m ship) | AC51: high fuel use | AD51: 15
A52: a4 | B52: PV > 1000 | F52: 4318 | G52: 0.5 | H52: 735 | L52: 57.95454545 | M52: 48.29545455 | N52: 38.63636364 | AA52: Motor vessels liquid cargo 110 m shiphigh fuel use | AB52: Motor vessels liquid cargo 110 m ship | AC52: high fuel use | AD52: 15
A53: O | B53: Tugboat and workboat | H53: 1750 | L53: 106.25 | M53: 88.54166667 | N53: 70.83333333 | AA53: Motor vessels liquid cargo >130 (135 m ship)high fuel use | AB53: Motor vessels liquid cargo >130 (135 m ship) | AC53: high fuel use | AD53: 15
A54: N | B54: Ferry | F54: 4000 | G54: 0.6 | H54: 916 | L54: 53.125 | M54: 44.27083333 | N54: 35.41666667 | AA54: Coupled convoyshigh fuel use | AB54: Coupled convoys | AC54: high fuel use | AD54: 15
AA55: Ferryhigh fuel use | AB55: Ferry | AC55: high fuel use | AD55: 15
AA56: tugboat and workboathigh fuel use | AB56: tugboat and workboat | AC56: high fuel use | AD56: 15
